Ref No,Fund Type,Dept,Cost Centre Description    ,Description    ,Creditor Name    ,GL Code Net Amount,Payment date        
2,Revenue,CAHD,Central - Commissioned Services,Permanent Residential,1 St Georges House,13333.52, 25-Aug-2020
3,Revenue,CAHD,CSC - Care Leavers Support Costs,Leaving Care,1625 Independent People,3343.00, 25-Aug-2020
4,Revenue,CAHD,CSC - Care Leavers Support Costs,Leaving Care,1625 Independent People,3343.00, 25-Aug-2020
5,Revenue,CAHD,CSC - Care Leavers Support Costs,Leaving Care,1625 Independent People,3343.00, 25-Aug-2020
6,Revenue,CAHD,South - Commissioned Services,Permanent Residential,2Nd Floor Building,5630.76, 25-Aug-2020
7,Revenue,CAHD,South - Commissioned Services,Permanent Residential,2Nd Floor Building,2806.12, 25-Aug-2020
8,Revenue,CAHD,Central - Commissioned Services,Other Small Contracts,3 Trees Community Support Ltd,5128.35, 05-Aug-2020
9,Revenue,CAHD,Central - Commissioned Services,Supported Living,3 Trees Community Support Ltd,5174.64, 05-Aug-2020
10,Revenue,CAHD,Central - Commissioned Services,Other Small Contracts,3 Trees Community Support Ltd,5131.84, 10-Aug-2020
11,Revenue,CAHD,Central - Commissioned Services,Supported Living,3 Trees Community Support Ltd,5172.16, 10-Aug-2020
12,Revenue,CAHD,Central - Commissioned Services,Other Small Contracts,3 Trees Community Support Ltd,5114.39, 10-Aug-2020
13,Revenue,CAHD,Central - Commissioned Services,Supported Living,3 Trees Community Support Ltd,5177.14, 10-Aug-2020
14,Revenue,CAHD,Central - Commissioned Services,Other Small Contracts,3 Trees Community Support Ltd,5135.33, 21-Aug-2020
15,Revenue,CAHD,Central - Commissioned Services,Supported Living,3 Trees Community Support Ltd,4975.48, 21-Aug-2020
16,Revenue,CAHD,Central - Commissioned Services,Other Small Contracts,3 Trees Community Support Ltd,5131.84, 28-Aug-2020
17,Revenue,CAHD,Central - Commissioned Services,Supported Living,3 Trees Community Support Ltd,4953.06, 28-Aug-2020
18,Revenue,CAHD,Covid � ASC - Infection Control,Grants to Voluntary Bodies,3 Trees Community Support Ltd,959.35, 05-Aug-2020
19,Revenue,CAHD,South - Commissioned Services,Permanent Nursing,3Rd Floor  The Aspect,3593.88, 25-Aug-2020
20,Revenue,CAHD,North - Community based support,Permanent Nursing,3Rd Floor  The Aspect,3234.72, 25-Aug-2020
21,Revenue,CAHD,South - Commissioned Services,Permanent Nursing,3Rd Floor  The Aspect,2287.36, 25-Aug-2020
22,Revenue,CAHD,South - Commissioned Services,Permanent Nursing,3Rd Floor  The Aspect,2789.80, 25-Aug-2020
23,Revenue,CAHD,South Glos Users in South Glos Homes,Permanent Nursing,3Rd Floor  The Aspect,735.68, 25-Aug-2020
24,Revenue,CAHD,South - Commissioned Services,Permanent Nursing,3Rd Floor  The Aspect,2445.96, 25-Aug-2020
25,Revenue,CAHD,South - Commissioned Services,Permanent Nursing,3Rd Floor  The Aspect,2445.96, 25-Aug-2020
26,Revenue,CAHD,South Glos Users in South Glos Homes,Permanent Nursing,3Rd Floor  The Aspect,735.68, 25-Aug-2020
27,Revenue,CAHD,South - Commissioned Services,Permanent Nursing,3Rd Floor  The Aspect,2445.96, 25-Aug-2020
28,Revenue,CAHD,South Glos Users in South Glos Homes,Permanent Nursing,3Rd Floor  The Aspect,735.68, 25-Aug-2020
29,Revenue,CAHD,South - Commissioned Services,Permanent Residential,3Rd Floor  The Aspect,2511.80, 25-Aug-2020
30,Revenue,CAHD,South Glos Users in South Glos Homes,Permanent Nursing,3Rd Floor  The Aspect,735.68, 25-Aug-2020
31,Revenue,CAHD,South - Commissioned Services,Permanent Nursing,3Rd Floor  The Aspect,2949.60, 25-Aug-2020
32,Revenue,CAHD,South Glos Users in South Glos Homes,Permanent Nursing,3Rd Floor  The Aspect,735.68, 25-Aug-2020
33,Revenue,CAHD,South Glos Users in South Glos Homes,Permanent Nursing,3Rd Floor  The Aspect,735.68, 25-Aug-2020
34,Revenue,CAHD,South Glos Users in South Glos Homes,Permanent Nursing,3Rd Floor  The Aspect,735.68, 25-Aug-2020
35,Revenue,CAHD,South Glos Users in South Glos Homes,Permanent Nursing,3Rd Floor  The Aspect,735.68, 25-Aug-2020
36,Revenue,CAHD,South - Commissioned Services,Permanent Nursing,3Rd Floor  The Aspect,2949.60, 25-Aug-2020
37,Revenue,CAHD,South - Commissioned Services,Fees & Charges Income - General,3Rd Floor  The Aspect,6326.36, 25-Aug-2020
38,Revenue,CAHD,South - Commissioned Services,Permanent Residential,3Rd Floor  The Aspect,3060.00, 25-Aug-2020
39,Revenue,CAHD,South - Commissioned Services,Permanent Residential,3Rd Floor  The Aspect,13770.00, 25-Aug-2020
40,Revenue,CAHD,South Glos Users in South Glos Homes,Permanent Nursing,3Rd Floor  The Aspect,735.68, 25-Aug-2020
41,Revenue,CAHD,South - Commissioned Services,Permanent Residential,3Rd Floor  The Aspect,3203.04, 25-Aug-2020
42,Revenue,CAHD,South Glos Users in South Glos Homes,Permanent Nursing,3Rd Floor  The Aspect,735.68, 25-Aug-2020
43,Revenue,CAHD,South Glos Users in South Glos Homes,Permanent Nursing,3Rd Floor  The Aspect,735.68, 25-Aug-2020
44,Revenue,CAHD,South - Commissioned Services,Permanent Residential,3Rd Floor  The Aspect,3366.00, 25-Aug-2020
45,Revenue,CAHD,South - Commissioned Services,Permanent Nursing,3Rd Floor  The Aspect,2924.56, 25-Aug-2020
46,Revenue,CAHD,South - Commissioned Services,Permanent Nursing,3Rd Floor  The Aspect,3300.00, 25-Aug-2020
47,Revenue,CAHD,South - Commissioned Services,Permanent Nursing,3Rd Floor  The Aspect,2710.71, 25-Aug-2020
48,Revenue,CAHD,South - Commissioned Services,Permanent Nursing,3Rd Floor  The Aspect,2511.80, 25-Aug-2020
49,Revenue,CAHD,South Glos Users in South Glos Homes,Permanent Nursing,3Rd Floor  The Aspect,735.68, 25-Aug-2020
50,Revenue,CAHD,South - Commissioned Services,Permanent Nursing,3Rd Floor  The Aspect,2445.96, 25-Aug-2020
51,Revenue,CAHD,South Glos Users in South Glos Homes,Permanent Nursing,3Rd Floor  The Aspect,735.68, 25-Aug-2020
52,Revenue,CAHD,South - Commissioned Services,Permanent Nursing,3Rd Floor  The Aspect,2445.96, 25-Aug-2020
53,Revenue,CAHD,South Glos Users in South Glos Homes,Permanent Nursing,3Rd Floor  The Aspect,735.68, 25-Aug-2020
54,Revenue,CAHD,South - Commissioned Services,Permanent Residential,3Rd Floor  The Aspect,3190.56, 25-Aug-2020
55,Revenue,CAHD,South - Commissioned Services,Permanent Nursing,3Rd Floor  The Aspect,2445.96, 25-Aug-2020
56,Revenue,CAHD,South Glos Users in South Glos Homes,Permanent Nursing,3Rd Floor  The Aspect,735.68, 25-Aug-2020
57,Revenue,CAHD,South - Commissioned Services,Permanent Residential,3Rd Floor  The Aspect,2949.60, 25-Aug-2020
58,Revenue,CAHD,South Glos Users in South Glos Homes,Permanent Nursing,3Rd Floor  The Aspect,735.68, 25-Aug-2020
59,Revenue,CAHD,South - Commissioned Services,Permanent Residential,5Th Floor Harlech Court,17000.48, 25-Aug-2020
60,Revenue,CAHD,South - Commissioned Services,Permanent Residential,5Th Floor Harlech Court,10627.92, 25-Aug-2020
61,Revenue,CAHD,S28A cases,Permanent Residential,5Th Floor Harlech Court,11122.76, 25-Aug-2020
62,Revenue,CAHD,South - Commissioned Services,Permanent Residential,5Th Floor Harlech Court,11665.12, 25-Aug-2020
63,Revenue,CAHD,Covid � ASC - Infection Control,Grants to Voluntary Bodies,5Th Floor Harlech Court,910.91, 04-Aug-2020
64,Revenue,CAHD,Covid � ASC - Infection Control,Grants to Voluntary Bodies,5Th Floor Harlech Court,5476.35, 04-Aug-2020
65,Revenue,CAHD,North - Community based support,Permanent Residential,5Th Floor Harlech Court,12498.56, 25-Aug-2020
66,Revenue,CAHD,North - Community based support,Permanent Residential,5Th Floor Harlech Court,10537.24, 25-Aug-2020
67,Revenue,CAHD,North - Community based support,Permanent Residential,5Th Floor Harlech Court,9071.12, 25-Aug-2020
68,Revenue,CAHD,Alexandra Way,Mechanical & Electrical Maintenance,A E Horder (Contracting) Limited,1225.90, 13-Aug-2020
69,Revenue,CAHD,Discretionary Housing Payment,Other Supplies & Services,Abode Property Management,676.22, 19-Aug-2020
70,Revenue,CAHD,South - Commissioned Services,Permanent Nursing,Acacia House,2996.00, 25-Aug-2020
71,Revenue,CAHD,Jointly Funded H&SC Packages,Permanent Residential,Acorn Care Providers,2310.92, 25-Aug-2020
72,Revenue,CAHD,Section 117 Placements MH Younger,Permanent Residential,Acorn Care Providers,5481.28, 25-Aug-2020
73,Revenue,CAHD,North - S117,Permanent Residential,Acorn Care Providers,3978.00, 25-Aug-2020
74,Revenue,CAHD,Jointly Funded H&SC Packages,Permanent Residential,Acorn Care Providers,2142.00, 25-Aug-2020
75,Revenue,CAHD,MH Purchasing - Younger,Permanent Residential,Acorn Care Providers,6382.04, 25-Aug-2020
76,Revenue,CAHD,Jointly Funded H&SC Packages,Permanent Residential,Acorn Care Providers,3436.48, 25-Aug-2020
77,Revenue,CAHD,MH Purchasing - Younger,Permanent Residential,Acorn Care Providers,6266.88, 25-Aug-2020
78,Revenue,CAHD,Covid � ASC - Infection Control,Grants to Voluntary Bodies,Acorn Care Providers,2987.10, 04-Aug-2020
79,Revenue,CAHD,Covid � ASC - Infection Control,Grants to Voluntary Bodies,Acorn Care Providers,995.70, 04-Aug-2020
80,Revenue,CAHD,Training Budget - Children`s Social Serv,Training Expenses,Acorn Health & Safety Limited,449.00, 03-Aug-2020
81,Revenue,CAHD,Training Budget - Children`s Social Serv,Training Expenses,Acorn Health & Safety Limited,449.00, 03-Aug-2020
82,Revenue,CAHD,CSC - Agency Fostering,Foster Parent Allowances,Action for Children,6975.00, 13-Aug-2020
83,Revenue,CAHD,CSC - Agency Fostering,Foster Parent Allowances,Action for Children,3660.17, 03-Aug-2020
84,Revenue,CAHD,CSC - Agency Fostering,Foster Parent Allowances,Action for Children,3660.17, 03-Aug-2020
85,Revenue,CAHD,South - Commissioned Services,Permanent Residential,Administration And Revenue Centre,10714.29, 25-Aug-2020
86,Revenue,CAHD,South - Commissioned Services,Fees & Charges Income - General,Administration And Revenue Centre,741.26, 25-Aug-2020
87,Revenue,CAHD,South - Commissioned Services,Fees & Charges Income - General,Administration And Revenue Centre,2012.05, 25-Aug-2020
88,Revenue,CAHD,Covid � ASC - Infection Control,Grants to Voluntary Bodies,Administration And Revenue Centre,5465.46, 04-Aug-2020
89,Revenue,CAHD,Covid � ASC - Infection Control,Grants to Voluntary Bodies,Administration And Revenue Centre,32858.10, 04-Aug-2020
90,Revenue,CAHD,Covid � ASC - Infection Control,Grants to Voluntary Bodies,Advantedge Commercial Finance Limited,1918.70, 05-Aug-2020
91,Revenue,CAHD,South - Commissioned Services,Day Care / Social Activities,Age Concern,634.08, 25-Aug-2020
92,Revenue,CAHD,Central - Commissioned Services,Day Care / Social Activities,Age Concern,546.72, 25-Aug-2020
93,Revenue,CAHD,North - Community based support,Day Care / Social Activities,Age Concern,734.40, 25-Aug-2020
94,Revenue,CAHD,Central - Commissioned Services,Day Care / Social Activities,Age Concern,546.72, 25-Aug-2020
95,Revenue,CAHD,Central - Commissioned Services,Day Care / Social Activities,Age Concern,634.08, 25-Aug-2020
96,Revenue,CAHD,Central - Commissioned Services,Day Care / Social Activities,Age Concern,634.08, 25-Aug-2020
97,Revenue,CAHD,South - Commissioned Services,Other Small Contracts,Agincare UK Limited,1453.83, 10-Aug-2020
98,Revenue,CAHD,Younger MH non-res purchasing,Other Small Contracts,Agincare UK Limited,72.45, 10-Aug-2020
99,Revenue,CAHD,South - Commissioned Services,Other Small Contracts,Agincare UK Limited,1482.81, 10-Aug-2020
100,Revenue,CAHD,Younger MH non-res purchasing,Other Small Contracts,Agincare UK Limited,77.28, 10-Aug-2020
101,Revenue,CAHD,South - Commissioned Services,Other Small Contracts,Agincare UK Limited,1680.84, 21-Aug-2020
102,Revenue,CAHD,Younger MH non-res purchasing,Other Small Contracts,Agincare UK Limited,96.60, 21-Aug-2020
103,Revenue,CAHD,South - Commissioned Services,Other Small Contracts,Agincare UK Limited,1680.84, 26-Aug-2020
104,Revenue,CAHD,Younger MH non-res purchasing,Other Small Contracts,Agincare UK Limited,77.28, 26-Aug-2020
105,Revenue,CAHD,Extra Care Housing,Private & Voluntary Home Care,Agincare UK Limited,28508.53, 04-Aug-2020
106,Revenue,CAHD,Extra Care Housing,Private & Voluntary Home Care,Agincare UK Limited,1734.87, 19-Aug-2020
107,Revenue,CAHD,Covid � ASC - Infection Control,Grants to Voluntary Bodies,Agincare UK Limited,15349.60, 05-Aug-2020
108,Revenue,CAHD,Extra Care Housing,Private & Voluntary Home Care,Agincare UK Limited,2914.31, 19-Aug-2020
109,Revenue,CAHD,Prison Assessments & Costs,Other Supplies & Services,Agincare UK Limited,2580.00, 11-Aug-2020
110,Revenue,CAHD,Prison Assessments & Costs,Other Supplies & Services,Agincare UK Limited,2934.75, 24-Aug-2020
111,Revenue,CAHD,Transport OLA Special Schools and RB,Client Transport,Individual,554.40, 07-Aug-2020
112,Revenue,CAHD,Central - Commissioned Services,Permanent Residential,Alexander House,12155.16, 25-Aug-2020
113,Revenue,CAHD,Covid 19 -Adult Social Care,Other Small Contracts,AliMo Care Ltd,4.78, 05-Aug-2020
114,Revenue,CAHD,South - Commissioned Services,Other Small Contracts,AliMo Care Ltd,1032.48, 05-Aug-2020
115,Revenue,CAHD,North - Community based support,Other Small Contracts,AliMo Care Ltd,454.10, 05-Aug-2020
116,Revenue,CAHD,Covid 19 -Adult Social Care,Other Small Contracts,AliMo Care Ltd,9.56, 05-Aug-2020
117,Revenue,CAHD,South - Commissioned Services,Other Small Contracts,AliMo Care Ltd,683.54, 05-Aug-2020
118,Revenue,CAHD,North - Community based support,Other Small Contracts,AliMo Care Ltd,439.76, 05-Aug-2020
119,Revenue,CAHD,Covid 19 -Adult Social Care,Other Small Contracts,AliMo Care Ltd,9.56, 11-Aug-2020
120,Revenue,CAHD,South - Commissioned Services,Other Small Contracts,AliMo Care Ltd,774.36, 11-Aug-2020
121,Revenue,CAHD,North - Community based support,Other Small Contracts,AliMo Care Ltd,439.76, 11-Aug-2020
122,Revenue,CAHD,Covid 19 -Adult Social Care,Other Small Contracts,AliMo Care Ltd,9.56, 11-Aug-2020
123,Revenue,CAHD,South - Commissioned Services,Other Small Contracts,AliMo Care Ltd,922.54, 11-Aug-2020
124,Revenue,CAHD,North - Community based support,Other Small Contracts,AliMo Care Ltd,430.20, 11-Aug-2020
125,Revenue,CAHD,Covid � ASC - Infection Control,Grants to Voluntary Bodies,AliMo Care Ltd,1096.40, 05-Aug-2020
126,Revenue,CAHD,North - Community based support,Permanent Nursing,Allambie Court,2320.44, 25-Aug-2020
127,Revenue,CAHD,Emergency Assistance Grant for Food and Essential,Other Transfer Payments,Allpay Limited - Trust Fund,200000.00, 19-Aug-2020
128,Revenue,CAHD,Central - Commissioned Services,Permanent Residential,Alvony House Residential Care Home,3000.00, 25-Aug-2020
129,Revenue,CAHD,CSC - Residential Placements,Permanent Residential,Amberleigh Care Ltd,17439.71, 13-Aug-2020
130,Revenue,CAHD,CSC - Residential Placements,Permanent Residential,Amberleigh Care Ltd,17439.71, 13-Aug-2020
131,Revenue,CAHD,CSC - Residential Placements,Permanent Residential,Ambito Care and Education,19930.88, 13-Aug-2020
132,Revenue,CAHD,North - Community based support,Permanent Nursing,Amerind Grove Nursing Home,2706.32, 25-Aug-2020
133,Revenue,CAHD,CSC - Agency Fostering,Foster Parent Allowances,Amicus Foster Care Ltd,4879.00, 10-Aug-2020
134,Revenue,CAHD,Early Years High Needs Support,Other Private Contractors,Anchor Day Nursery Ltd,3059.03, 26-Aug-2020
135,Revenue,CAHD,Alexandra Way,Premises Maintenance by Contractor,Apre Surfacing Limited,500.00, 27-Aug-2020
136,Revenue,CAHD,Younger MH non-res purchasing,Supported Living,Archcare Rehab Limited,16242.96, 25-Aug-2020
137,Revenue,CAHD,Younger MH non-res purchasing,Supported Living,Archcare Rehab Limited,1957.40, 25-Aug-2020
138,Revenue,CAHD,Younger MH non-res purchasing,Supported Living,Archcare Rehab Limited,6850.90, 25-Aug-2020
139,Revenue,CAHD,North - Community based support,Permanent Nursing,Argentum Lodge,4000.00, 25-Aug-2020
140,Revenue,CAHD,South - Commissioned Services,Permanent Residential,Ash View House,5529.44, 25-Aug-2020
141,Revenue,CAHD,Jointly Funded H&SC Packages,Permanent Residential,Ash View House,1133.64, 25-Aug-2020
142,Revenue,CAHD,S117 Placements PCT,Permanent Residential,Ash View House,7707.44, 25-Aug-2020
143,Revenue,CAHD,North - Community based support,Permanent Residential,Ash View House,7099.52, 25-Aug-2020
144,Revenue,CAHD,North - Community based support,Permanent Residential,Ash View House,7120.00, 25-Aug-2020
145,Revenue,CAHD,Section 117 Placements MH Younger,Permanent Residential,Ash View House,5022.60, 25-Aug-2020
146,Revenue,CAHD,Jointly Funded H&SC Packages,Permanent Residential,Ash View House,2152.60, 25-Aug-2020
147,Revenue,CAHD,South - S117,Permanent Residential,Ash View House,6826.64, 25-Aug-2020
148,Revenue,CAHD,South - Commissioned Services,Permanent Residential,Ash View House,6747.84, 25-Aug-2020
149,Revenue,CAHD,Covid � ASC - Infection Control,Grants to Voluntary Bodies,Ash View House,1407.77, 04-Aug-2020
150,Revenue,CAHD,Covid � ASC - Infection Control,Grants to Voluntary Bodies,Ash View House,8463.45, 04-Aug-2020
151,Revenue,CAHD,CSC - Legal Fees,Legal Fees,Individual,1916.67, 17-Aug-2020
152,Revenue,CAHD,North - Community based support,Permanent Residential,Aspects 2 Limited,7231.88, 25-Aug-2020
153,Revenue,CAHD,CSC - Vinney Green Secure Unit,R & M by Departments,Assa Abloy Limited,19780.36, 03-Aug-2020
154,Revenue,CAHD,South - Commissioned Services,Adults - Family Support,Ategi Limited,16210.88, 19-Aug-2020
155,Revenue,CAHD,Independent Special Placements - Post 16,Other Private Contractors,Aurora Hedgeway School,20495.03, 11-Aug-2020
156,Revenue,CAHD,Independent Special Placements - Pre 16,Other Private Contractors,Aurora Hedgeway School,15457.42, 11-Aug-2020
157,Revenue,CAHD,Independent Special Placements - Pre 16,Other Private Contractors,Aurora Hedgeway School,24091.00, 11-Aug-2020
158,Revenue,CAHD,Independent Special Placements - Pre 16,Other Private Contractors,Aurora Hedgeway School,24091.00, 11-Aug-2020
159,Revenue,CAHD,Independent Special Placements - Pre 16,Other Private Contractors,Aurora Hedgeway School,15457.42, 11-Aug-2020
160,Revenue,CAHD,Independent Special Placements - Pre 16,Other Private Contractors,Aurora Hedgeway School,15457.42, 11-Aug-2020
161,Revenue,CAHD,Independent Special Placements - Post 16,Other Private Contractors,Aurora Hedgeway School,15457.42, 11-Aug-2020
162,Revenue,CAHD,Independent Special Placements - Post 16,Other Private Contractors,Aurora Hedgeway School,17258.67, 11-Aug-2020
163,Revenue,CAHD,Independent Special Placements - Pre 16,Other Private Contractors,Aurora Hedgeway School,15457.42, 11-Aug-2020
164,Revenue,CAHD,Independent Special Placements - Pre 16,Other Private Contractors,Aurora Hedgeway School,21367.64, 11-Aug-2020
165,Revenue,CAHD,Independent Special Placements - Pre 16,Other Private Contractors,Aurora Hedgeway School,15457.42, 11-Aug-2020
166,Revenue,CAHD,Independent Special Placements - Pre 16,Other Private Contractors,Aurora Hedgeway School,15457.42, 11-Aug-2020
167,Revenue,CAHD,Independent Special Placements - Pre 16,Other Private Contractors,Aurora Hedgeway School,22705.54, 18-Aug-2020
168,Revenue,CAHD,Independent Special Placements - Pre 16,Other Private Contractors,Aurora Hedgeway School,15457.42, 11-Aug-2020
169,Revenue,CAHD,Independent Special Placements - Pre 16,Other Private Contractors,Aurora Hedgeway School,15457.42, 11-Aug-2020
170,Revenue,CAHD,Independent Special Placements - Pre 16,Other Private Contractors,Aurora Hedgeway School,15457.42, 11-Aug-2020
171,Revenue,CAHD,Independent Special Placements - Pre 16,Other Private Contractors,Aurora Hedgeway School,15457.42, 11-Aug-2020
172,Revenue,CAHD,Independent Special Placements - Pre 16,Other Private Contractors,Aurora Hedgeway School,17603.84, 11-Aug-2020
173,Revenue,CAHD,Independent Special Placements - Pre 16,Other Private Contractors,Aurora Hedgeway School,15457.42, 11-Aug-2020
174,Revenue,CAHD,Independent Special Placements - Pre 16,Other Private Contractors,Aurora Hedgeway School,18589.84, 11-Aug-2020
175,Revenue,CAHD,South - Commissioned Services,Permanent Residential,Autism Specialised Care Homes,6506.88, 25-Aug-2020
176,Revenue,CAHD,CSC - Adoption Support Fund,Post Adoption,Individual,591.00, 07-Aug-2020
177,Revenue,CAHD,Statemented Support Payments to OLAs,Other L.A.s - General,Avanti Gardens School,5072.90, 26-Aug-2020
178,Revenue,CAHD,Younger Adult Mental Health,Health Services (Third Party Payments),Avon & Wiltshire Mental Health,1693.33, 27-Aug-2020
179,Revenue,CAHD,South - Commissioned Services,Permanent Nursing,Avon Lodge Care Centre,4341.36, 25-Aug-2020
180,Revenue,CAHD,South Glos Users in South Glos Homes,Permanent Nursing,Avon Lodge Care Centre,735.68, 25-Aug-2020
181,Revenue,CAHD,South Glos Users in South Glos Homes,Permanent Nursing,Avon Lodge Care Centre,735.68, 25-Aug-2020
182,Revenue,CAHD,South - Commissioned Services,Permanent Nursing,Avon Lodge Care Centre,4311.16, 25-Aug-2020
183,Revenue,CAHD,South Glos Users in South Glos Homes,Permanent Nursing,Avon Lodge Care Centre,735.68, 25-Aug-2020
184,Revenue,CAHD,South Glos Users in South Glos Homes,Permanent Nursing,Avon Lodge Care Centre,735.68, 25-Aug-2020
185,Revenue,CAHD,South - Commissioned Services,Permanent Nursing,Avon Lodge Care Centre,3885.48, 25-Aug-2020
186,Revenue,CAHD,South Glos Users in South Glos Homes,Permanent Nursing,Avon Lodge Care Centre,735.68, 25-Aug-2020
187,Revenue,CAHD,South - Commissioned Services,Permanent Nursing,Avon Lodge Care Centre,4537.76, 25-Aug-2020
188,Revenue,CAHD,South Glos Users in South Glos Homes,Permanent Nursing,Avon Lodge Care Centre,735.68, 25-Aug-2020
189,Revenue,CAHD,Central - Commissioned Services,Permanent Nursing,Avon Lodge Care Centre,4311.16, 25-Aug-2020
190,Revenue,CAHD,South Glos Users in South Glos Homes,Permanent Nursing,Avon Lodge Care Centre,735.68, 25-Aug-2020
191,Revenue,CAHD,South Glos Users in South Glos Homes,Permanent Nursing,Avon Lodge Care Centre,735.68, 25-Aug-2020
192,Revenue,CAHD,South Glos Users in South Glos Homes,Permanent Nursing,Avon Lodge Care Centre,735.68, 25-Aug-2020
193,Revenue,CAHD,South - Commissioned Services,Permanent Nursing,Avon Lodge Care Centre,3448.20, 25-Aug-2020
194,Revenue,CAHD,South Glos Users in South Glos Homes,Permanent Nursing,Avon Lodge Care Centre,735.68, 25-Aug-2020
195,Revenue,CAHD,South - Commissioned Services,Permanent Nursing,Avon Lodge Care Centre,4311.16, 25-Aug-2020
196,Revenue,CAHD,South Glos Users in South Glos Homes,Permanent Nursing,Avon Lodge Care Centre,735.68, 25-Aug-2020
197,Revenue,CAHD,South - Commissioned Services,Permanent Nursing,Avon Lodge Care Centre,3416.19, 25-Aug-2020
198,Revenue,CAHD,South Glos Users in South Glos Homes,Permanent Nursing,Avon Lodge Care Centre,735.68, 25-Aug-2020
199,Revenue,CAHD,South - Commissioned Services,Permanent Nursing,Avon Lodge Care Centre,931.69, 25-Aug-2020
200,Revenue,CAHD,South - Commissioned Services,Fees & Charges Income - General,Avon Lodge Care Centre,1909.05, 25-Aug-2020
201,Revenue,CAHD,South Glos Users in South Glos Homes,Permanent Nursing,Avon Lodge Care Centre,735.68, 25-Aug-2020
202,Revenue,CAHD,South Glos Users in South Glos Homes,Permanent Nursing,Avon Lodge Care Centre,1576.46, 25-Aug-2020
203,Revenue,CAHD,South Glos Users in South Glos Homes,Permanent Nursing,Avon Lodge Care Centre,735.68, 25-Aug-2020
204,Revenue,CAHD,South - Commissioned Services,Permanent Nursing,Avon Lodge Care Centre,4403.84, 25-Aug-2020
205,Revenue,CAHD,South Glos Users in South Glos Homes,Permanent Nursing,Avon Lodge Care Centre,735.68, 25-Aug-2020
206,Revenue,CAHD,South - Commissioned Services,Permanent Nursing,Avon Lodge Care Centre,4311.16, 25-Aug-2020
207,Revenue,CAHD,South Glos Users in South Glos Homes,Permanent Nursing,Avon Lodge Care Centre,735.68, 25-Aug-2020
208,Revenue,CAHD,South Glos Users in South Glos Homes,Permanent Nursing,Avon Lodge Care Centre,735.68, 25-Aug-2020
209,Revenue,CAHD,Central - Commissioned Services,Permanent Nursing,Avon Lodge Care Centre,3884.80, 25-Aug-2020
210,Revenue,CAHD,South Glos Users in South Glos Homes,Permanent Nursing,Avon Lodge Care Centre,735.68, 25-Aug-2020
211,Revenue,CAHD,Covid 19- Spend on behalf of NHS,Respite Planned - Nursing,Avon Lodge Care Centre,4311.20, 25-Aug-2020
212,Revenue,CAHD,Covid 19- Spend on behalf of NHS,Respite Planned - Nursing,Avon Lodge Care Centre,4157.23, 25-Aug-2020
213,Revenue,CAHD,South - Commissioned Services,Permanent Nursing,Avon Lodge Care Centre,4530.04, 25-Aug-2020
214,Revenue,CAHD,South Glos Users in South Glos Homes,Permanent Nursing,Avon Lodge Care Centre,735.68, 25-Aug-2020
215,Revenue,CAHD,South - S117,Permanent Nursing,Avon Lodge Care Centre,3885.48, 25-Aug-2020
216,Revenue,CAHD,South Glos Users in South Glos Homes,Permanent Nursing,Avon Lodge Care Centre,735.68, 25-Aug-2020
217,Revenue,CAHD,South Glos Users in South Glos Homes,Permanent Nursing,Avon Lodge Care Centre,735.68, 25-Aug-2020
218,Revenue,CAHD,South Glos Users in South Glos Homes,Permanent Nursing,Avon Lodge Care Centre,735.68, 25-Aug-2020
219,Revenue,CAHD,Covid � ASC - Infection Control,Grants to Voluntary Bodies,Avon Lodge Care Centre,5134.22, 04-Aug-2020
220,Revenue,CAHD,Covid � ASC - Infection Control,Grants to Voluntary Bodies,Avon Lodge Care Centre,30866.70, 04-Aug-2020
221,Revenue,CAHD,South - Commissioned Services,Permanent Residential,Avon Valley Care Home,3960.00, 25-Aug-2020
222,Revenue,CAHD,South - Commissioned Services,Permanent Residential,Avon Valley Care Home,4000.00, 25-Aug-2020
223,Revenue,CAHD,South - Commissioned Services,Permanent Residential,Avon Valley Care Home,4000.00, 25-Aug-2020
224,Revenue,CAHD,South - Commissioned Services,Permanent Residential,Avon Valley Care Home,3960.00, 25-Aug-2020
225,Revenue,CAHD,South - Commissioned Services,Permanent Residential,Avon Valley Care Home,4800.00, 25-Aug-2020
226,Revenue,CAHD,South - Commissioned Services,Permanent Residential,Avon Valley Care Home,4000.00, 25-Aug-2020
227,Revenue,CAHD,South - Commissioned Services,Permanent Residential,Avon Valley Care Home,4800.00, 25-Aug-2020
228,Revenue,CAHD,South - Commissioned Services,Permanent Residential,Avon Valley Care Home,13860.00, 25-Aug-2020
229,Revenue,CAHD,South - Commissioned Services,Fees & Charges Income - General,Avon Valley Care Home,1400.00, 25-Aug-2020
230,Revenue,CAHD,South - Commissioned Services,Permanent Residential,Avon Valley Care Home,12587.14, 25-Aug-2020
231,Revenue,CAHD,South - Commissioned Services,Permanent Residential,Avon Valley Care Home,3960.00, 25-Aug-2020
232,Revenue,CAHD,South - Commissioned Services,Fees & Charges Income - General,Avon Valley Care Home,1789.54, 25-Aug-2020
233,Revenue,CAHD,South - Commissioned Services,Fees & Charges Income - General,Avon Valley Care Home,2062.64, 25-Aug-2020
234,Revenue,CAHD,South - Commissioned Services,Permanent Residential,Avon Valley Care Home,18000.00, 25-Aug-2020
235,Revenue,CAHD,South - Commissioned Services,Permanent Residential,Avon Valley Care Home,4000.00, 25-Aug-2020
236,Revenue,CAHD,South - Commissioned Services,Permanent Residential,Avon Valley Care Home,3571.43, 25-Aug-2020
237,Revenue,CAHD,South - Commissioned Services,Fees & Charges Income - General,Avon Valley Care Home,6216.07, 25-Aug-2020
238,Revenue,CAHD,South - Commissioned Services,Fees & Charges Income - General,Avon Valley Care Home,2532.70, 25-Aug-2020
239,Revenue,CAHD,North - Community based support,Permanent Residential,Avon Valley Care Home,7200.00, 25-Aug-2020
240,Revenue,CAHD,North - Community based support,Permanent Residential,Avon Valley Care Home,3600.00, 25-Aug-2020
241,Revenue,CAHD,Central - Commissioned Services,Permanent Residential,Avon Valley Care Home,4000.00, 25-Aug-2020
242,Revenue,CAHD,Covid � ASC - Infection Control,Grants to Voluntary Bodies,Avon Valley Care Home,6459.18, 04-Aug-2020
243,Revenue,CAHD,Covid � ASC - Infection Control,Grants to Voluntary Bodies,Avon Valley Care Home,38832.30, 04-Aug-2020
244,Revenue,CAHD,North - Community based support,Permanent Residential,Avonmere Care Home,4680.00, 25-Aug-2020
245,Revenue,CAHD,North - Community based support,Permanent Residential,Avonmere Care Home,4386.80, 25-Aug-2020
246,Revenue,CAHD,North - Community based support,Permanent Residential,Avonmere Care Home,5420.00, 25-Aug-2020
247,Revenue,CAHD,North - Community based support,Permanent Residential,Avonmere Care Home,4420.00, 25-Aug-2020
248,Revenue,CAHD,South - Commissioned Services,Respite Emergency - Residential,Avonmere Care Home,519.64, 25-Aug-2020
249,Revenue,CAHD,North - Community based support,Permanent Residential,Avonmere Care Home,4620.00, 25-Aug-2020
250,Revenue,CAHD,Covid 19- Spend on behalf of NHS,Respite Planned - Residential,Avonmere Care Home,2985.71, 25-Aug-2020
251,Revenue,CAHD,North - Community based support,Permanent Residential,Avonmere Care Home,22678.57, 25-Aug-2020
252,Revenue,CAHD,North - Community based support,Permanent Residential,Avonmere Care Home,22500.00, 25-Aug-2020
253,Revenue,CAHD,North - Community based support,Permanent Residential,Avonmere Care Home,5000.00, 25-Aug-2020
254,Revenue,CAHD,North - Community based support,Fees & Charges Income - General,Avonmere Care Home,15986.79, 25-Aug-2020
255,Revenue,CAHD,North - Community based support,Fees & Charges Income - General,Avonmere Care Home,6206.22, 25-Aug-2020
256,Revenue,CAHD,Covid 19- Spend on behalf of NHS,Respite Planned - Residential,Avonmere Care Home,785.71, 25-Aug-2020
257,Revenue,CAHD,Covid � ASC - Infection Control,Grants to Voluntary Bodies,Avonmere Care Home,6293.56, 04-Aug-2020
258,Revenue,CAHD,Covid � ASC - Infection Control,Grants to Voluntary Bodies,Avonmere Care Home,37836.60, 04-Aug-2020
259,Revenue,CAHD,Pensions - Non DSG,Annual Pension,Bath & North East Somerset Council,6633.42, 21-Aug-2020
260,Revenue,CAHD,Pensions - Non DSG,Annual Pension,Bath & North East Somerset Council,106482.32, 24-Aug-2020
261,Revenue,CAHD,Independent Special Placements - Post 16,Other Private Contractors,Bath Road Priory,81363.29, 24-Aug-2020
262,Revenue,CAHD,North - Community based support,Permanent Nursing,Beacher Hall Care Home,6137.76, 25-Aug-2020
263,Revenue,CAHD,Pathway 3 - (Complex Beds),Permanent Nursing,Beaufort Care Ltd,11365.44, 07-Aug-2020
264,Revenue,CAHD,South Glos Users in South Glos Homes,Permanent Nursing,Beaufort Grange Care Home,735.68, 25-Aug-2020
265,Revenue,CAHD,South Glos Users in South Glos Homes,Permanent Nursing,Beaufort Grange Care Home,735.68, 25-Aug-2020
266,Revenue,CAHD,South Glos Users in South Glos Homes,Permanent Nursing,Beaufort Grange Care Home,735.68, 25-Aug-2020
267,Revenue,CAHD,South Glos Users in South Glos Homes,Permanent Nursing,Beaufort Grange Care Home,735.68, 25-Aug-2020
268,Revenue,CAHD,South Glos Users in South Glos Homes,Permanent Nursing,Beaufort Grange Care Home,735.68, 25-Aug-2020
269,Revenue,CAHD,South Glos Users in South Glos Homes,Permanent Nursing,Beaufort Grange Care Home,735.68, 25-Aug-2020
270,Revenue,CAHD,South Glos Users in South Glos Homes,Permanent Nursing,Beaufort Grange Care Home,735.68, 25-Aug-2020
271,Revenue,CAHD,South Glos Users in South Glos Homes,Permanent Nursing,Beaufort Grange Care Home,735.68, 25-Aug-2020
272,Revenue,CAHD,North - S117,Permanent Nursing,Beaufort Grange Care Home,4877.04, 25-Aug-2020
273,Revenue,CAHD,South Glos Users in South Glos Homes,Permanent Nursing,Beaufort Grange Care Home,735.68, 25-Aug-2020
274,Revenue,CAHD,South Glos Users in South Glos Homes,Permanent Nursing,Beaufort Grange Care Home,735.68, 25-Aug-2020
275,Revenue,CAHD,South Glos Users in South Glos Homes,Permanent Nursing,Beaufort Grange Care Home,735.68, 25-Aug-2020
276,Revenue,CAHD,Central - Commissioned Services,Fees & Charges Income - General,Beaufort Grange Care Home,867.41, 25-Aug-2020
277,Revenue,CAHD,South Glos Users in South Glos Homes,Permanent Nursing,Beaufort Grange Care Home,735.68, 25-Aug-2020
278,Revenue,CAHD,South Glos Users in South Glos Homes,Permanent Nursing,Beaufort Grange Care Home,735.68, 25-Aug-2020
279,Revenue,CAHD,South Glos Users in South Glos Homes,Permanent Nursing,Beaufort Grange Care Home,735.68, 25-Aug-2020
280,Revenue,CAHD,North - S117,Permanent Nursing,Beaufort Grange Care Home,5005.76, 25-Aug-2020
281,Revenue,CAHD,South Glos Users in South Glos Homes,Permanent Nursing,Beaufort Grange Care Home,735.68, 25-Aug-2020
282,Revenue,CAHD,Central - Commissioned Services,Respite Planned - Residential,Beaufort Grange Care Home,4932.32, 25-Aug-2020
283,Revenue,CAHD,South Glos Users in South Glos Homes,Permanent Nursing,Beaufort Grange Care Home,735.68, 25-Aug-2020
284,Revenue,CAHD,South Glos Users in South Glos Homes,Permanent Nursing,Beaufort Grange Care Home,735.68, 25-Aug-2020
285,Revenue,CAHD,South Glos Users in South Glos Homes,Permanent Nursing,Beaufort Grange Care Home,735.68, 25-Aug-2020
286,Revenue,CAHD,South Glos Users in South Glos Homes,Permanent Nursing,Beaufort Grange Care Home,735.68, 25-Aug-2020
287,Revenue,CAHD,South Glos Users in South Glos Homes,Permanent Nursing,Beaufort Grange Care Home,735.68, 25-Aug-2020
288,Revenue,CAHD,South Glos Users in South Glos Homes,Permanent Nursing,Beaufort Grange Care Home,735.68, 25-Aug-2020
289,Revenue,CAHD,South Glos Users in South Glos Homes,Permanent Nursing,Beaufort Grange Care Home,735.68, 25-Aug-2020
290,Revenue,CAHD,South Glos Users in South Glos Homes,Permanent Nursing,Beaufort Grange Care Home,735.68, 25-Aug-2020
291,Revenue,CAHD,South Glos Users in South Glos Homes,Permanent Nursing,Beaufort Grange Care Home,735.68, 25-Aug-2020
292,Revenue,CAHD,South Glos Users in South Glos Homes,Permanent Nursing,Beaufort Grange Care Home,735.68, 25-Aug-2020
293,Revenue,CAHD,South Glos Users in South Glos Homes,Permanent Nursing,Beaufort Grange Care Home,735.68, 25-Aug-2020
294,Revenue,CAHD,South Glos Users in South Glos Homes,Permanent Nursing,Beaufort Grange Care Home,735.68, 25-Aug-2020
295,Revenue,CAHD,South Glos Users in South Glos Homes,Permanent Nursing,Beaufort Grange Care Home,735.68, 25-Aug-2020
296,Revenue,CAHD,South Glos Users in South Glos Homes,Permanent Nursing,Beaufort Grange Care Home,735.68, 25-Aug-2020
297,Revenue,CAHD,South Glos Users in South Glos Homes,Permanent Nursing,Beaufort Grange Care Home,735.68, 25-Aug-2020
298,Revenue,CAHD,South Glos Users in South Glos Homes,Permanent Nursing,Beaufort Grange Care Home,735.68, 25-Aug-2020
299,Revenue,CAHD,South Glos Users in South Glos Homes,Permanent Nursing,Beaufort Grange Care Home,735.68, 25-Aug-2020
300,Revenue,CAHD,South Glos Users in South Glos Homes,Permanent Nursing,Beaufort Grange Care Home,735.68, 25-Aug-2020
301,Revenue,CAHD,South Glos Users in South Glos Homes,Permanent Nursing,Beaufort Grange Care Home,735.68, 25-Aug-2020
302,Revenue,CAHD,South Glos Users in South Glos Homes,Permanent Nursing,Beaufort Grange Care Home,735.68, 25-Aug-2020
303,Revenue,CAHD,South Glos Users in South Glos Homes,Permanent Nursing,Beaufort Grange Care Home,735.68, 25-Aug-2020
304,Revenue,CAHD,South Glos Users in South Glos Homes,Permanent Nursing,Beaufort Grange Care Home,735.68, 25-Aug-2020
305,Revenue,CAHD,South Glos Users in South Glos Homes,Permanent Nursing,Beaufort Grange Care Home,735.68, 25-Aug-2020
306,Revenue,CAHD,South Glos Users in South Glos Homes,Permanent Nursing,Beaufort Grange Care Home,735.68, 25-Aug-2020
307,Revenue,CAHD,South Glos Users in South Glos Homes,Permanent Nursing,Beaufort Grange Care Home,735.68, 25-Aug-2020
308,Revenue,CAHD,South Glos Users in South Glos Homes,Permanent Nursing,Beaufort Grange Care Home,735.68, 25-Aug-2020
309,Revenue,CAHD,North - Community based support,Permanent Nursing,Beaufort Grange Care Home,772.25, 25-Aug-2020
310,Revenue,CAHD,South Glos Users in South Glos Homes,Permanent Nursing,Beaufort Grange Care Home,735.68, 25-Aug-2020
311,Revenue,CAHD,North - Community based support,Permanent Residential,Beaufort House,2600.56, 25-Aug-2020
312,Revenue,CAHD,Central - Commissioned Services,Permanent Residential,Beaufort House,2924.56, 25-Aug-2020
313,Revenue,CAHD,Central - Commissioned Services,Permanent Residential,Beaufort House,2831.12, 25-Aug-2020
314,Revenue,CAHD,North - Community based support,Permanent Residential,Beaufort House,2622.84, 25-Aug-2020
315,Revenue,CAHD,South - Commissioned Services,Permanent Residential,Beaufort House,2587.56, 25-Aug-2020
316,Revenue,CAHD,Central - Commissioned Services,Permanent Residential,Beaufort House,3400.00, 25-Aug-2020
317,Revenue,CAHD,South - Commissioned Services,Permanent Residential,Beaufort House,3400.00, 25-Aug-2020
318,Revenue,CAHD,North - Community based support,Permanent Residential,Beaufort House,2753.92, 25-Aug-2020
319,Revenue,CAHD,South - Commissioned Services,Respite Emergency - Residential,Beaufort House,6300.00, 25-Aug-2020
320,Revenue,CAHD,Central - Bed Purchasing and Direct Payments,Permanent Residential,Beaufort House,3400.00, 25-Aug-2020
321,Revenue,CAHD,Covid � ASC - Infection Control,Grants to Voluntary Bodies,Beaufort House,2318.68, 04-Aug-2020
322,Revenue,CAHD,Covid � ASC - Infection Control,Grants to Voluntary Bodies,Beaufort House,13939.80, 04-Aug-2020
323,Revenue,CAHD,South - Commissioned Services,Permanent Residential,Beech House,3018.84, 25-Aug-2020
324,Revenue,CAHD,South Glos Users in South Glos Homes,Permanent Nursing,Beech House,735.68, 25-Aug-2020
325,Revenue,CAHD,South Glos Users in South Glos Homes,Permanent Nursing,Beech House,735.68, 25-Aug-2020
326,Revenue,CAHD,South Glos Users in South Glos Homes,Permanent Nursing,Beech House,735.68, 25-Aug-2020
327,Revenue,CAHD,Bed Purchasing - Southmead Hospital,Permanent Residential,Beech House,13451.43, 25-Aug-2020
328,Revenue,CAHD,Bed Purchasing - Southmead Hospital,Permanent Residential,Beech House,9171.43, 25-Aug-2020
329,Revenue,CAHD,Bed Purchasing - Southmead Hospital,Permanent Residential,Beech House,4280.00, 25-Aug-2020
330,Revenue,CAHD,Bed Purchasing - Southmead Hospital,Fees & Charges Income - General,Beech House,1849.99, 25-Aug-2020
331,Revenue,CAHD,South Glos Users in South Glos Homes,Permanent Nursing,Beech House,735.68, 25-Aug-2020
332,Revenue,CAHD,South Glos Users in South Glos Homes,Permanent Nursing,Beech House,735.68, 25-Aug-2020
333,Revenue,CAHD,South Glos Users in South Glos Homes,Permanent Nursing,Beech House,735.68, 25-Aug-2020
334,Revenue,CAHD,South Glos Users in South Glos Homes,Permanent Nursing,Beech House,735.68, 25-Aug-2020
335,Revenue,CAHD,North - Community based support,Permanent Nursing,Beech House,4368.88, 25-Aug-2020
336,Revenue,CAHD,South Glos Users in South Glos Homes,Permanent Nursing,Beech House,735.68, 25-Aug-2020
337,Revenue,CAHD,South Glos Users in South Glos Homes,Permanent Nursing,Beech House,735.68, 25-Aug-2020
338,Revenue,CAHD,South Glos Users in South Glos Homes,Permanent Nursing,Beech House,9427.64, 25-Aug-2020
339,Revenue,CAHD,South Glos Users in South Glos Homes,Permanent Nursing,Beech House,3441.93, 25-Aug-2020
340,Revenue,CAHD,South Glos Users in South Glos Homes,Permanent Nursing,Beech House,735.68, 25-Aug-2020
341,Revenue,CAHD,North - Community based support,Permanent Residential,Beech House,4360.00, 25-Aug-2020
342,Revenue,CAHD,North - Community based support,Permanent Residential,Beech House,3892.86, 25-Aug-2020
343,Revenue,CAHD,North - Community based support,Permanent Nursing,Beech House,4308.04, 25-Aug-2020
344,Revenue,CAHD,South Glos Users in South Glos Homes,Permanent Nursing,Beech House,735.68, 25-Aug-2020
345,Revenue,CAHD,South Glos Users in South Glos Homes,Permanent Nursing,Beech House,735.68, 25-Aug-2020
346,Revenue,CAHD,South Glos Users in South Glos Homes,Permanent Nursing,Beech House,735.68, 25-Aug-2020
347,Revenue,CAHD,South Glos Users in South Glos Homes,Permanent Nursing,Beech House,735.68, 25-Aug-2020
348,Revenue,CAHD,Covid � ASC - Infection Control,Grants to Voluntary Bodies,Beech House,4554.55, 04-Aug-2020
349,Revenue,CAHD,Covid � ASC - Infection Control,Grants to Voluntary Bodies,Beech House,27381.75, 04-Aug-2020
350,Revenue,CAHD,South Glos Users in South Glos Homes,Permanent Nursing,Beechwood Care Home,1044.00, 25-Aug-2020
351,Revenue,CAHD,South Glos Users in South Glos Homes,Permanent Nursing,Beechwood Care Home,4884.43, 25-Aug-2020
352,Revenue,CAHD,Central - Commissioned Services,Permanent Residential,Beechwood Court,15254.92, 25-Aug-2020
353,Revenue,CAHD,18-25 Year Olds,Permanent Residential,Beechwood Court,228054.00, 10-Aug-2020
354,Revenue,CAHD,CSC - Residential Placements,Permanent Residential,Beechwood Court Ltd,21794.66, 20-Aug-2020
355,Revenue,CAHD,Learning Difficulties PSL,Other Supplies & Services,Bethany Sage,3578.74, 11-Aug-2020
356,Revenue,CAHD,South - S117,Permanent Residential,Bidna House,3692.64, 25-Aug-2020
357,Revenue,CAHD,Statemented Support Payments to OLAs,Other L.A.s - General,Blaise High School,907.83, 26-Aug-2020
358,Revenue,CAHD,Pathway 1 - Re-Ablement Home Care,Other Small Contracts,Blakehill Healthcare Ltd,862.50, 07-Aug-2020
359,Revenue,CAHD,North - Community based support,Other Small Contracts,Blakehill Healthcare Ltd,787.50, 11-Aug-2020
360,Revenue,CAHD,North - Community based support,Other Small Contracts,Blakehill Healthcare Ltd,787.50, 11-Aug-2020
361,Revenue,CAHD,North - Community based support,Other Small Contracts,Blakehill Healthcare Ltd,787.50, 11-Aug-2020
362,Revenue,CAHD,South - Commissioned Services,Other Small Contracts,Blakehill Healthcare Ltd,787.50, 11-Aug-2020
363,Revenue,CAHD,South - Commissioned Services,Other Small Contracts,Blakehill Healthcare Ltd,787.50, 11-Aug-2020
364,Revenue,CAHD,South - Commissioned Services,Other Small Contracts,Blakehill Healthcare Ltd,787.50, 11-Aug-2020
365,Revenue,CAHD,South - Commissioned Services,Other Small Contracts,Blakehill Healthcare Ltd,787.50, 19-Aug-2020
366,Revenue,CAHD,North - Community based support,Other Small Contracts,Blakehill Healthcare Ltd,5241.60, 07-Aug-2020
367,Revenue,CAHD,Covid � ASC - Infection Control,Grants to Voluntary Bodies,Blakehill Healthcare Ltd,3015.10, 05-Aug-2020
368,Revenue,CAHD,Central - Commissioned Services,Other Small Contracts,Blakehill Healthcare Ltd,1075.00, 18-Aug-2020
369,Revenue,CAHD,Central - Commissioned Services,Other Small Contracts,Blakehill Healthcare Ltd,1075.00, 06-Aug-2020
370,Revenue,CAHD,Central - Commissioned Services,Other Small Contracts,Blakehill Healthcare Ltd,1062.50, 06-Aug-2020
371,Revenue,CAHD,Central - Commissioned Services,Other Small Contracts,Blakehill Healthcare Ltd,700.00, 18-Aug-2020
372,Revenue,CAHD,Central - Commissioned Services,Other Small Contracts,Blakehill Healthcare Ltd,700.00, 06-Aug-2020
373,Revenue,CAHD,Central - Commissioned Services,Other Small Contracts,Blakehill Healthcare Ltd,700.00, 06-Aug-2020
374,Revenue,CAHD,Central - Commissioned Services,Other Small Contracts,Blakehill Healthcare Ltd,700.00, 06-Aug-2020
375,Revenue,CAHD,South Glos Users in South Glos Homes,Permanent Nursing,Blossom Field,735.68, 25-Aug-2020
376,Revenue,CAHD,North - Community based support,Permanent Nursing,Blossom Field,4039.20, 25-Aug-2020
377,Revenue,CAHD,South Glos Users in South Glos Homes,Permanent Nursing,Blossom Field,735.68, 25-Aug-2020
378,Revenue,CAHD,South - Commissioned Services,Fees & Charges Income - General,Blossom Field,1021.44, 25-Aug-2020
379,Revenue,CAHD,South Glos Users in South Glos Homes,Permanent Nursing,Blossom Field,735.68, 25-Aug-2020
380,Revenue,CAHD,North - Community based support,Permanent Nursing,Blossom Field,4770.40, 25-Aug-2020
381,Revenue,CAHD,South Glos Users in South Glos Homes,Permanent Nursing,Blossom Field,735.68, 25-Aug-2020
382,Revenue,CAHD,North - Community based support,Permanent Nursing,Blossom Field,4352.80, 25-Aug-2020
383,Revenue,CAHD,South Glos Users in South Glos Homes,Permanent Nursing,Blossom Field,735.68, 25-Aug-2020
384,Revenue,CAHD,South Glos Users in South Glos Homes,Permanent Nursing,Blossom Field,735.68, 25-Aug-2020
385,Revenue,CAHD,South - Commissioned Services,Permanent Nursing,Blossom Field,4501.36, 25-Aug-2020
386,Revenue,CAHD,South Glos Users in South Glos Homes,Permanent Nursing,Blossom Field,735.68, 25-Aug-2020
387,Revenue,CAHD,South Glos Users in South Glos Homes,Permanent Nursing,Blossom Field,735.68, 25-Aug-2020
388,Revenue,CAHD,North - Community based support,Permanent Nursing,Blossom Field,3604.60, 25-Aug-2020
389,Revenue,CAHD,South Glos Users in South Glos Homes,Permanent Nursing,Blossom Field,735.68, 25-Aug-2020
390,Revenue,CAHD,South Glos Users in South Glos Homes,Permanent Nursing,Blossom Field,735.68, 25-Aug-2020
391,Revenue,CAHD,North - Community based support,Permanent Nursing,Blossom Field,4799.88, 25-Aug-2020
392,Revenue,CAHD,South Glos Users in South Glos Homes,Permanent Nursing,Blossom Field,735.68, 25-Aug-2020
393,Revenue,CAHD,South Glos Users in South Glos Homes,Permanent Nursing,Blossom Field,735.68, 25-Aug-2020
394,Revenue,CAHD,North - Community based support,Permanent Nursing,Blossom Field,4800.00, 25-Aug-2020
395,Revenue,CAHD,South Glos Users in South Glos Homes,Permanent Nursing,Blossom Field,735.68, 25-Aug-2020
396,Revenue,CAHD,South Glos Users in South Glos Homes,Permanent Nursing,Blossom Field,2023.12, 25-Aug-2020
397,Revenue,CAHD,South Glos Users in South Glos Homes,Permanent Nursing,Blossom Field,735.68, 25-Aug-2020
398,Revenue,CAHD,Central - Commissioned Services,Permanent Nursing,Blossom Field,4352.72, 25-Aug-2020
399,Revenue,CAHD,South Glos Users in South Glos Homes,Permanent Nursing,Blossom Field,735.68, 25-Aug-2020
400,Revenue,CAHD,South Glos Users in South Glos Homes,Permanent Nursing,Blossom Field,735.68, 25-Aug-2020
401,Revenue,CAHD,South - Commissioned Services,Permanent Nursing,Blossom Field,4039.20, 25-Aug-2020
402,Revenue,CAHD,South Glos Users in South Glos Homes,Permanent Nursing,Blossom Field,735.68, 25-Aug-2020
403,Revenue,CAHD,South Glos Users in South Glos Homes,Permanent Nursing,Blossom Field,735.68, 25-Aug-2020
404,Revenue,CAHD,Central - Commissioned Services,Permanent Nursing,Blossom Field,4039.20, 25-Aug-2020
405,Revenue,CAHD,South Glos Users in South Glos Homes,Permanent Nursing,Blossom Field,735.68, 25-Aug-2020
406,Revenue,CAHD,North - Community based support,Permanent Nursing,Blossom Field,5000.00, 25-Aug-2020
407,Revenue,CAHD,South Glos Users in South Glos Homes,Permanent Nursing,Blossom Field,735.68, 25-Aug-2020
408,Revenue,CAHD,South Glos Users in South Glos Homes,Permanent Nursing,Blossom Field,735.68, 25-Aug-2020
409,Revenue,CAHD,South Glos Users in South Glos Homes,Permanent Nursing,Blossom Field,1734.10, 25-Aug-2020
410,Revenue,CAHD,South Glos Users in South Glos Homes,Permanent Nursing,Blossom Field,735.68, 25-Aug-2020
411,Revenue,CAHD,Central - Commissioned Services,Permanent Nursing,Blossom Field,4400.00, 25-Aug-2020
412,Revenue,CAHD,South Glos Users in South Glos Homes,Permanent Nursing,Blossom Field,735.68, 25-Aug-2020
413,Revenue,CAHD,North - Community based support,Permanent Nursing,Blossom Field,4039.20, 25-Aug-2020
414,Revenue,CAHD,South Glos Users in South Glos Homes,Permanent Nursing,Blossom Field,735.68, 25-Aug-2020
415,Revenue,CAHD,South Glos Users in South Glos Homes,Permanent Nursing,Blossom Field,735.68, 25-Aug-2020
416,Revenue,CAHD,North - Community based support,Permanent Nursing,Blossom Field,3707.64, 25-Aug-2020
417,Revenue,CAHD,South Glos Users in South Glos Homes,Permanent Nursing,Blossom Field,735.68, 25-Aug-2020
418,Revenue,CAHD,Covid � ASC - Infection Control,Grants to Voluntary Bodies,Blossom Field,3560.83, 04-Aug-2020
419,Revenue,CAHD,Covid � ASC - Infection Control,Grants to Voluntary Bodies,Blossom Field,21407.55, 04-Aug-2020
420,Revenue,CAHD,North - Community based support,Permanent Residential,Bluebells,3699.60, 25-Aug-2020
421,Revenue,CAHD,Pathway 1 - Re-Ablement Home Care,Other Small Contracts,Bluebird Care (South Gloucestershire),989.05, 07-Aug-2020
422,Revenue,CAHD,Pathway 1 - Re-Ablement Home Care,Other Small Contracts,Bluebird Care (South Gloucestershire),981.50, 20-Aug-2020
423,Revenue,CAHD,Pathway 1 - Re-Ablement Home Care,Other Small Contracts,Bluebird Care (South Gloucestershire),973.95, 19-Aug-2020
424,Revenue,CAHD,Covid 19 -Adult Social Care,Other Small Contracts,Bluebird Care (South Gloucestershire),37.75, 04-Aug-2020
425,Revenue,CAHD,Central - Commissioned Services,Other Small Contracts,Bluebird Care (South Gloucestershire),8107.52, 04-Aug-2020
426,Revenue,CAHD,South - Commissioned Services,Other Small Contracts,Bluebird Care (South Gloucestershire),5013.44, 04-Aug-2020
427,Revenue,CAHD,North - Community based support,Other Small Contracts,Bluebird Care (South Gloucestershire),4293.14, 04-Aug-2020
428,Revenue,CAHD,Resilience Team,Other Small Contracts,Bluebird Care (South Gloucestershire),130.90, 04-Aug-2020
429,Revenue,CAHD,Covid 19 -Adult Social Care,Other Small Contracts,Bluebird Care (South Gloucestershire),30.20, 11-Aug-2020
430,Revenue,CAHD,Central - Commissioned Services,Other Small Contracts,Bluebird Care (South Gloucestershire),8383.65, 11-Aug-2020
431,Revenue,CAHD,South - Commissioned Services,Other Small Contracts,Bluebird Care (South Gloucestershire),4950.79, 11-Aug-2020
432,Revenue,CAHD,North - Community based support,Other Small Contracts,Bluebird Care (South Gloucestershire),4113.74, 11-Aug-2020
433,Revenue,CAHD,Covid 19 -Adult Social Care,Other Small Contracts,Bluebird Care (South Gloucestershire),30.20, 11-Aug-2020
434,Revenue,CAHD,Central - Commissioned Services,Other Small Contracts,Bluebird Care (South Gloucestershire),8245.50, 11-Aug-2020
435,Revenue,CAHD,South - Commissioned Services,Other Small Contracts,Bluebird Care (South Gloucestershire),4198.89, 11-Aug-2020
436,Revenue,CAHD,North - Community based support,Other Small Contracts,Bluebird Care (South Gloucestershire),4038.24, 11-Aug-2020
437,Revenue,CAHD,Covid 19 -Adult Social Care,Other Small Contracts,Bluebird Care (South Gloucestershire),45.30, 19-Aug-2020
438,Revenue,CAHD,Central - Commissioned Services,Other Small Contracts,Bluebird Care (South Gloucestershire),8597.45, 19-Aug-2020
439,Revenue,CAHD,South - Commissioned Services,Other Small Contracts,Bluebird Care (South Gloucestershire),3650.19, 19-Aug-2020
440,Revenue,CAHD,North - Community based support,Other Small Contracts,Bluebird Care (South Gloucestershire),4272.29, 19-Aug-2020
441,Revenue,CAHD,Covid 19 -Adult Social Care,Other Small Contracts,Bluebird Care (South Gloucestershire),52.85, 28-Aug-2020
442,Revenue,CAHD,Central - Commissioned Services,Other Small Contracts,Bluebird Care (South Gloucestershire),8998.25, 28-Aug-2020
443,Revenue,CAHD,South - Commissioned Services,Other Small Contracts,Bluebird Care (South Gloucestershire),3827.07, 28-Aug-2020
444,Revenue,CAHD,North - Community based support,Other Small Contracts,Bluebird Care (South Gloucestershire),4268.19, 28-Aug-2020
445,Revenue,CAHD,Covid � ASC - Infection Control,Grants to Voluntary Bodies,Bluebird Care (South Gloucestershire),8771.20, 05-Aug-2020
446,Revenue,CAHD,Sexual Health,Other Small Contracts,Boots UK Ltd,2031.85, 06-Aug-2020
447,Revenue,CAHD,Drug and Alcohol Programme,Other Small Contracts,Boots UK Ltd,3475.00, 06-Aug-2020
448,Revenue,CAHD,S28A cases,Permanent Residential,Bradbury House,6505.16, 25-Aug-2020
449,Revenue,CAHD,North - Community based support,Permanent Residential,Bradbury House,44715.36, 25-Aug-2020
450,Revenue,CAHD,North - Community based support,Permanent Residential,Bradbury House,10016.24, 25-Aug-2020
451,Revenue,CAHD,North - Community based support,Fees & Charges Income - General,Bradbury House,1903.50, 25-Aug-2020
452,Revenue,CAHD,North - S117,Permanent Residential,Bradbury House,5740.24, 25-Aug-2020
453,Revenue,CAHD,Jointly Funded H&SC Packages,Permanent Residential,Bradbury House,7927.00, 25-Aug-2020
454,Revenue,CAHD,South - Commissioned Services,Permanent Residential,Bradbury House,9777.00, 25-Aug-2020
455,Revenue,CAHD,Sexual Health,Other Small Contracts,Bradley Stoke Surgery,1824.67, 04-Aug-2020
456,Revenue,CAHD,Sexual Health,Other Small Contracts,Bradley Stoke Surgery,2133.55, 04-Aug-2020
457,Revenue,CAHD,NHS Health Checks,Other Small Contracts,Bradley Stoke Surgery,3007.21, 04-Aug-2020
458,Revenue,CAHD,Drug and Alcohol Programme,Other Small Contracts,Bradley Stoke Surgery,1082.67, 04-Aug-2020
459,Revenue,CAHD,North - Community based support,Permanent Residential,Breadstone House Care Centre,2088.68, 25-Aug-2020
460,Revenue,CAHD,Mental Health  Projects,Other Supplies & Services,Brentry & Henbury Childrens Centre,1051.00, 24-Aug-2020
461,Revenue,CAHD,Social Lettings Agency,Rent,Individual,766.10, 03-Aug-2020
462,Revenue,CAHD,Social Lettings Agency,Fees - General,Individual,8.15, 03-Aug-2020
463,Revenue,CAHD,North - bed purchasing and direct  payments,Permanent Residential,Bridge House Care Home,2740.00, 25-Aug-2020
464,Revenue,CAHD,North - Community based support,Permanent Residential,Bridge House Care Home,9968.00, 25-Aug-2020
465,Revenue,CAHD,North - Community based support,Permanent Residential,Bridge House Care Home,2848.00, 25-Aug-2020
466,Revenue,CAHD,North - Community based support,Permanent Residential,Bridge House Care Home,3254.86, 25-Aug-2020
467,Revenue,CAHD,North - Community based support,Permanent Residential,Bridge House Care Home,2678.04, 25-Aug-2020
468,Revenue,CAHD,North - Community based support,Permanent Residential,Bridge House Care Home,2848.00, 25-Aug-2020
469,Revenue,CAHD,Covid � ASC - Infection Control,Grants to Voluntary Bodies,Bridge House Care Home,1324.96, 04-Aug-2020
470,Revenue,CAHD,Covid � ASC - Infection Control,Grants to Voluntary Bodies,Bridge House Care Home,7965.60, 04-Aug-2020
471,Revenue,CAHD,North - Community based support,Permanent Residential,Bridgwater Court Care Home,10773.64, 25-Aug-2020
472,Revenue,CAHD,Education Psychology,Training Expenses,Brighton & Hove Council,700.00, 26-Aug-2020
473,Revenue,CAHD,Statemented Support Academies,Other Public Bodies,Bristol & South Gloucestershire UTC,1556.28, 27-Aug-2020
474,Revenue,CAHD,Sexual Health,Other Small Contracts,Bristol City Council,235634.00, 20-Aug-2020
475,Revenue,CAHD,Placements OLA Special Schools and RB,Other L.A.s - General,Bristol City Council - Schools,2578.00, 26-Aug-2020
476,Revenue,CAHD,Placements OLA Special Schools and RB,Other L.A.s - General,Bristol City Council - Schools,1381.00, 26-Aug-2020
477,Revenue,CAHD,Statemented Support Payments to OLAs,Other L.A.s - General,Bristol City Council - Schools,1379.43, 26-Aug-2020
478,Revenue,CAHD,Placements OLA Special Schools and RB,Other L.A.s - General,Bristol City Council - Schools,914.33, 26-Aug-2020
479,Revenue,CAHD,Placements OLA Special Schools and RB,Other L.A.s - General,Bristol City Council - Schools,1305.58, 26-Aug-2020
480,Revenue,CAHD,Statemented Support Payments to OLAs,Other L.A.s - General,Bristol City Council - Schools,554.13, 26-Aug-2020
481,Revenue,CAHD,Statemented Support Payments to OLAs,Other L.A.s - General,Bristol City Council - Schools,660.24, 26-Aug-2020
482,Revenue,CAHD,Placements OLA Special Schools and RB,Other L.A.s - General,Bristol City Council - Schools,3356.33, 26-Aug-2020
483,Revenue,CAHD,Placements OLA Special Schools and RB,Other L.A.s - General,Bristol City Council - Schools,2722.50, 26-Aug-2020
484,Revenue,CAHD,Placements OLA Special Schools and RB,Other L.A.s - General,Bristol City Council - Schools,1275.67, 26-Aug-2020
485,Revenue,CAHD,Statemented Support Payments to OLAs,Other L.A.s - General,Bristol City Council - Schools,9450.48, 26-Aug-2020
486,Revenue,CAHD,Placements OLA Special Schools and RB,Other L.A.s - General,Bristol City Council - Schools,2578.00, 26-Aug-2020
487,Revenue,CAHD,Placements OLA Special Schools and RB,Other L.A.s - General,Bristol City Council - Schools,1381.00, 26-Aug-2020
488,Revenue,CAHD,Placements OLA Special Schools and RB,Other L.A.s - General,Bristol City Council - Schools,2050.17, 26-Aug-2020
489,Revenue,CAHD,Placements OLA Special Schools and RB,Other L.A.s - General,Bristol City Council - Schools,1381.00, 26-Aug-2020
490,Revenue,CAHD,Placements OLA Special Schools and RB,Other L.A.s - General,Bristol City Council - Schools,1381.00, 26-Aug-2020
491,Revenue,CAHD,Placements OLA Special Schools and RB,Other L.A.s - General,Bristol City Council - Schools,2050.17, 26-Aug-2020
492,Revenue,CAHD,Placements OLA Special Schools and RB,Other L.A.s - General,Bristol City Council - Schools,1675.30, 26-Aug-2020
493,Revenue,CAHD,Placements OLA Special Schools and RB,Other L.A.s - General,Bristol City Council - Schools,1976.78, 26-Aug-2020
494,Revenue,CAHD,Placements OLA Special Schools and RB,Other L.A.s - General,Bristol City Council - Schools,914.33, 26-Aug-2020
495,Revenue,CAHD,Placements OLA Special Schools and RB,Other L.A.s - General,Bristol City Council - Schools,2722.50, 26-Aug-2020
496,Revenue,CAHD,Placements OLA Special Schools and RB,Other L.A.s - General,Bristol City Council - Schools,1975.67, 26-Aug-2020
497,Revenue,CAHD,Placements OLA Special Schools and RB,Other L.A.s - General,Bristol City Council - Schools,2722.50, 26-Aug-2020
498,Revenue,CAHD,Placements OLA Special Schools and RB,Other L.A.s - General,Bristol City Council - Schools,883.50, 26-Aug-2020
499,Revenue,CAHD,Placements OLA Special Schools and RB,Other L.A.s - General,Bristol City Council - Schools,4107.54, 26-Aug-2020
500,Revenue,CAHD,Placements OLA Special Schools and RB,Other L.A.s - General,Bristol City Council - Schools,777.50, 26-Aug-2020
501,Revenue,CAHD,Placements OLA Special Schools and RB,Other L.A.s - General,Bristol City Council - Schools,1031.20, 26-Aug-2020
502,Revenue,CAHD,Placements OLA Special Schools and RB,Other L.A.s - General,Bristol City Council - Schools,2783.92, 26-Aug-2020
503,Revenue,CAHD,Statemented Support Payments to OLAs,Other L.A.s - General,Bristol City Council - Schools,748.68, 26-Aug-2020
504,Revenue,CAHD,Placements OLA Special Schools and RB,Other L.A.s - General,Bristol City Council - Schools,2578.00, 26-Aug-2020
505,Revenue,CAHD,Placements OLA Special Schools and RB,Other L.A.s - General,Bristol City Council - Schools,809.00, 26-Aug-2020
506,Revenue,CAHD,Placements OLA Special Schools and RB,Other L.A.s - General,Bristol City Council - Schools,3356.33, 26-Aug-2020
507,Revenue,CAHD,Placements OLA Special Schools and RB,Other L.A.s - General,Bristol City Council - Schools,3405.92, 26-Aug-2020
508,Revenue,CAHD,Placements OLA Special Schools and RB,Other L.A.s - General,Bristol City Council - Schools,2062.40, 26-Aug-2020
509,Revenue,CAHD,Placements OLA Special Schools and RB,Other L.A.s - General,Bristol City Council - Schools,2578.00, 26-Aug-2020
510,Revenue,CAHD,Placements OLA Special Schools and RB,Other L.A.s - General,Bristol City Council - Schools,2828.50, 26-Aug-2020
511,Revenue,CAHD,Placements OLA Special Schools and RB,Other L.A.s - General,Bristol City Council - Schools,1381.00, 26-Aug-2020
512,Revenue,CAHD,Placements OLA Special Schools and RB,Other L.A.s - General,Bristol City Council - Schools,1305.58, 26-Aug-2020
513,Revenue,CAHD,Statemented Support Payments to OLAs,Other L.A.s - General,Broadlands Academy,1332.27, 26-Aug-2020
514,Revenue,CAHD,Parent Partnership,Fees - General,Individual,430.00, 12-Aug-2020
515,Revenue,CAHD,South Glos Users in South Glos Homes,Permanent Nursing,Brunelcare,814.50, 28-Aug-2020
516,Revenue,CAHD,South - Commissioned Services,Permanent Nursing,Brunelcare,3742.46, 28-Aug-2020
517,Revenue,CAHD,South Glos Users in South Glos Homes,Permanent Nursing,Brunelcare,814.50, 28-Aug-2020
518,Revenue,CAHD,North - S117,Permanent Nursing,Brunelcare,3742.46, 28-Aug-2020
519,Revenue,CAHD,South Glos Users in South Glos Homes,Permanent Nursing,Brunelcare,814.50, 28-Aug-2020
520,Revenue,CAHD,North - S117,Permanent Nursing,Brunelcare,3742.46, 28-Aug-2020
521,Revenue,CAHD,South Glos Users in South Glos Homes,Permanent Nursing,Brunelcare,814.50, 28-Aug-2020
522,Revenue,CAHD,South - Commissioned Services,Permanent Nursing,Brunelcare,2717.59, 28-Aug-2020
523,Revenue,CAHD,South Glos Users in South Glos Homes,Permanent Nursing,Brunelcare,814.50, 28-Aug-2020
524,Revenue,CAHD,South - Commissioned Services,Permanent Nursing,Brunelcare,2889.25, 28-Aug-2020
525,Revenue,CAHD,South Glos Users in South Glos Homes,Permanent Nursing,Brunelcare,814.50, 28-Aug-2020
526,Revenue,CAHD,North - Community based support,Permanent Nursing,Brunelcare,3742.46, 28-Aug-2020
527,Revenue,CAHD,South Glos Users in South Glos Homes,Permanent Nursing,Brunelcare,814.50, 28-Aug-2020
528,Revenue,CAHD,North - Community based support,Permanent Nursing,Brunelcare,2994.12, 28-Aug-2020
529,Revenue,CAHD,South Glos Users in South Glos Homes,Permanent Nursing,Brunelcare,814.50, 28-Aug-2020
530,Revenue,CAHD,South - Commissioned Services,Permanent Nursing,Brunelcare,3010.76, 28-Aug-2020
531,Revenue,CAHD,South Glos Users in South Glos Homes,Permanent Nursing,Brunelcare,814.50, 28-Aug-2020
532,Revenue,CAHD,North - Community based support,Permanent Nursing,Brunelcare,2983.04, 28-Aug-2020
533,Revenue,CAHD,South Glos Users in South Glos Homes,Permanent Nursing,Brunelcare,814.50, 28-Aug-2020
534,Revenue,CAHD,Central - Commissioned Services,Permanent Nursing,Brunelcare,3070.46, 28-Aug-2020
535,Revenue,CAHD,South Glos Users in South Glos Homes,Permanent Nursing,Brunelcare,814.50, 28-Aug-2020
536,Revenue,CAHD,South - Commissioned Services,Permanent Nursing,Brunelcare,2704.49, 28-Aug-2020
537,Revenue,CAHD,South Glos Users in South Glos Homes,Permanent Nursing,Brunelcare,814.50, 28-Aug-2020
538,Revenue,CAHD,South - Commissioned Services,Permanent Nursing,Brunelcare,3117.45, 28-Aug-2020
539,Revenue,CAHD,South Glos Users in South Glos Homes,Permanent Nursing,Brunelcare,814.50, 28-Aug-2020
540,Revenue,CAHD,South - Commissioned Services,Permanent Nursing,Brunelcare,2154.99, 28-Aug-2020
541,Revenue,CAHD,South - Commissioned Services,Respite Planned - Nursing,Brunelcare,965.79, 28-Aug-2020
542,Revenue,CAHD,South - Commissioned Services,Respite Emergency - Nursing,Brunelcare,3380.97, 28-Aug-2020
543,Revenue,CAHD,South - Commissioned Services,Respite Planned - Nursing,Brunelcare,845.07, 11-Aug-2020
544,Revenue,CAHD,South - Commissioned Services,Respite Emergency - Nursing,Brunelcare,3380.97, 11-Aug-2020
545,Revenue,CAHD,South - Commissioned Services,Other Small Contracts,Brunelcare,16762.80, 04-Aug-2020
546,Revenue,CAHD,North - Community based support,Other Small Contracts,Brunelcare,361.12, 04-Aug-2020
547,Revenue,CAHD,South - Commissioned Services,Other Small Contracts,Brunelcare,16352.88, 27-Aug-2020
548,Revenue,CAHD,North - Community based support,Other Small Contracts,Brunelcare,366.00, 27-Aug-2020
549,Revenue,CAHD,South - Commissioned Services,Other Small Contracts,Brunelcare,16679.84, 27-Aug-2020
550,Revenue,CAHD,North - Community based support,Other Small Contracts,Brunelcare,361.12, 27-Aug-2020
551,Revenue,CAHD,Covid � ASC - Infection Control,Grants to Voluntary Bodies,Brunelcare,15349.60, 05-Aug-2020
552,Revenue,CAHD,North - S117,Permanent Residential,Buckland Care,3600.00, 25-Aug-2020
553,Revenue,CAHD,Central - Commissioned Services,Permanent Nursing,Bupa Care Services  Bridge House,3600.00, 25-Aug-2020
554,Revenue,CAHD,Alexandra Way,Mechanical & Electrical Maintenance,BWS Standfast Fire & Security Systems,3044.00, 17-Aug-2020
555,Revenue,CAHD,CSC - Agency Fostering,Foster Parent Allowances,By the Bridge Ltd,4236.90, 27-Aug-2020
556,Revenue,CAHD,CSC - Agency Fostering,Foster Parent Allowances,By the Bridge Ltd,4360.15, 27-Aug-2020
557,Revenue,CAHD,Social Lettings Agency,Rent,Individual,710.96, 26-Aug-2020
558,Revenue,CAHD,Social Lettings Agency,Fees - General,Individual,16.16, 26-Aug-2020
559,Revenue,CAHD,Statemented Support Payments to OLAs,Other L.A.s - General,Cabot Learning Federation,1544.49, 26-Aug-2020
560,Revenue,CAHD,Statemented Support Academies,Other Public Bodies,Cabot Learning Federation,918.71, 27-Aug-2020
561,Revenue,CAHD,Statemented Support Academies,Other Public Bodies,Cabot Learning Federation,1202.39, 27-Aug-2020
562,Revenue,CAHD,Statemented Support Academies,Other Public Bodies,Cabot Learning Federation,908.00, 27-Aug-2020
563,Revenue,CAHD,Statemented Support Academies,Other Public Bodies,Cabot Learning Federation,518.76, 27-Aug-2020
564,Revenue,CAHD,Statemented Support Academies,Other Public Bodies,Cabot Learning Federation,907.83, 27-Aug-2020
565,Revenue,CAHD,Statemented Support Academies,Other Public Bodies,Cabot Learning Federation,554.13, 27-Aug-2020
566,Revenue,CAHD,Statemented Support Academies,Other Public Bodies,Cabot Learning Federation,565.92, 27-Aug-2020
567,Revenue,CAHD,Statemented Support Academies,Other Public Bodies,Cabot Learning Federation,1048.67, 27-Aug-2020
568,Revenue,CAHD,Statemented Support Academies,Other Public Bodies,Cabot Learning Federation,2616.63, 27-Aug-2020
569,Revenue,CAHD,Statemented Support Payments to OLAs,Other L.A.s - General,Cabot Learning Federation,1013.94, 26-Aug-2020
570,Revenue,CAHD,Statemented Support Academies,Other Public Bodies,Cabot Learning Federation,695.61, 27-Aug-2020
571,Revenue,CAHD,Statemented Support Academies,Other Public Bodies,Cabot Learning Federation,530.55, 27-Aug-2020
572,Revenue,CAHD,Statemented Support Academies,Other Public Bodies,Cabot Learning Federation,918.75, 27-Aug-2020
573,Revenue,CAHD,Statemented Support Academies,Other Public Bodies,Cabot Learning Federation,975.58, 27-Aug-2020
574,Revenue,CAHD,Academy Resource Base Funding,Other Public Bodies,Cabot Learning Federation,1175.87, 21-Aug-2020
575,Revenue,CAHD,Academy Resource Base Funding,Other Public Bodies,Cabot Learning Federation,1702.96, 21-Aug-2020
576,Revenue,CAHD,Academy Resource Base Funding,Other Public Bodies,Cabot Learning Federation,1540.83, 21-Aug-2020
577,Revenue,CAHD,Academy Resource Base Funding,Other Public Bodies,Cabot Learning Federation,1175.87, 21-Aug-2020
578,Revenue,CAHD,Academy Resource Base Funding,Other Public Bodies,Cabot Learning Federation,1175.87, 21-Aug-2020
579,Revenue,CAHD,Academy Resource Base Funding,Other Public Bodies,Cabot Learning Federation,1702.96, 21-Aug-2020
580,Revenue,CAHD,Academy Resource Base Funding,Other Public Bodies,Cabot Learning Federation,1540.83, 21-Aug-2020
581,Revenue,CAHD,Academy Resource Base Funding,Other Public Bodies,Cabot Learning Federation,1175.87, 21-Aug-2020
582,Revenue,CAHD,Academy Resource Base Funding,Other Public Bodies,Cabot Learning Federation,1540.83, 21-Aug-2020
583,Revenue,CAHD,Academy Resource Base Funding,Other Public Bodies,Cabot Learning Federation,1175.87, 21-Aug-2020
584,Revenue,CAHD,Academy Resource Base Funding,Other Public Bodies,Cabot Learning Federation,1175.87, 21-Aug-2020
585,Revenue,CAHD,Academy Resource Base Funding,Other Public Bodies,Cabot Learning Federation,1702.96, 21-Aug-2020
586,Revenue,CAHD,Academy Resource Base Funding,Other Public Bodies,Cabot Learning Federation,648.70, 21-Aug-2020
587,Revenue,CAHD,Academy Resource Base Funding,Other Public Bodies,Cabot Learning Federation,1013.74, 21-Aug-2020
588,Revenue,CAHD,Academy Resource Base Funding,Other Public Bodies,Cabot Learning Federation,648.70, 21-Aug-2020
589,Revenue,CAHD,Academy Resource Base Funding,Other Public Bodies,Cabot Learning Federation,1540.83, 21-Aug-2020
590,Revenue,CAHD,Academy Resource Base Funding,Other Public Bodies,Cabot Learning Federation,2189.53, 21-Aug-2020
591,Revenue,CAHD,Academy Resource Base Funding,Other Public Bodies,Cabot Learning Federation,2189.53, 21-Aug-2020
592,Revenue,CAHD,Academy Resource Base Funding,Other Public Bodies,Cabot Learning Federation,1175.87, 21-Aug-2020
593,Revenue,CAHD,Academy Resource Base Funding,Other Public Bodies,Cabot Learning Federation,5095.92, 04-Aug-2020
594,Revenue,CAHD,Statemented Support Payments to OLAs,Other L.A.s - General,Cabot Learning Federation,872.46, 26-Aug-2020
595,Revenue,CAHD,Statemented Support Academies,Other Public Bodies,Cabot Learning Federation,804.08, 27-Aug-2020
596,Revenue,CAHD,Statemented Support Academies,Other Public Bodies,Cabot Learning Federation,554.13, 27-Aug-2020
597,Revenue,CAHD,Statemented Support Academies,Other Public Bodies,Cabot Learning Federation,742.77, 27-Aug-2020
598,Revenue,CAHD,Statemented Support Academies,Other Public Bodies,Cabot Learning Federation,778.14, 27-Aug-2020
599,Revenue,CAHD,Statemented Support Academies,Other Public Bodies,Cabot Learning Federation,943.20, 27-Aug-2020
600,Revenue,CAHD,Statemented Support Academies,Other Public Bodies,Cabot Learning Federation,813.51, 27-Aug-2020
601,Revenue,CAHD,Statemented Support Payments to OLAs,Other L.A.s - General,Cabot Learning Federation,601.29, 26-Aug-2020
602,Revenue,CAHD,Statemented Support Academies,Other Public Bodies,Cabot Learning Federation,860.67, 27-Aug-2020
603,Revenue,CAHD,Statemented Support Academies,Other Public Bodies,Cabot Learning Federation,589.50, 27-Aug-2020
604,Revenue,CAHD,Statemented Support Academies,Other Public Bodies,Cabot Learning Federation,4951.80, 27-Aug-2020
605,Revenue,CAHD,Statemented Support Academies,Other Public Bodies,Cabot Learning Federation,801.72, 27-Aug-2020
606,Revenue,CAHD,Statemented Support Academies,Other Public Bodies,Cabot Learning Federation,1096.47, 27-Aug-2020
607,Revenue,CAHD,Statemented Support Academies,Other Public Bodies,Cabot Learning Federation,730.98, 27-Aug-2020
608,Revenue,CAHD,Statemented Support Academies,Other Public Bodies,Cabot Learning Federation,907.83, 27-Aug-2020
609,Revenue,CAHD,Statemented Support Academies,Other Public Bodies,Cabot Learning Federation,530.55, 27-Aug-2020
610,Revenue,CAHD,Statemented Support Payments to OLAs,Other L.A.s - General,Cabot Learning Federation,36953.30, 26-Aug-2020
611,Revenue,CAHD,Statemented Support Payments to OLAs,Other L.A.s - General,Cabot Learning Federation,1072.89, 26-Aug-2020
612,Revenue,CAHD,Statemented Support Academies,Other Public Bodies,Cabot Learning Federation,1296.90, 27-Aug-2020
613,Revenue,CAHD,Statemented Support Academies,Other Public Bodies,Cabot Learning Federation,872.46, 27-Aug-2020
614,Revenue,CAHD,Sexual Health,Other Small Contracts,Cadbury Heath Healthcare,1288.00, 04-Aug-2020
615,Revenue,CAHD,Sexual Health,Other Small Contracts,Cadbury Heath Healthcare,1293.90, 04-Aug-2020
616,Revenue,CAHD,NHS Health Checks,Other Small Contracts,Cadbury Heath Healthcare,2514.67, 04-Aug-2020
617,Revenue,CAHD,Drug and Alcohol Programme,Other Small Contracts,Cadbury Heath Healthcare,3045.00, 04-Aug-2020
618,Revenue,CAHD,Early Years High Needs Support,Other Private Contractors,Caerleon Childcare,515.71, 26-Aug-2020
619,Revenue,CAHD,North - Community based support,Permanent Nursing,Caernarvon House,4800.00, 25-Aug-2020
620,Revenue,CAHD,North - Community based support,Permanent Nursing,Caernarvon House,4710.40, 25-Aug-2020
621,Revenue,CAHD,South - Commissioned Services,Permanent Nursing,Caernarvon House,1177.60, 25-Aug-2020
622,Revenue,CAHD,North - S117,Permanent Nursing,Caernarvon House,3990.24, 25-Aug-2020
623,Revenue,CAHD,South - Commissioned Services,Permanent Nursing,Caernarvon House,4915.20, 25-Aug-2020
624,Revenue,CAHD,South - Commissioned Services,Permanent Nursing,Caernarvon House,4800.00, 25-Aug-2020
625,Revenue,CAHD,South - Commissioned Services,Permanent Nursing,Caernarvon House,4300.80, 25-Aug-2020
626,Revenue,CAHD,South - S117,Permanent Nursing,Caernarvon House,4915.20, 25-Aug-2020
627,Revenue,CAHD,South - Commissioned Services,Respite Emergency - Residential,Caernarvon House,4800.00, 25-Aug-2020
628,Revenue,CAHD,CSC - Residential Placements,Permanent Residential,Cambian Childcare Ltd,19928.66, 13-Aug-2020
629,Revenue,CAHD,CSC - Residential Placements,Permanent Residential,Cambian Childcare Ltd,19042.99, 13-Aug-2020
630,Revenue,CAHD,CSC - Residential Placements,Permanent Residential,Cambian Childcare Ltd,23250.00, 13-Aug-2020
631,Revenue,CAHD,North - Community based support,Day Care / Social Activities,Camphill Communities Thornbury Limited,777.63, 10-Aug-2020
632,Revenue,CAHD,North - Community based support,Other Small Contracts,Camphill Communities Thornbury Limited,681.03, 10-Aug-2020
633,Revenue,CAHD,North - Community based support,Supported Living,Camphill Communities Thornbury Limited,1057.77, 10-Aug-2020
634,Revenue,CAHD,North - Community based support,Day Care / Social Activities,Camphill Communities Thornbury Limited,772.80, 19-Aug-2020
635,Revenue,CAHD,North - Community based support,Other Small Contracts,Camphill Communities Thornbury Limited,681.03, 19-Aug-2020
636,Revenue,CAHD,North - Community based support,Supported Living,Camphill Communities Thornbury Limited,1067.43, 19-Aug-2020
637,Revenue,CAHD,North - Community based support,Day Care / Social Activities,Camphill Communities Thornbury Limited,854.91, 20-Aug-2020
638,Revenue,CAHD,North - Community based support,Other Small Contracts,Camphill Communities Thornbury Limited,676.20, 20-Aug-2020
639,Revenue,CAHD,North - Community based support,Supported Living,Camphill Communities Thornbury Limited,1072.26, 20-Aug-2020
640,Revenue,CAHD,North - Community based support,Day Care / Social Activities,Camphill Communities Thornbury Limited,729.33, 26-Aug-2020
641,Revenue,CAHD,North - Community based support,Other Small Contracts,Camphill Communities Thornbury Limited,671.37, 26-Aug-2020
642,Revenue,CAHD,North - Community based support,Supported Living,Camphill Communities Thornbury Limited,1067.43, 26-Aug-2020
643,Revenue,CAHD,North - S117,Permanent Residential,Canjayor,3937.76, 25-Aug-2020
644,Revenue,CAHD,Central - Commissioned Services,Other Small Contracts,Care 1st Homecare,3008.20, 10-Aug-2020
645,Revenue,CAHD,North - Community based support,Supported Living,Care Horizons,5435.28, 25-Aug-2020
646,Revenue,CAHD,North - Community based support,Supported Living,Care Horizons,5435.28, 25-Aug-2020
647,Revenue,CAHD,18-25 Year Olds,Other Small Contracts,Care Horizons Limited,78.88, 05-Aug-2020
648,Revenue,CAHD,Central - Commissioned Services,Other Small Contracts,Care Horizons Limited,517.65, 05-Aug-2020
649,Revenue,CAHD,South - Commissioned Services,Other Small Contracts,Care Horizons Limited,216.92, 05-Aug-2020
650,Revenue,CAHD,North - Community based support,Day Care / Social Activities,Care Horizons Limited,409.19, 05-Aug-2020
651,Revenue,CAHD,North - Community based support,Other Small Contracts,Care Horizons Limited,650.76, 05-Aug-2020
652,Revenue,CAHD,Younger MH non-res purchasing,Other Small Contracts,Care Horizons Limited,157.76, 05-Aug-2020
653,Revenue,CAHD,Central - Commissioned Services,Other Small Contracts,Care Horizons Limited,552.16, 10-Aug-2020
654,Revenue,CAHD,South - Commissioned Services,Other Small Contracts,Care Horizons Limited,216.92, 10-Aug-2020
655,Revenue,CAHD,North - Community based support,Day Care / Social Activities,Care Horizons Limited,404.26, 10-Aug-2020
656,Revenue,CAHD,North - Community based support,Other Small Contracts,Care Horizons Limited,655.69, 10-Aug-2020
657,Revenue,CAHD,Younger MH non-res purchasing,Other Small Contracts,Care Horizons Limited,157.76, 10-Aug-2020
658,Revenue,CAHD,18-25 Year Olds,Other Small Contracts,Care Horizons Limited,78.88, 26-Aug-2020
659,Revenue,CAHD,Central - Commissioned Services,Other Small Contracts,Care Horizons Limited,488.07, 26-Aug-2020
660,Revenue,CAHD,South - Commissioned Services,Other Small Contracts,Care Horizons Limited,216.92, 26-Aug-2020
661,Revenue,CAHD,North - Community based support,Day Care / Social Activities,Care Horizons Limited,414.12, 26-Aug-2020
662,Revenue,CAHD,North - Community based support,Other Small Contracts,Care Horizons Limited,655.69, 26-Aug-2020
663,Revenue,CAHD,Younger MH non-res purchasing,Other Small Contracts,Care Horizons Limited,157.76, 26-Aug-2020
664,Revenue,CAHD,18-25 Year Olds,Other Small Contracts,Care Horizons Limited,78.88, 26-Aug-2020
665,Revenue,CAHD,Central - Commissioned Services,Other Small Contracts,Care Horizons Limited,502.86, 26-Aug-2020
666,Revenue,CAHD,South - Commissioned Services,Other Small Contracts,Care Horizons Limited,98.60, 26-Aug-2020
667,Revenue,CAHD,North - Community based support,Day Care / Social Activities,Care Horizons Limited,399.33, 26-Aug-2020
668,Revenue,CAHD,North - Community based support,Other Small Contracts,Care Horizons Limited,645.83, 26-Aug-2020
669,Revenue,CAHD,Younger MH non-res purchasing,Other Small Contracts,Care Horizons Limited,157.76, 26-Aug-2020
670,Revenue,CAHD,18-25 Year Olds,Other Small Contracts,Care Horizons Limited,78.88, 28-Aug-2020
671,Revenue,CAHD,Central - Commissioned Services,Other Small Contracts,Care Horizons Limited,507.79, 28-Aug-2020
672,Revenue,CAHD,South - Commissioned Services,Other Small Contracts,Care Horizons Limited,98.60, 28-Aug-2020
673,Revenue,CAHD,North - Community based support,Day Care / Social Activities,Care Horizons Limited,404.26, 28-Aug-2020
674,Revenue,CAHD,North - Community based support,Other Small Contracts,Care Horizons Limited,729.64, 28-Aug-2020
675,Revenue,CAHD,Younger MH non-res purchasing,Other Small Contracts,Care Horizons Limited,157.76, 28-Aug-2020
676,Revenue,CAHD,Covid � ASC - Infection Control,Grants to Voluntary Bodies,Care Horizons Limited,1918.70, 05-Aug-2020
677,Revenue,CAHD,Covid � ASC - Infection Control,Grants to Voluntary Bodies,Carepride Ltd,959.35, 05-Aug-2020
678,Revenue,CAHD,CSC - Care Leavers Independent Living,Adults - Family Support,Caring for Communities and People,5307.72, 13-Aug-2020
679,Revenue,CAHD,CSC - Care Leavers Independent Living,Independent Living,Caring for Communities and People,4809.08, 10-Aug-2020
680,Revenue,CAHD,Supporting People Programme,Grants to Voluntary Bodies,Caring for Communities and People,12849.00, 04-Aug-2020
681,Revenue,CAHD,Social Lettings Agency,Rent,Individual,699.32, 21-Aug-2020
682,Revenue,CAHD,Social Lettings Agency,Fees - General,Individual,20.57, 21-Aug-2020
683,Revenue,CAHD,Adults Safeguarding Reviews,Fees - General,Individual,9800.00, 03-Aug-2020
684,Revenue,CAHD,CSC - Care Leavers Support Costs,Furniture & Fittings Loose,Carpets of Yate,1120.00, 28-Aug-2020
685,Revenue,CAHD,CSC - Legal Fees,Legal Fees,Castle Business Finance Limited,700.00, 12-Aug-2020
686,Revenue,CAHD,Statemented Support Academies,Other Public Bodies,Castle School Education Trust,530.55, 27-Aug-2020
687,Revenue,CAHD,Statemented Support Academies,Other Public Bodies,Castle School Education Trust,565.92, 27-Aug-2020
688,Revenue,CAHD,Statemented Support Academies,Other Public Bodies,Castle School Education Trust,778.14, 27-Aug-2020
689,Revenue,CAHD,Statemented Support Academies,Other Public Bodies,Castle School Education Trust,931.41, 27-Aug-2020
690,Revenue,CAHD,Statemented Support Academies,Other Public Bodies,Castle School Education Trust,542.34, 27-Aug-2020
691,Revenue,CAHD,Statemented Support Academies,Other Public Bodies,Castle School Education Trust,672.03, 27-Aug-2020
692,Revenue,CAHD,Statemented Support Academies,Other Public Bodies,Castle School Education Trust,577.71, 27-Aug-2020
693,Revenue,CAHD,Statemented Support Academies,Other Public Bodies,Castle School Education Trust,505.08, 27-Aug-2020
694,Revenue,CAHD,Statemented Support Academies,Other Public Bodies,Castle School Education Trust,1461.96, 27-Aug-2020
695,Revenue,CAHD,Statemented Support Academies,Other Public Bodies,Castle School Education Trust,860.67, 27-Aug-2020
696,Revenue,CAHD,Statemented Support Academies,Other Public Bodies,Castle School Education Trust,1002.15, 27-Aug-2020
697,Revenue,CAHD,Statemented Support Academies,Other Public Bodies,Castle School Education Trust,613.08, 27-Aug-2020
698,Revenue,CAHD,Statemented Support Academies,Other Public Bodies,Castle School Education Trust,672.03, 27-Aug-2020
699,Revenue,CAHD,Statemented Support Academies,Other Public Bodies,Castle School Education Trust,1120.05, 27-Aug-2020
700,Revenue,CAHD,Statemented Support Academies,Other Public Bodies,Castle School Education Trust,636.66, 27-Aug-2020
701,Revenue,CAHD,Statemented Support Academies,Other Public Bodies,Castle School Education Trust,589.50, 27-Aug-2020
702,Revenue,CAHD,Statemented Support Academies,Other Public Bodies,Castle School Education Trust,589.08, 27-Aug-2020
703,Revenue,CAHD,Statemented Support Academies,Other Public Bodies,Castle School Education Trust,954.99, 27-Aug-2020
704,Revenue,CAHD,Statemented Support Academies,Other Public Bodies,Castle School Education Trust,577.71, 27-Aug-2020
705,Revenue,CAHD,Statemented Support Academies,Other Public Bodies,Castle School Education Trust,624.87, 27-Aug-2020
706,Revenue,CAHD,Statemented Support Academies,Other Public Bodies,Castle School Education Trust,825.30, 27-Aug-2020
707,Revenue,CAHD,Statemented Support Academies,Other Public Bodies,Castle School Education Trust,1190.79, 27-Aug-2020
708,Revenue,CAHD,Statemented Support Academies,Other Public Bodies,Castle School Education Trust,848.88, 27-Aug-2020
709,Revenue,CAHD,Statemented Support Academies,Other Public Bodies,Castle School Education Trust,1237.95, 27-Aug-2020
710,Revenue,CAHD,Statemented Support Academies,Other Public Bodies,Castle School Education Trust,1061.10, 27-Aug-2020
711,Revenue,CAHD,Statemented Support Academies,Other Public Bodies,Castle School Education Trust,518.76, 27-Aug-2020
712,Revenue,CAHD,Statemented Support Academies,Other Public Bodies,Castle School Education Trust,577.71, 27-Aug-2020
713,Revenue,CAHD,Statemented Support Academies,Other Public Bodies,Castle School Education Trust,1143.63, 27-Aug-2020
714,Revenue,CAHD,Statemented Support Academies,Other Public Bodies,Castle School Education Trust,1072.89, 27-Aug-2020
715,Revenue,CAHD,Statemented Support Academies,Other Public Bodies,Castle School Education Trust,754.25, 27-Aug-2020
716,Revenue,CAHD,Statemented Support Academies,Other Public Bodies,Castle School Education Trust,1485.54, 27-Aug-2020
717,Revenue,CAHD,Statemented Support Academies,Other Public Bodies,Castle School Education Trust,888.75, 27-Aug-2020
718,Revenue,CAHD,Statemented Support Academies,Other Public Bodies,Castle School Education Trust,1322.75, 27-Aug-2020
719,Revenue,CAHD,Statemented Support Academies,Other Public Bodies,Castle School Education Trust,801.92, 27-Aug-2020
720,Revenue,CAHD,Statemented Support Academies,Other Public Bodies,Castle School Education Trust,943.17, 27-Aug-2020
721,Revenue,CAHD,Statemented Support Academies,Other Public Bodies,Castle School Education Trust,1267.50, 27-Aug-2020
722,Revenue,CAHD,Academy Resource Base Funding,Other Public Bodies,Castle School Education Trust,1702.96, 21-Aug-2020
723,Revenue,CAHD,Academy Resource Base Funding,Other Public Bodies,Castle School Education Trust,1702.96, 21-Aug-2020
724,Revenue,CAHD,Academy Resource Base Funding,Other Public Bodies,Castle School Education Trust,1702.96, 21-Aug-2020
725,Revenue,CAHD,Academy Resource Base Funding,Other Public Bodies,Castle School Education Trust,1702.96, 21-Aug-2020
726,Revenue,CAHD,Academy Resource Base Funding,Other Public Bodies,Castle School Education Trust,1702.96, 21-Aug-2020
727,Revenue,CAHD,Academy Resource Base Funding,Other Public Bodies,Castle School Education Trust,1702.96, 21-Aug-2020
728,Revenue,CAHD,Academy Resource Base Funding,Other Public Bodies,Castle School Education Trust,1702.96, 21-Aug-2020
729,Revenue,CAHD,Academy Resource Base Funding,Other Public Bodies,Castle School Education Trust,1702.96, 21-Aug-2020
730,Revenue,CAHD,Academy Resource Base Funding,Other Public Bodies,Castle School Education Trust,1702.96, 21-Aug-2020
731,Revenue,CAHD,Academy Resource Base Funding,Other Public Bodies,Castle School Education Trust,2189.53, 21-Aug-2020
732,Revenue,CAHD,Statemented Support Academies,Other Public Bodies,Castle School Education Trust,672.03, 27-Aug-2020
733,Revenue,CAHD,Statemented Support Academies,Other Public Bodies,Castle School Education Trust,872.46, 27-Aug-2020
734,Revenue,CAHD,Statemented Support Academies,Other Public Bodies,Castle School Education Trust,848.88, 27-Aug-2020
735,Revenue,CAHD,Statemented Support Academies,Other Public Bodies,Castle School Education Trust,1556.28, 27-Aug-2020
736,Revenue,CAHD,Statemented Support Academies,Other Public Bodies,Castle School Education Trust,1025.73, 27-Aug-2020
737,Revenue,CAHD,Statemented Support Academies,Other Public Bodies,Castle School Education Trust,630.58, 27-Aug-2020
738,Revenue,CAHD,Statemented Support Academies,Other Public Bodies,Castle School Education Trust,778.14, 27-Aug-2020
739,Revenue,CAHD,Statemented Support Academies,Other Public Bodies,Castle School Education Trust,613.08, 27-Aug-2020
740,Revenue,CAHD,Statemented Support Academies,Other Public Bodies,Castle School Educational Turust,1148.20, 27-Aug-2020
741,Revenue,CAHD,Statemented Support Academies,Other Public Bodies,Castle School Educational Turust,714.08, 27-Aug-2020
742,Revenue,CAHD,Statemented Support Academies,Other Public Bodies,Castle School Educational Turust,1497.33, 27-Aug-2020
743,Revenue,CAHD,North - Community based support,Day Care / Social Activities,Causeway House,2176.64, 25-Aug-2020
744,Revenue,CAHD,Central - Commissioned Services,Day Care / Social Activities,Causeway House,1256.12, 25-Aug-2020
745,Revenue,CAHD,South - Commissioned Services,Day Care / Social Activities,Causeway House,5358.20, 25-Aug-2020
746,Revenue,CAHD,Central - Commissioned Services,Day Care / Social Activities,Causeway House,1447.08, 25-Aug-2020
747,Revenue,CAHD,18-25 Year Olds,Day Care / Social Activities,Causeway House,4502.92, 25-Aug-2020
748,Revenue,CAHD,Central - Commissioned Services,Day Care / Social Activities,Causeway House,3671.36, 25-Aug-2020
749,Revenue,CAHD,Central - Commissioned Services,Day Care / Social Activities,Causeway House,3969.44, 25-Aug-2020
750,Revenue,CAHD,Central - Commissioned Services,Day Care / Social Activities,Causeway House,2119.20, 25-Aug-2020
751,Revenue,CAHD,North - Community based support,Day Care / Social Activities,Causeway House,3290.72, 25-Aug-2020
752,Revenue,CAHD,North - Community based support,Day Care / Social Activities,Causeway House,4902.56, 25-Aug-2020
753,Revenue,CAHD,Central - Commissioned Services,Day Care / Social Activities,Causeway House,3725.16, 25-Aug-2020
754,Revenue,CAHD,North - Community based support,Day Care / Social Activities,Causeway House,3212.08, 25-Aug-2020
755,Revenue,CAHD,North - Community based support,Day Care / Social Activities,Causeway House,579.68, 25-Aug-2020
756,Revenue,CAHD,South - Commissioned Services,Permanent Residential,Challenge House,2834.44, 25-Aug-2020
757,Revenue,CAHD,South - Commissioned Services,Permanent Residential,Challenge House,2836.00, 25-Aug-2020
758,Revenue,CAHD,North - S117,Permanent Residential,Challenge House,2571.40, 25-Aug-2020
759,Revenue,CAHD,Central - Commissioned Services,Permanent Residential,Challenge House,2800.00, 25-Aug-2020
760,Revenue,CAHD,North - Community based support,Permanent Residential,Challenge House,2233.00, 25-Aug-2020
761,Revenue,CAHD,Central - Commissioned Services,Permanent Residential,Challenge House,2365.64, 25-Aug-2020
762,Revenue,CAHD,North - Community based support,Permanent Residential,Challenge House,2363.40, 25-Aug-2020
763,Revenue,CAHD,North - Community based support,Permanent Residential,Challenge House,2834.40, 25-Aug-2020
764,Revenue,CAHD,North - Community based support,Permanent Nursing,Challenge House,3205.48, 25-Aug-2020
765,Revenue,CAHD,North - S117,Permanent Nursing,Challenge House,2453.28, 25-Aug-2020
766,Revenue,CAHD,Central - Commissioned Services,Permanent Nursing,Challenge House,3129.36, 25-Aug-2020
767,Revenue,CAHD,North - Community based support,Permanent Nursing,Challenge House,2453.28, 25-Aug-2020
768,Revenue,CAHD,North - Community based support,Permanent Nursing,Challenge House,3205.48, 25-Aug-2020
769,Revenue,CAHD,South Glos Users in South Glos Homes,Permanent Nursing,Challenge House,4224.41, 25-Aug-2020
770,Revenue,CAHD,South Glos Users in South Glos Homes,Permanent Nursing,Challenge House,735.68, 25-Aug-2020
771,Revenue,CAHD,South Glos Users in South Glos Homes,Permanent Nursing,Challenge House,735.68, 25-Aug-2020
772,Revenue,CAHD,South - Commissioned Services,Permanent Nursing,Challenge House,2941.88, 25-Aug-2020
773,Revenue,CAHD,South Glos Users in South Glos Homes,Permanent Nursing,Challenge House,735.68, 25-Aug-2020
774,Revenue,CAHD,North - Community based support,Permanent Nursing,Challenge House,3272.64, 25-Aug-2020
775,Revenue,CAHD,South Glos Users in South Glos Homes,Permanent Nursing,Challenge House,735.68, 25-Aug-2020
776,Revenue,CAHD,South Glos Users in South Glos Homes,Permanent Nursing,Challenge House,735.68, 25-Aug-2020
777,Revenue,CAHD,North - Community based support,Permanent Nursing,Challenge House,3405.60, 25-Aug-2020
778,Revenue,CAHD,South Glos Users in South Glos Homes,Permanent Nursing,Challenge House,735.68, 25-Aug-2020
779,Revenue,CAHD,South - Commissioned Services,Permanent Nursing,Challenge House,3060.00, 25-Aug-2020
780,Revenue,CAHD,South Glos Users in South Glos Homes,Permanent Nursing,Challenge House,735.68, 25-Aug-2020
781,Revenue,CAHD,South - Commissioned Services,Permanent Residential,Challenge House,3060.00, 25-Aug-2020
782,Revenue,CAHD,South Glos Users in South Glos Homes,Permanent Nursing,Challenge House,735.68, 25-Aug-2020
783,Revenue,CAHD,South Glos Users in South Glos Homes,Permanent Nursing,Challenge House,735.68, 25-Aug-2020
784,Revenue,CAHD,South Glos Users in South Glos Homes,Permanent Nursing,Challenge House,735.68, 25-Aug-2020
785,Revenue,CAHD,South Glos Users in South Glos Homes,Permanent Nursing,Challenge House,735.68, 25-Aug-2020
786,Revenue,CAHD,South Glos Users in South Glos Homes,Permanent Nursing,Challenge House,735.68, 25-Aug-2020
787,Revenue,CAHD,South Glos Users in South Glos Homes,Permanent Nursing,Challenge House,735.68, 25-Aug-2020
788,Revenue,CAHD,South Glos Users in South Glos Homes,Permanent Nursing,Challenge House,735.68, 25-Aug-2020
789,Revenue,CAHD,North - Community based support,Permanent Nursing,Challenge House,2884.08, 25-Aug-2020
790,Revenue,CAHD,South Glos Users in South Glos Homes,Permanent Nursing,Challenge House,735.68, 25-Aug-2020
791,Revenue,CAHD,North - Community based support,Permanent Nursing,Challenge House,3243.60, 25-Aug-2020
792,Revenue,CAHD,South Glos Users in South Glos Homes,Permanent Nursing,Challenge House,735.68, 25-Aug-2020
793,Revenue,CAHD,North - Community based support,Permanent Nursing,Challenge House,3405.60, 25-Aug-2020
794,Revenue,CAHD,South Glos Users in South Glos Homes,Permanent Nursing,Challenge House,735.68, 25-Aug-2020
795,Revenue,CAHD,North - Community based support,Permanent Residential,Challenge House,3121.20, 25-Aug-2020
796,Revenue,CAHD,South Glos Users in South Glos Homes,Permanent Nursing,Challenge House,735.68, 25-Aug-2020
797,Revenue,CAHD,North - Community based support,Permanent Nursing,Challenge House,2884.08, 25-Aug-2020
798,Revenue,CAHD,South Glos Users in South Glos Homes,Permanent Nursing,Challenge House,735.68, 25-Aug-2020
799,Revenue,CAHD,South Glos Users in South Glos Homes,Permanent Nursing,Challenge House,735.68, 25-Aug-2020
800,Revenue,CAHD,Covid � ASC - Infection Control,Grants to Voluntary Bodies,Challenge House,3312.40, 04-Aug-2020
801,Revenue,CAHD,Covid � ASC - Infection Control,Grants to Voluntary Bodies,Challenge House,19914.00, 04-Aug-2020
802,Revenue,CAHD,CSC - Vinney Green Secure Unit,"Provisions (Food, etc)",Charles Saunders Limited,512.64, 12-Aug-2020
803,Revenue,CAHD,CSC - Vinney Green Secure Unit,"Provisions (Food, etc)",Charles Saunders Limited,457.93, 04-Aug-2020
804,Revenue,CAHD,CSC - Vinney Green Secure Unit,"Provisions (Food, etc)",Charles Saunders Limited,399.22, 04-Aug-2020
805,Revenue,CAHD,Training - Adult Services,Training Expenses,Individual,1200.00, 10-Aug-2020
806,Revenue,CAHD,Statemented Support Academies,Other Public Bodies,Charlton Wood Primary Academy,702.17, 27-Aug-2020
807,Revenue,CAHD,Central - Commissioned Services,Other Small Contracts,Cherish Able Care Limited,1555.26, 05-Aug-2020
808,Revenue,CAHD,South - Commissioned Services,Other Small Contracts,Cherish Able Care Limited,5865.39, 05-Aug-2020
809,Revenue,CAHD,North - Community based support,Other Small Contracts,Cherish Able Care Limited,666.54, 05-Aug-2020
810,Revenue,CAHD,Central - Commissioned Services,Other Small Contracts,Cherish Able Care Limited,1555.26, 10-Aug-2020
811,Revenue,CAHD,South - Commissioned Services,Other Small Contracts,Cherish Able Care Limited,5377.62, 10-Aug-2020
812,Revenue,CAHD,North - Community based support,Other Small Contracts,Cherish Able Care Limited,695.52, 10-Aug-2020
813,Revenue,CAHD,Central - Commissioned Services,Other Small Contracts,Cherish Able Care Limited,1545.60, 26-Aug-2020
814,Revenue,CAHD,South - Commissioned Services,Other Small Contracts,Cherish Able Care Limited,5556.78, 26-Aug-2020
815,Revenue,CAHD,North - Community based support,Other Small Contracts,Cherish Able Care Limited,700.35, 26-Aug-2020
816,Revenue,CAHD,Central - Commissioned Services,Other Small Contracts,Cherish Able Care Limited,1555.26, 26-Aug-2020
817,Revenue,CAHD,South - Commissioned Services,Other Small Contracts,Cherish Able Care Limited,5516.22, 26-Aug-2020
818,Revenue,CAHD,North - Community based support,Other Small Contracts,Cherish Able Care Limited,661.71, 26-Aug-2020
819,Revenue,CAHD,Covid � ASC - Infection Control,Grants to Voluntary Bodies,Cherish Able Care Limited,2741.00, 05-Aug-2020
820,Revenue,CAHD,18-25 Year Olds,Other Small Contracts,Cherry Orchards,3250.59, 18-Aug-2020
821,Revenue,CAHD,South - Commissioned Services,Supported Living,Cherry Orchards,1255.80, 18-Aug-2020
822,Revenue,CAHD,18-25 Year Olds,Other Small Contracts,Cherry Orchards,1584.24, 18-Aug-2020
823,Revenue,CAHD,South - Commissioned Services,Other Small Contracts,Cherry Orchards,6491.52, 18-Aug-2020
824,Revenue,CAHD,18-25 Year Olds,Supported Living,Cherry Orchards,1409.28, 25-Aug-2020
825,Revenue,CAHD,South - Commissioned Services,Supported Living,Cherry Orchards,2085.84, 25-Aug-2020
826,Revenue,CAHD,18-25 Year Olds,Supported Living,Cherry Orchards,2030.52, 25-Aug-2020
827,Revenue,CAHD,North - Community based support,Supported Living,Cherry Orchards,1042.96, 25-Aug-2020
828,Revenue,CAHD,S28A cases,Permanent Residential,Chescombe Trust Ltd,9959.72, 25-Aug-2020
829,Revenue,CAHD,Covid � ASC - Infection Control,Grants to Voluntary Bodies,Chescombe Trust Ltd,1573.39, 04-Aug-2020
830,Revenue,CAHD,Covid � ASC - Infection Control,Grants to Voluntary Bodies,Chescombe Trust Ltd,9459.15, 04-Aug-2020
831,Revenue,CAHD,Central - Commissioned Services,Other Small Contracts,Cintre,199.20, 05-Aug-2020
832,Revenue,CAHD,South - Commissioned Services,Other Small Contracts,Cintre,956.16, 05-Aug-2020
833,Revenue,CAHD,Central - Commissioned Services,Other Small Contracts,Cintre,318.72, 05-Aug-2020
834,Revenue,CAHD,South - Commissioned Services,Other Small Contracts,Cintre,1120.50, 05-Aug-2020
835,Revenue,CAHD,Central - Commissioned Services,Other Small Contracts,Cintre,293.82, 19-Aug-2020
836,Revenue,CAHD,South - Commissioned Services,Other Small Contracts,Cintre,1115.52, 19-Aug-2020
837,Revenue,CAHD,Central - Commissioned Services,Other Small Contracts,Cintre,288.84, 26-Aug-2020
838,Revenue,CAHD,South - Commissioned Services,Other Small Contracts,Cintre,996.00, 26-Aug-2020
839,Revenue,CAHD,Central - Commissioned Services,Other Small Contracts,Cintre,199.20, 28-Aug-2020
840,Revenue,CAHD,South - Commissioned Services,Other Small Contracts,Cintre,1115.52, 28-Aug-2020
841,Revenue,CAHD,Covid � ASC - Infection Control,Grants to Voluntary Bodies,Cintre,959.35, 05-Aug-2020
842,Revenue,CAHD,Transport OLA Special Schools and RB,Client Transport,Individual,612.36, 25-Aug-2020
843,Revenue,CAHD,South - Commissioned Services,Permanent Residential,Clearwater Care,5280.28, 25-Aug-2020
844,Revenue,CAHD,South - Commissioned Services,Permanent Residential,Cleeve Lodge,3760.12, 25-Aug-2020
845,Revenue,CAHD,South - Commissioned Services,Permanent Residential,Cleeve Lodge,3760.12, 25-Aug-2020
846,Revenue,CAHD,South - Commissioned Services,Permanent Residential,Cleeve Lodge,1334.60, 25-Aug-2020
847,Revenue,CAHD,South - Commissioned Services,Permanent Residential,Cleeve Lodge,2980.12, 25-Aug-2020
848,Revenue,CAHD,South - Commissioned Services,Permanent Residential,Cleeve Lodge,4400.00, 25-Aug-2020
849,Revenue,CAHD,South - Commissioned Services,Permanent Residential,Cleeve Lodge,4000.00, 25-Aug-2020
850,Revenue,CAHD,South - Commissioned Services,Permanent Residential,Cleeve Lodge,2950.88, 25-Aug-2020
851,Revenue,CAHD,Covid � ASC - Infection Control,Grants to Voluntary Bodies,Cleeve Lodge,2732.73, 04-Aug-2020
852,Revenue,CAHD,Covid � ASC - Infection Control,Grants to Voluntary Bodies,Cleeve Lodge,16429.05, 04-Aug-2020
853,Revenue,CAHD,North - Community based support,Permanent Nursing,Clevedon Court Nursing Home,3448.16, 25-Aug-2020
854,Revenue,CAHD,Sexual Health,Other Small Contracts,Close Farm Surgery,724.50, 04-Aug-2020
855,Revenue,CAHD,Sexual Health,Other Small Contracts,Close Farm Surgery,791.48, 04-Aug-2020
856,Revenue,CAHD,NHS Health Checks,Other Small Contracts,Close Farm Surgery,1165.33, 04-Aug-2020
857,Revenue,CAHD,Drug and Alcohol Programme,Other Small Contracts,Close Farm Surgery,778.17, 04-Aug-2020
858,Revenue,CAHD,Covid � ASC - Infection Control,Grants to Voluntary Bodies,Clover Health and Home Care Ltd,822.30, 05-Aug-2020
859,Revenue,CAHD,COVID19 CAHC,Client Transport,Collette Corrigan,661.80, 27-Aug-2020
860,Revenue,CAHD,South - Commissioned Services,Permanent Residential,Collingwood Care Home,2882.76, 25-Aug-2020
861,Revenue,CAHD,North - Community based support,Permanent Residential,Collingwood Care Home,3000.00, 25-Aug-2020
862,Revenue,CAHD,South - Commissioned Services,Permanent Residential,Collingwood Care Home,2554.36, 25-Aug-2020
863,Revenue,CAHD,Covid � ASC - Infection Control,Grants to Voluntary Bodies,Collingwood Care Home,2153.06, 04-Aug-2020
864,Revenue,CAHD,Covid � ASC - Infection Control,Grants to Voluntary Bodies,Collingwood Care Home,12944.10, 04-Aug-2020
865,Revenue,CAHD,South - Commissioned Services,Permanent Residential,Community Theraputic Services,7893.40, 25-Aug-2020
866,Revenue,CAHD,Jointly Funded H&SC Packages,Permanent Residential,Community Theraputic Services,4875.84, 25-Aug-2020
867,Revenue,CAHD,North - Community based support,Permanent Residential,Community Theraputic Services,8119.76, 25-Aug-2020
868,Revenue,CAHD,Jointly Funded H&SC Packages,Permanent Residential,Community Theraputic Services,2027.52, 25-Aug-2020
869,Revenue,CAHD,Sexual Health,Other Small Contracts,Concord Medical Centre,2254.00, 04-Aug-2020
870,Revenue,CAHD,Sexual Health,Other Small Contracts,Concord Medical Centre,2181.75, 04-Aug-2020
871,Revenue,CAHD,NHS Health Checks,Other Small Contracts,Concord Medical Centre,1479.67, 04-Aug-2020
872,Revenue,CAHD,Drug and Alcohol Programme,Other Small Contracts,Concord Medical Centre,812.00, 04-Aug-2020
873,Revenue,CAHD,Sexual Health,Other Small Contracts,Coniston Medical Practice,1307.67, 04-Aug-2020
874,Revenue,CAHD,NHS Health Checks,Other Small Contracts,Coniston Medical Practice,605.67, 04-Aug-2020
875,Revenue,CAHD,Drug and Alcohol Programme,Other Small Contracts,Coniston Medical Practice,1454.83, 04-Aug-2020
876,Revenue,CAHD,Bed and Breakfast,Bed & Breakfast,Connolly & Callaghan Limited,463.40, 11-Aug-2020
877,Revenue,CAHD,Bed and Breakfast,Bed & Breakfast,Connolly & Callaghan Limited,422.80, 13-Aug-2020
878,Revenue,CAHD,Bed and Breakfast,Bed & Breakfast,Connolly & Callaghan Limited,679.00, 13-Aug-2020
879,Revenue,CAHD,Bed and Breakfast,Bed & Breakfast,Connolly & Callaghan Limited,508.20, 03-Aug-2020
880,Revenue,CAHD,Bed and Breakfast,Bed & Breakfast,Connolly & Callaghan Limited,764.40, 03-Aug-2020
881,Revenue,CAHD,Bed and Breakfast,Bed & Breakfast,Connolly & Callaghan Limited,593.60, 03-Aug-2020
882,Revenue,CAHD,Bed and Breakfast,Bed & Breakfast,Connolly & Callaghan Limited,422.80, 03-Aug-2020
883,Revenue,CAHD,Bed and Breakfast,Bed & Breakfast,Connolly & Callaghan Limited,422.80, 03-Aug-2020
884,Revenue,CAHD,Bed and Breakfast,Bed & Breakfast,Connolly & Callaghan Limited,679.00, 03-Aug-2020
885,Revenue,CAHD,Bed and Breakfast,Bed & Breakfast,Connolly & Callaghan Limited,422.80, 03-Aug-2020
886,Revenue,CAHD,Bed and Breakfast,Bed & Breakfast,Connolly & Callaghan Limited,508.20, 11-Aug-2020
887,Revenue,CAHD,Bed and Breakfast,Bed & Breakfast,Connolly & Callaghan Limited,764.40, 11-Aug-2020
888,Revenue,CAHD,Bed and Breakfast,Bed & Breakfast,Connolly & Callaghan Limited,593.60, 11-Aug-2020
889,Revenue,CAHD,Bed and Breakfast,Bed & Breakfast,Connolly & Callaghan Limited,457.80, 21-Aug-2020
890,Revenue,CAHD,Bed and Breakfast,Bed & Breakfast,Connolly & Callaghan Limited,422.80, 11-Aug-2020
891,Revenue,CAHD,Bed and Breakfast,Bed & Breakfast,Connolly & Callaghan Limited,422.80, 11-Aug-2020
892,Revenue,CAHD,Bed and Breakfast,Bed & Breakfast,Connolly & Callaghan Limited,679.00, 11-Aug-2020
893,Revenue,CAHD,Bed and Breakfast,Bed & Breakfast,Connolly & Callaghan Limited,422.80, 11-Aug-2020
894,Revenue,CAHD,Bed and Breakfast,Bed & Breakfast,Connolly & Callaghan Limited,508.20, 18-Aug-2020
895,Revenue,CAHD,Bed and Breakfast,Bed & Breakfast,Connolly & Callaghan Limited,764.40, 19-Aug-2020
896,Revenue,CAHD,Bed and Breakfast,Bed & Breakfast,Connolly & Callaghan Limited,593.60, 19-Aug-2020
897,Revenue,CAHD,Bed and Breakfast,Bed & Breakfast,Connolly & Callaghan Limited,457.80, 19-Aug-2020
898,Revenue,CAHD,Bed and Breakfast,Bed & Breakfast,Connolly & Callaghan Limited,422.80, 19-Aug-2020
899,Revenue,CAHD,Bed and Breakfast,Bed & Breakfast,Connolly & Callaghan Limited,422.80, 19-Aug-2020
900,Revenue,CAHD,Bed and Breakfast,Bed & Breakfast,Connolly & Callaghan Limited,679.00, 19-Aug-2020
901,Revenue,CAHD,Bed and Breakfast,Bed & Breakfast,Connolly & Callaghan Limited,508.20, 27-Aug-2020
902,Revenue,CAHD,Bed and Breakfast,Bed & Breakfast,Connolly & Callaghan Limited,764.40, 21-Aug-2020
903,Revenue,CAHD,Bed and Breakfast,Bed & Breakfast,Connolly & Callaghan Limited,457.80, 21-Aug-2020
904,Revenue,CAHD,Bed and Breakfast,Bed & Breakfast,Connolly & Callaghan Limited,422.80, 21-Aug-2020
905,Revenue,CAHD,Bed and Breakfast,Bed & Breakfast,Connolly & Callaghan Limited,422.80, 21-Aug-2020
906,Revenue,CAHD,Bed and Breakfast,Bed & Breakfast,Connolly & Callaghan Limited,679.00, 21-Aug-2020
907,Revenue,CAHD,Bed and Breakfast,Bed & Breakfast,Connolly & Callaghan Limited,593.60, 25-Aug-2020
908,Revenue,CAHD,Alexandra Way,Prop.Serv. General Repairs,Contract Interior Systems Limited,1750.00, 27-Aug-2020
909,Revenue,CAHD,CSC - Allowances,Membership Fees,CoramBAAF Ltd t/a Coram Academy Ltd,5058.27, 07-Aug-2020
910,Revenue,CAHD,CSC - Fostering Carer Support,Care Mgt/Asesmnt Staff Pay,Core Assets Expert Services Ltd T/A Carter Brown,2500.00, 12-Aug-2020
911,Revenue,CAHD,Independent Special Placements - Post 16,Other Private Contractors,Cotswold Chine School,40078.35, 11-Aug-2020
912,Revenue,CAHD,Independent Special Placements - Pre 16,Other Private Contractors,Cotswold Chine School,24434.87, 11-Aug-2020
913,Revenue,CAHD,Independent Special Placements - Pre 16,Other Private Contractors,Cotswold Chine School,24434.87, 11-Aug-2020
914,Revenue,CAHD,Independent Special Placements - Pre 16,Other Private Contractors,Cotswold Chine School,25727.72, 11-Aug-2020
915,Revenue,CAHD,Sexual Health,Other Small Contracts,Courtside Surgery,1824.67, 04-Aug-2020
916,Revenue,CAHD,Sexual Health,Other Small Contracts,Courtside Surgery,2295.07, 04-Aug-2020
917,Revenue,CAHD,NHS Health Checks,Other Small Contracts,Courtside Surgery,1947.33, 04-Aug-2020
918,Revenue,CAHD,Drug and Alcohol Programme,Other Small Contracts,Courtside Surgery,1624.00, 04-Aug-2020
919,Revenue,CAHD,S28A cases,Permanent Residential,Creedy Court,10597.96, 25-Aug-2020
920,Revenue,CAHD,S28A cases,Permanent Residential,Creedy Court,8904.92, 25-Aug-2020
921,Revenue,CAHD,North - Community based support,Permanent Residential,Creedy Court,14054.00, 25-Aug-2020
922,Revenue,CAHD,South - Commissioned Services,Permanent Residential,Daneswood,56962.32, 25-Aug-2020
923,Revenue,CAHD,South - Commissioned Services,Permanent Residential,Daneswood,12759.56, 25-Aug-2020
924,Revenue,CAHD,South - Commissioned Services,Fees & Charges Income - General,Daneswood,1595.70, 25-Aug-2020
925,Revenue,CAHD,South - Commissioned Services,Day Care / Social Activities,Daneswood,1441.60, 25-Aug-2020
926,Revenue,CAHD,North - Community based support,Permanent Residential,Daneswood,13579.68, 25-Aug-2020
927,Revenue,CAHD,South - S117,Permanent Nursing,Danshell Healthcare Group,51469.38, 25-Aug-2020
928,Revenue,CAHD,Jointly Funded H&SC Packages,Permanent Nursing,Danshell Healthcare Group,7637.22, 25-Aug-2020
929,Revenue,CAHD,South - S117,Permanent Nursing,Danshell Healthcare Group,11437.64, 25-Aug-2020
930,Revenue,CAHD,Jointly Funded H&SC Packages,Permanent Nursing,Danshell Healthcare Group,1697.16, 25-Aug-2020
931,Revenue,CAHD,Learning Difficulties PSL,Rent,Individual,2400.00, 21-Aug-2020
932,Revenue,CAHD,Drug and Alcohol Programme,Other Small Contracts,Day Lewis - Horfield Branch,975.00, 06-Aug-2020
933,Revenue,CAHD,South - Commissioned Services,Day Care / Social Activities,Deafblind Uk,1421.04, 19-Aug-2020
934,Revenue,CAHD,South - Commissioned Services,Day Care / Social Activities,Deafblind Uk,1421.04, 06-Aug-2020
935,Revenue,CAHD,Central - Commissioned Services,Permanent Residential,Debt Recovery,4173.72, 25-Aug-2020
936,Revenue,CAHD,South - Commissioned Services,Permanent Residential,Debt Recovery,4266.36, 25-Aug-2020
937,Revenue,CAHD,North - Community based support,Permanent Nursing,Debt Recovery,4478.12, 25-Aug-2020
938,Revenue,CAHD,North - Community based support,Permanent Nursing,Debt Recovery,3687.20, 25-Aug-2020
939,Revenue,CAHD,Central - Commissioned Services,Permanent Residential,Debt Recovery,4617.04, 25-Aug-2020
940,Revenue,CAHD,North - Community based support,Permanent Nursing,Debt Recovery,5468.24, 25-Aug-2020
941,Revenue,CAHD,North - Community based support,Permanent Nursing,Debt Recovery,3586.16, 25-Aug-2020
942,Revenue,CAHD,Central - Commissioned Services,Permanent Nursing,Debt Recovery,5568.36, 25-Aug-2020
943,Revenue,CAHD,North - Community based support,Permanent Residential,Debt Recovery,3643.92, 25-Aug-2020
944,Revenue,CAHD,North - Community based support,Permanent Nursing,Debt Recovery,6121.92, 25-Aug-2020
945,Revenue,CAHD,North - Community based support,Permanent Nursing,Debt Recovery,4121.24, 25-Aug-2020
946,Revenue,CAHD,North - Community based support,Permanent Nursing,Deerhurst Nursing Home,4400.00, 25-Aug-2020
947,Revenue,CAHD,South Glos Users in South Glos Homes,Permanent Nursing,Deerhurst Nursing Home,735.68, 25-Aug-2020
948,Revenue,CAHD,South - Commissioned Services,Permanent Nursing,Deerhurst Nursing Home,3881.40, 25-Aug-2020
949,Revenue,CAHD,South Glos Users in South Glos Homes,Permanent Nursing,Deerhurst Nursing Home,735.68, 25-Aug-2020
950,Revenue,CAHD,South Glos Users in South Glos Homes,Permanent Nursing,Deerhurst Nursing Home,735.68, 25-Aug-2020
951,Revenue,CAHD,South - Commissioned Services,Permanent Nursing,Deerhurst Nursing Home,4400.00, 25-Aug-2020
952,Revenue,CAHD,South Glos Users in South Glos Homes,Permanent Nursing,Deerhurst Nursing Home,735.68, 25-Aug-2020
953,Revenue,CAHD,South - Commissioned Services,Day Care / Social Activities,Deerhurst Nursing Home,568.16, 25-Aug-2020
954,Revenue,CAHD,South Glos Users in South Glos Homes,Permanent Nursing,Deerhurst Nursing Home,735.68, 25-Aug-2020
955,Revenue,CAHD,South - Commissioned Services,Permanent Nursing,Deerhurst Nursing Home,4098.52, 25-Aug-2020
956,Revenue,CAHD,South Glos Users in South Glos Homes,Permanent Nursing,Deerhurst Nursing Home,735.68, 25-Aug-2020
957,Revenue,CAHD,South - Commissioned Services,Permanent Nursing,Deerhurst Nursing Home,4006.00, 25-Aug-2020
958,Revenue,CAHD,South Glos Users in South Glos Homes,Permanent Nursing,Deerhurst Nursing Home,735.68, 25-Aug-2020
959,Revenue,CAHD,North - Community based support,Permanent Nursing,Deerhurst Nursing Home,3891.20, 25-Aug-2020
960,Revenue,CAHD,South - Commissioned Services,Permanent Nursing,Deerhurst Nursing Home,3965.12, 25-Aug-2020
961,Revenue,CAHD,South Glos Users in South Glos Homes,Permanent Nursing,Deerhurst Nursing Home,735.68, 25-Aug-2020
962,Revenue,CAHD,North - Community based support,Permanent Nursing,Deerhurst Nursing Home,4140.00, 25-Aug-2020
963,Revenue,CAHD,South - Commissioned Services,Permanent Nursing,Deerhurst Nursing Home,4129.40, 25-Aug-2020
964,Revenue,CAHD,South - Commissioned Services,Day Care / Social Activities,Deerhurst Nursing Home,568.16, 25-Aug-2020
965,Revenue,CAHD,South - Commissioned Services,Permanent Nursing,Deerhurst Nursing Home,4088.08, 25-Aug-2020
966,Revenue,CAHD,South Glos Users in South Glos Homes,Permanent Nursing,Deerhurst Nursing Home,735.68, 25-Aug-2020
967,Revenue,CAHD,South - bed purchasing and direct  payments,Permanent Nursing,Deerhurst Nursing Home,4084.08, 25-Aug-2020
968,Revenue,CAHD,South Glos Users in South Glos Homes,Permanent Nursing,Deerhurst Nursing Home,735.68, 25-Aug-2020
969,Revenue,CAHD,South Glos Users in South Glos Homes,Permanent Nursing,Deerhurst Nursing Home,735.68, 25-Aug-2020
970,Revenue,CAHD,South Glos Users in South Glos Homes,Permanent Nursing,Deerhurst Nursing Home,735.68, 25-Aug-2020
971,Revenue,CAHD,North - Community based support,Permanent Nursing,Deerhurst Nursing Home,4088.08, 25-Aug-2020
972,Revenue,CAHD,South Glos Users in South Glos Homes,Permanent Nursing,Deerhurst Nursing Home,735.68, 25-Aug-2020
973,Revenue,CAHD,South - Commissioned Services,Permanent Nursing,Deerhurst Nursing Home,4086.08, 25-Aug-2020
974,Revenue,CAHD,South Glos Users in South Glos Homes,Permanent Nursing,Deerhurst Nursing Home,735.68, 25-Aug-2020
975,Revenue,CAHD,South Glos Users in South Glos Homes,Permanent Nursing,Deerhurst Nursing Home,735.68, 25-Aug-2020
976,Revenue,CAHD,South - Commissioned Services,Permanent Nursing,Deerhurst Nursing Home,3969.04, 25-Aug-2020
977,Revenue,CAHD,South Glos Users in South Glos Homes,Permanent Nursing,Deerhurst Nursing Home,735.68, 25-Aug-2020
978,Revenue,CAHD,South Glos Users in South Glos Homes,Permanent Nursing,Deerhurst Nursing Home,735.68, 25-Aug-2020
979,Revenue,CAHD,South Glos Users in South Glos Homes,Permanent Nursing,Deerhurst Nursing Home,735.68, 25-Aug-2020
980,Revenue,CAHD,South Glos Users in South Glos Homes,Permanent Nursing,Deerhurst Nursing Home,735.68, 25-Aug-2020
981,Revenue,CAHD,South Glos Users in South Glos Homes,Permanent Nursing,Deerhurst Nursing Home,735.68, 25-Aug-2020
982,Revenue,CAHD,South Glos Users in South Glos Homes,Permanent Nursing,Deerhurst Nursing Home,735.68, 25-Aug-2020
983,Revenue,CAHD,South Glos Users in South Glos Homes,Permanent Nursing,Deerhurst Nursing Home,735.68, 25-Aug-2020
984,Revenue,CAHD,South Glos Users in South Glos Homes,Permanent Nursing,Deerhurst Nursing Home,735.68, 25-Aug-2020
985,Revenue,CAHD,South Glos Users in South Glos Homes,Permanent Nursing,Deerhurst Nursing Home,735.68, 25-Aug-2020
986,Revenue,CAHD,South Glos Users in South Glos Homes,Permanent Nursing,Deerhurst Nursing Home,735.68, 25-Aug-2020
987,Revenue,CAHD,North - Community based support,Permanent Nursing,Deerhurst Nursing Home,4006.00, 25-Aug-2020
988,Revenue,CAHD,South Glos Users in South Glos Homes,Permanent Nursing,Deerhurst Nursing Home,735.68, 25-Aug-2020
989,Revenue,CAHD,South - Commissioned Services,Permanent Nursing,Deerhurst Nursing Home,4085.36, 25-Aug-2020
990,Revenue,CAHD,South Glos Users in South Glos Homes,Permanent Nursing,Deerhurst Nursing Home,735.68, 25-Aug-2020
991,Revenue,CAHD,South Glos Users in South Glos Homes,Permanent Nursing,Deerhurst Nursing Home,735.68, 25-Aug-2020
992,Revenue,CAHD,South Glos Users in South Glos Homes,Permanent Nursing,Deerhurst Nursing Home,735.68, 25-Aug-2020
993,Revenue,CAHD,South - Commissioned Services,Permanent Nursing,Deerhurst Nursing Home,4006.00, 25-Aug-2020
994,Revenue,CAHD,South Glos Users in South Glos Homes,Permanent Nursing,Deerhurst Nursing Home,735.68, 25-Aug-2020
995,Revenue,CAHD,South Glos Users in South Glos Homes,Permanent Nursing,Deerhurst Nursing Home,735.68, 25-Aug-2020
996,Revenue,CAHD,South - Commissioned Services,Permanent Residential,Deerhurst Nursing Home,3096.75, 25-Aug-2020
997,Revenue,CAHD,South - Commissioned Services,Permanent Residential,Deerhurst Nursing Home,1032.25, 25-Aug-2020
998,Revenue,CAHD,South Glos Users in South Glos Homes,Permanent Nursing,Deerhurst Nursing Home,735.68, 25-Aug-2020
999,Revenue,CAHD,South Glos Users in South Glos Homes,Permanent Nursing,Deerhurst Nursing Home,735.68, 25-Aug-2020
1000,Revenue,CAHD,South - Commissioned Services,Permanent Nursing,Deerhurst Nursing Home,4006.00, 25-Aug-2020
1001,Revenue,CAHD,South - Commissioned Services,Permanent Residential,Deerhurst Nursing Home,3891.20, 25-Aug-2020
1002,Revenue,CAHD,South Glos Users in South Glos Homes,Permanent Nursing,Deerhurst Nursing Home,735.68, 25-Aug-2020
1003,Revenue,CAHD,North - Community based support,Permanent Nursing,Deerhurst Nursing Home,3094.88, 25-Aug-2020
1004,Revenue,CAHD,South Glos Users in South Glos Homes,Permanent Nursing,Deerhurst Nursing Home,735.68, 25-Aug-2020
1005,Revenue,CAHD,South Glos Users in South Glos Homes,Permanent Nursing,Deerhurst Nursing Home,735.68, 25-Aug-2020
1006,Revenue,CAHD,South Glos Users in South Glos Homes,Permanent Nursing,Deerhurst Nursing Home,735.68, 25-Aug-2020
1007,Revenue,CAHD,South Glos Users in South Glos Homes,Permanent Nursing,Deerhurst Nursing Home,735.68, 25-Aug-2020
1008,Revenue,CAHD,South Glos Users in South Glos Homes,Permanent Nursing,Deerhurst Nursing Home,735.68, 25-Aug-2020
1009,Revenue,CAHD,South - Commissioned Services,Respite Planned - Nursing,Deerhurst Nursing Home,1690.14, 25-Aug-2020
1010,Revenue,CAHD,Covid � ASC - Infection Control,Grants to Voluntary Bodies,Deerhurst Nursing Home,5465.46, 04-Aug-2020
1011,Revenue,CAHD,Covid � ASC - Infection Control,Grants to Voluntary Bodies,Deerhurst Nursing Home,32858.10, 04-Aug-2020
1012,Revenue,CAHD,South - Commissioned Services,Supported Living,Design House,2714.44, 25-Aug-2020
1013,Revenue,CAHD,South - Commissioned Services,Other Small Contracts,Design House,3124.28, 25-Aug-2020
1014,Revenue,CAHD,South - Commissioned Services,Supported Living,Design House,3195.40, 25-Aug-2020
1015,Revenue,CAHD,South - Commissioned Services,Supported Living,Design House,3053.16, 25-Aug-2020
1016,Revenue,CAHD,South - Commissioned Services,Day Care / Social Activities,Design House,526.72, 25-Aug-2020
1017,Revenue,CAHD,Central - Commissioned Services,Day Care / Social Activities,Design House,2991.44, 25-Aug-2020
1018,Revenue,CAHD,South - Commissioned Services,Day Care / Social Activities,Design House,1317.04, 25-Aug-2020
1019,Revenue,CAHD,South - Commissioned Services,Day Care / Social Activities,Design House,939.72, 25-Aug-2020
1020,Revenue,CAHD,South - Commissioned Services,Supported Living,Design House,2691.36, 25-Aug-2020
1021,Revenue,CAHD,South - Commissioned Services,Supported Living,Design House,2691.36, 25-Aug-2020
1022,Revenue,CAHD,South - Commissioned Services,Other Small Contracts,Design House,2192.32, 25-Aug-2020
1023,Revenue,CAHD,South - Commissioned Services,Day Care / Social Activities,Design House,526.72, 25-Aug-2020
1024,Revenue,CAHD,South - Commissioned Services,Supported Living,Design House,1934.44, 25-Aug-2020
1025,Revenue,CAHD,South - Commissioned Services,Other Small Contracts,Design House,2566.92, 25-Aug-2020
1026,Revenue,CAHD,South - Commissioned Services,Supported Living,Design House,4393.28, 25-Aug-2020
1027,Revenue,CAHD,North - Community based support,Supported Living,Design House,3115.32, 25-Aug-2020
1028,Revenue,CAHD,South - Commissioned Services,Day Care / Social Activities,Design House,1536.08, 25-Aug-2020
1029,Revenue,CAHD,South - Commissioned Services,Supported Living,Design House,2983.16, 25-Aug-2020
1030,Revenue,CAHD,South - Commissioned Services,Supported Living,Design House,2593.64, 25-Aug-2020
1031,Revenue,CAHD,South - Commissioned Services,Supported Living,Design House,2302.64, 25-Aug-2020
1032,Revenue,CAHD,South - Commissioned Services,Supported Living,Design House,2302.64, 25-Aug-2020
1033,Revenue,CAHD,Sexual Health,Other Small Contracts,Downend Health Group,3085.83, 04-Aug-2020
1034,Revenue,CAHD,Sexual Health,Other Small Contracts,Downend Health Group,2391.66, 04-Aug-2020
1035,Revenue,CAHD,NHS Health Checks,Other Small Contracts,Downend Health Group,4906.67, 04-Aug-2020
1036,Revenue,CAHD,Drug and Alcohol Programme,Other Small Contracts,Downend Health Group,5717.83, 04-Aug-2020
1037,Revenue,CAHD,Statemented Support Academies,Other Public Bodies,Downend School,978.57, 27-Aug-2020
1038,Revenue,CAHD,Statemented Support Academies,Other Public Bodies,Downend School,660.24, 27-Aug-2020
1039,Revenue,CAHD,Statemented Support Academies,Other Public Bodies,Downend School,1025.73, 27-Aug-2020
1040,Revenue,CAHD,Statemented Support Academies,Other Public Bodies,Downend School,1013.94, 27-Aug-2020
1041,Revenue,CAHD,Statemented Support Academies,Other Public Bodies,Downend School,801.72, 27-Aug-2020
1042,Revenue,CAHD,Statemented Support Academies,Other Public Bodies,Downend School,530.55, 27-Aug-2020
1043,Revenue,CAHD,Statemented Support Academies,Other Public Bodies,Downend School,1108.26, 27-Aug-2020
1044,Revenue,CAHD,Statemented Support Academies,Other Public Bodies,Downend School,554.13, 27-Aug-2020
1045,Revenue,CAHD,Statemented Support Academies,Other Public Bodies,Downend School,1438.38, 27-Aug-2020
1046,Revenue,CAHD,Statemented Support Academies,Other Public Bodies,Downend School,1709.55, 27-Aug-2020
1047,Revenue,CAHD,Statemented Support Academies,Other Public Bodies,Downend School,1544.49, 27-Aug-2020
1048,Revenue,CAHD,Social Lettings Agency,Rent,Individual,595.11, 24-Aug-2020
1049,Revenue,CAHD,Social Lettings Agency,Fees - General,Individual,10.53, 24-Aug-2020
1050,Revenue,CAHD,Bed and Breakfast,Bed & Breakfast,Individual,608.00, 11-Aug-2020
1051,Revenue,CAHD,Bed and Breakfast,Bed & Breakfast,Individual,532.00, 18-Aug-2020
1052,Revenue,CAHD,Bed and Breakfast,Bed & Breakfast,Individual,532.00, 24-Aug-2020
1053,Revenue,CAHD,CSC - Therapeutic Foster Care Programm,Special Fostering Scheme,Individual,565.00, 07-Aug-2020
1054,Revenue,CAHD,CSC - Therapeutic Foster Care Programm,Special Fostering Scheme,Individual,565.00, 14-Aug-2020
1055,Revenue,CAHD,CSC - Therapeutic Foster Care Programm,Special Fostering Scheme,Individual,565.00, 21-Aug-2020
1056,Revenue,CAHD,CSC - Therapeutic Foster Care Programm,Special Fostering Scheme,Individual,565.00, 28-Aug-2020
1057,Revenue,CAHD,North - Community based support,Permanent Residential,East Court,2763.56, 25-Aug-2020
1058,Revenue,CAHD,"Education Team - CME, EHE and Exclusions",Long Service Awards,Edenred (UK Group) Limited,680.00, 28-Aug-2020
1059,Revenue,CAHD,Cambrian Green Day Service,Long Service Awards,Edenred (UK Group) Limited,510.00, 28-Aug-2020
1060,Revenue,CAHD,Transitional Team,Long Service Awards,Edenred (UK Group) Limited,500.00, 28-Aug-2020
1061,Revenue,CAHD,Planning and Partnerships Team,Long Service Awards,Edenred (UK Group) Limited,550.00, 28-Aug-2020
1062,Revenue,CAHD,South - Commissioned Services,Permanent Residential,Edgemont House Ltd,3264.00, 25-Aug-2020
1063,Revenue,CAHD,South - bed purchasing and direct  payments,Permanent Residential,Edgemont House Ltd,3264.00, 25-Aug-2020
1064,Revenue,CAHD,Covid � ASC - Infection Control,Grants to Voluntary Bodies,Edgemont House Ltd,1159.34, 04-Aug-2020
1065,Revenue,CAHD,Covid � ASC - Infection Control,Grants to Voluntary Bodies,Edgemont House Ltd,6969.90, 04-Aug-2020
1066,Revenue,CAHD,South - Commissioned Services,Permanent Nursing,Edgemont View Ltd,3655.68, 25-Aug-2020
1067,Revenue,CAHD,South Glos Users in South Glos Homes,Permanent Nursing,Edgemont View Ltd,735.68, 25-Aug-2020
1068,Revenue,CAHD,South Glos Users in South Glos Homes,Permanent Nursing,Edgemont View Ltd,735.68, 25-Aug-2020
1069,Revenue,CAHD,South Glos Users in South Glos Homes,Permanent Nursing,Edgemont View Ltd,2101.94, 25-Aug-2020
1070,Revenue,CAHD,South Glos Users in South Glos Homes,Permanent Nursing,Edgemont View Ltd,735.68, 25-Aug-2020
1071,Revenue,CAHD,South Glos Users in South Glos Homes,Permanent Nursing,Edgemont View Ltd,735.68, 25-Aug-2020
1072,Revenue,CAHD,South - Commissioned Services,Permanent Nursing,Edgemont View Ltd,3600.00, 25-Aug-2020
1073,Revenue,CAHD,South Glos Users in South Glos Homes,Permanent Nursing,Edgemont View Ltd,2732.53, 25-Aug-2020
1074,Revenue,CAHD,South Glos Users in South Glos Homes,Permanent Nursing,Edgemont View Ltd,735.68, 25-Aug-2020
1075,Revenue,CAHD,South Glos Users in South Glos Homes,Permanent Nursing,Edgemont View Ltd,735.68, 25-Aug-2020
1076,Revenue,CAHD,South - Commissioned Services,Permanent Nursing,Edgemont View Ltd,3655.68, 25-Aug-2020
1077,Revenue,CAHD,South Glos Users in South Glos Homes,Permanent Nursing,Edgemont View Ltd,735.68, 25-Aug-2020
1078,Revenue,CAHD,Covid � ASC - Infection Control,Grants to Voluntary Bodies,Edgemont View Ltd,1739.01, 04-Aug-2020
1079,Revenue,CAHD,Covid � ASC - Infection Control,Grants to Voluntary Bodies,Edgemont View Ltd,10454.85, 04-Aug-2020
1080,Revenue,CAHD,Planning and Partnerships Procurement,Other Supplies & Services,Eldercare,450.00, 19-Aug-2020
1081,Revenue,CAHD,Planning and Partnerships Procurement,Other Supplies & Services,Eldercare,2735.25, 18-Aug-2020
1082,Revenue,CAHD,Planning and Partnerships Procurement,Other Supplies & Services,Eldercare,2715.14, 18-Aug-2020
1083,Revenue,CAHD,Flexible Homelessness Support Grant,Project Funding,Elim Housing Association Limited,40350.00, 28-Aug-2020
1084,Revenue,CAHD,Social Lettings Agency,Rent,Individual,1169.28, 05-Aug-2020
1085,Revenue,CAHD,Social Lettings Agency,Fees - General,Individual,15.12, 05-Aug-2020
1086,Revenue,CAHD,CSC - Legal Fees,Legal Fees,Individual,600.00, 12-Aug-2020
1087,Revenue,CAHD,CSC - Legal Fees,Legal Fees,Individual,600.00, 19-Aug-2020
1088,Revenue,CAHD,Sexual Health,Other Small Contracts,Emersons Green Medical Centre,1046.50, 04-Aug-2020
1089,Revenue,CAHD,Sexual Health,Other Small Contracts,Emersons Green Medical Centre,1025.47, 04-Aug-2020
1090,Revenue,CAHD,NHS Health Checks,Other Small Contracts,Emersons Green Medical Centre,743.67, 04-Aug-2020
1091,Revenue,CAHD,Drug and Alcohol Programme,Other Small Contracts,Emersons Green Medical Centre,1522.50, 04-Aug-2020
1092,Revenue,CAHD,Special ISB,Other Public Bodies,Enable Trust,648.70, 21-Aug-2020
1093,Revenue,CAHD,Special ISB,Other Public Bodies,Enable Trust,1175.87, 21-Aug-2020
1094,Revenue,CAHD,Special ISB,Other Public Bodies,Enable Trust,1175.87, 21-Aug-2020
1095,Revenue,CAHD,Special ISB,Other Public Bodies,Enable Trust,1175.87, 21-Aug-2020
1096,Revenue,CAHD,Special ISB,Other Public Bodies,Enable Trust,1175.87, 21-Aug-2020
1097,Revenue,CAHD,Special ISB,Other Public Bodies,Enable Trust,1175.87, 21-Aug-2020
1098,Revenue,CAHD,Special ISB,Other Public Bodies,Enable Trust,1540.83, 21-Aug-2020
1099,Revenue,CAHD,Special ISB,Other Public Bodies,Enable Trust,1540.83, 21-Aug-2020
1100,Revenue,CAHD,Special ISB,Other Public Bodies,Enable Trust,2189.53, 21-Aug-2020
1101,Revenue,CAHD,Special ISB,Other Public Bodies,Enable Trust,1540.83, 21-Aug-2020
1102,Revenue,CAHD,Special ISB,Other Public Bodies,Enable Trust,1175.87, 21-Aug-2020
1103,Revenue,CAHD,Special ISB,Other Public Bodies,Enable Trust,892.05, 21-Aug-2020
1104,Revenue,CAHD,Special ISB,Other Public Bodies,Enable Trust,1540.83, 21-Aug-2020
1105,Revenue,CAHD,Special ISB,Other Public Bodies,Enable Trust,892.05, 21-Aug-2020
1106,Revenue,CAHD,Special ISB,Other Public Bodies,Enable Trust,2189.53, 21-Aug-2020
1107,Revenue,CAHD,Special ISB,Other Public Bodies,Enable Trust,1540.83, 21-Aug-2020
1108,Revenue,CAHD,Special ISB,Other Public Bodies,Enable Trust,1175.87, 21-Aug-2020
1109,Revenue,CAHD,Special ISB,Other Public Bodies,Enable Trust,1175.87, 21-Aug-2020
1110,Revenue,CAHD,Special ISB,Other Public Bodies,Enable Trust,892.05, 21-Aug-2020
1111,Revenue,CAHD,Special ISB,Other Public Bodies,Enable Trust,1175.87, 21-Aug-2020
1112,Revenue,CAHD,Special ISB,Other Public Bodies,Enable Trust,1175.87, 21-Aug-2020
1113,Revenue,CAHD,Special ISB,Other Public Bodies,Enable Trust,1175.87, 21-Aug-2020
1114,Revenue,CAHD,Special ISB,Other Public Bodies,Enable Trust,648.70, 21-Aug-2020
1115,Revenue,CAHD,Special ISB,Other Public Bodies,Enable Trust,1175.87, 21-Aug-2020
1116,Revenue,CAHD,Special ISB,Other Public Bodies,Enable Trust,1175.87, 21-Aug-2020
1117,Revenue,CAHD,Special ISB,Other Public Bodies,Enable Trust,1175.87, 21-Aug-2020
1118,Revenue,CAHD,Special ISB,Other Public Bodies,Enable Trust,1540.83, 21-Aug-2020
1119,Revenue,CAHD,Special ISB,Other Public Bodies,Enable Trust,1175.87, 21-Aug-2020
1120,Revenue,CAHD,Special ISB,Other Public Bodies,Enable Trust,892.05, 21-Aug-2020
1121,Revenue,CAHD,Special ISB,Other Public Bodies,Enable Trust,1540.83, 21-Aug-2020
1122,Revenue,CAHD,Special ISB,Other Public Bodies,Enable Trust,1175.87, 21-Aug-2020
1123,Revenue,CAHD,Special ISB,Other Public Bodies,Enable Trust,892.05, 21-Aug-2020
1124,Revenue,CAHD,Special ISB,Other Public Bodies,Enable Trust,1540.83, 21-Aug-2020
1125,Revenue,CAHD,Special ISB,Other Public Bodies,Enable Trust,1540.83, 21-Aug-2020
1126,Revenue,CAHD,Special ISB,Other Public Bodies,Enable Trust,1175.87, 21-Aug-2020
1127,Revenue,CAHD,Special ISB,Other Public Bodies,Enable Trust,1175.87, 21-Aug-2020
1128,Revenue,CAHD,Special ISB,Other Public Bodies,Enable Trust,892.05, 21-Aug-2020
1129,Revenue,CAHD,Special ISB,Other Public Bodies,Enable Trust,2189.53, 21-Aug-2020
1130,Revenue,CAHD,Special ISB,Other Public Bodies,Enable Trust,1175.87, 21-Aug-2020
1131,Revenue,CAHD,Special ISB,Other Public Bodies,Enable Trust,1175.87, 21-Aug-2020
1132,Revenue,CAHD,Special ISB,Other Public Bodies,Enable Trust,1175.87, 21-Aug-2020
1133,Revenue,CAHD,Special ISB,Other Public Bodies,Enable Trust,1540.83, 21-Aug-2020
1134,Revenue,CAHD,Special ISB,Other Public Bodies,Enable Trust,1175.87, 21-Aug-2020
1135,Revenue,CAHD,Special ISB,Other Public Bodies,Enable Trust,892.05, 21-Aug-2020
1136,Revenue,CAHD,Special ISB,Other Public Bodies,Enable Trust,2189.53, 21-Aug-2020
1137,Revenue,CAHD,Special ISB,Other Public Bodies,Enable Trust,1175.87, 21-Aug-2020
1138,Revenue,CAHD,Special ISB,Other Public Bodies,Enable Trust,1540.83, 21-Aug-2020
1139,Revenue,CAHD,Special ISB,Other Public Bodies,Enable Trust,1175.87, 21-Aug-2020
1140,Revenue,CAHD,Special ISB,Other Public Bodies,Enable Trust,1540.83, 21-Aug-2020
1141,Revenue,CAHD,Special ISB,Other Public Bodies,Enable Trust,1702.96, 21-Aug-2020
1142,Revenue,CAHD,Special ISB,Other Public Bodies,Enable Trust,892.05, 21-Aug-2020
1143,Revenue,CAHD,Special ISB,Other Public Bodies,Enable Trust,1175.87, 21-Aug-2020
1144,Revenue,CAHD,Special ISB,Other Public Bodies,Enable Trust,892.05, 21-Aug-2020
1145,Revenue,CAHD,Special ISB,Other Public Bodies,Enable Trust,892.05, 21-Aug-2020
1146,Revenue,CAHD,Special ISB,Other Public Bodies,Enable Trust,1175.87, 21-Aug-2020
1147,Revenue,CAHD,Special ISB,Other Public Bodies,Enable Trust,1175.87, 21-Aug-2020
1148,Revenue,CAHD,Special ISB,Other Public Bodies,Enable Trust,1540.83, 21-Aug-2020
1149,Revenue,CAHD,Special ISB,Other Public Bodies,Enable Trust,1175.87, 21-Aug-2020
1150,Revenue,CAHD,Special ISB,Other Public Bodies,Enable Trust,1540.83, 21-Aug-2020
1151,Revenue,CAHD,Special ISB,Other Public Bodies,Enable Trust,892.05, 21-Aug-2020
1152,Revenue,CAHD,Special ISB,Other Public Bodies,Enable Trust,1540.83, 21-Aug-2020
1153,Revenue,CAHD,Special ISB,Other Public Bodies,Enable Trust,1175.87, 21-Aug-2020
1154,Revenue,CAHD,Special ISB,Other Public Bodies,Enable Trust,1175.87, 21-Aug-2020
1155,Revenue,CAHD,Special ISB,Other Public Bodies,Enable Trust,1540.83, 21-Aug-2020
1156,Revenue,CAHD,Special ISB,Other Public Bodies,Enable Trust,892.05, 21-Aug-2020
1157,Revenue,CAHD,Special ISB,Other Public Bodies,Enable Trust,892.05, 21-Aug-2020
1158,Revenue,CAHD,Special ISB,Other Public Bodies,Enable Trust,1175.87, 21-Aug-2020
1159,Revenue,CAHD,Special ISB,Other Public Bodies,Enable Trust,2189.53, 21-Aug-2020
1160,Revenue,CAHD,Special ISB,Other Public Bodies,Enable Trust,1175.87, 21-Aug-2020
1161,Revenue,CAHD,Special ISB,Other Public Bodies,Enable Trust,1175.87, 21-Aug-2020
1162,Revenue,CAHD,Special ISB,Other Public Bodies,Enable Trust,1540.83, 21-Aug-2020
1163,Revenue,CAHD,Special ISB,Other Public Bodies,Enable Trust,1540.83, 21-Aug-2020
1164,Revenue,CAHD,Special ISB,Other Public Bodies,Enable Trust,6794.56, 04-Aug-2020
1165,Revenue,CAHD,Special ISB,Other Public Bodies,Enable Trust,1175.87, 21-Aug-2020
1166,Revenue,CAHD,Special ISB,Other Public Bodies,Enable Trust,1702.96, 21-Aug-2020
1167,Revenue,CAHD,Special ISB,Other Public Bodies,Enable Trust,892.05, 21-Aug-2020
1168,Revenue,CAHD,Special ISB,Other Public Bodies,Enable Trust,1702.96, 21-Aug-2020
1169,Revenue,CAHD,Special ISB,Other Public Bodies,Enable Trust,1175.87, 21-Aug-2020
1170,Revenue,CAHD,Special ISB,Other Public Bodies,Enable Trust,2189.53, 21-Aug-2020
1171,Revenue,CAHD,Special ISB,Other Public Bodies,Enable Trust,2189.53, 21-Aug-2020
1172,Revenue,CAHD,Special ISB,Other Public Bodies,Enable Trust,1508.33, 21-Aug-2020
1173,Revenue,CAHD,Special ISB,Other Public Bodies,Enable Trust,892.05, 21-Aug-2020
1174,Revenue,CAHD,Special ISB,Other Public Bodies,Enable Trust,892.05, 21-Aug-2020
1175,Revenue,CAHD,Special ISB,Other Public Bodies,Enable Trust,1175.87, 21-Aug-2020
1176,Revenue,CAHD,Special ISB,Other Public Bodies,Enable Trust,2189.53, 21-Aug-2020
1177,Revenue,CAHD,Special ISB,Other Public Bodies,Enable Trust,2513.88, 21-Aug-2020
1178,Revenue,CAHD,Special ISB,Other Public Bodies,Enable Trust,892.05, 21-Aug-2020
1179,Revenue,CAHD,Special ISB,Other Public Bodies,Enable Trust,892.05, 21-Aug-2020
1180,Revenue,CAHD,Special ISB,Other Public Bodies,Enable Trust,1702.96, 21-Aug-2020
1181,Revenue,CAHD,Special ISB,Other Public Bodies,Enable Trust,1702.96, 21-Aug-2020
1182,Revenue,CAHD,Special ISB,Other Public Bodies,Enable Trust,1175.87, 21-Aug-2020
1183,Revenue,CAHD,Special ISB,Other Public Bodies,Enable Trust,1175.87, 21-Aug-2020
1184,Revenue,CAHD,Special ISB,Other Public Bodies,Enable Trust,1702.96, 21-Aug-2020
1185,Revenue,CAHD,Special ISB,Other Public Bodies,Enable Trust,1702.96, 21-Aug-2020
1186,Revenue,CAHD,Special ISB,Other Public Bodies,Enable Trust,1175.87, 21-Aug-2020
1187,Revenue,CAHD,Special ISB,Other Public Bodies,Enable Trust,1175.87, 21-Aug-2020
1188,Revenue,CAHD,Special ISB,Other Public Bodies,Enable Trust,892.05, 21-Aug-2020
1189,Revenue,CAHD,Special ISB,Other Public Bodies,Enable Trust,1702.96, 21-Aug-2020
1190,Revenue,CAHD,Special ISB,Other Public Bodies,Enable Trust,1175.87, 21-Aug-2020
1191,Revenue,CAHD,Special ISB,Other Public Bodies,Enable Trust,1175.87, 21-Aug-2020
1192,Revenue,CAHD,Special ISB,Other Public Bodies,Enable Trust,1175.87, 21-Aug-2020
1193,Revenue,CAHD,Special ISB,Other Public Bodies,Enable Trust,1702.96, 21-Aug-2020
1194,Revenue,CAHD,Special ISB,Other Public Bodies,Enable Trust,1702.96, 21-Aug-2020
1195,Revenue,CAHD,Special ISB,Other Public Bodies,Enable Trust,1175.87, 21-Aug-2020
1196,Revenue,CAHD,Special ISB,Other Public Bodies,Enable Trust,1702.96, 21-Aug-2020
1197,Revenue,CAHD,Special ISB,Other Public Bodies,Enable Trust,1175.87, 21-Aug-2020
1198,Revenue,CAHD,Special ISB,Other Public Bodies,Enable Trust,1175.87, 21-Aug-2020
1199,Revenue,CAHD,Special ISB,Other Public Bodies,Enable Trust,1175.87, 21-Aug-2020
1200,Revenue,CAHD,Special ISB,Other Public Bodies,Enable Trust,1175.87, 21-Aug-2020
1201,Revenue,CAHD,Special ISB,Other Public Bodies,Enable Trust,1175.87, 21-Aug-2020
1202,Revenue,CAHD,Special ISB,Other Public Bodies,Enable Trust,1175.87, 21-Aug-2020
1203,Revenue,CAHD,Special ISB,Other Public Bodies,Enable Trust,892.05, 21-Aug-2020
1204,Revenue,CAHD,Special ISB,Other Public Bodies,Enable Trust,1175.87, 21-Aug-2020
1205,Revenue,CAHD,Special ISB,Other Public Bodies,Enable Trust,1175.87, 21-Aug-2020
1206,Revenue,CAHD,Special ISB,Other Public Bodies,Enable Trust,2189.53, 21-Aug-2020
1207,Revenue,CAHD,Special ISB,Other Public Bodies,Enable Trust,1702.96, 21-Aug-2020
1208,Revenue,CAHD,Special ISB,Other Public Bodies,Enable Trust,1702.96, 21-Aug-2020
1209,Revenue,CAHD,Special ISB,Other Public Bodies,Enable Trust,892.05, 21-Aug-2020
1210,Revenue,CAHD,Special ISB,Other Public Bodies,Enable Trust,648.70, 21-Aug-2020
1211,Revenue,CAHD,Special ISB,Other Public Bodies,Enable Trust,1175.87, 21-Aug-2020
1212,Revenue,CAHD,Special ISB,Other Public Bodies,Enable Trust,892.05, 21-Aug-2020
1213,Revenue,CAHD,Special ISB,Other Public Bodies,Enable Trust,1175.87, 21-Aug-2020
1214,Revenue,CAHD,Special ISB,Other Public Bodies,Enable Trust,15104.40, 21-Aug-2020
1215,Revenue,CAHD,Special ISB,Other Public Bodies,Enable Trust,1702.96, 21-Aug-2020
1216,Revenue,CAHD,Special ISB,Other Public Bodies,Enable Trust,1702.96, 21-Aug-2020
1217,Revenue,CAHD,Special ISB,Other Public Bodies,Enable Trust,1540.83, 21-Aug-2020
1218,Revenue,CAHD,Special ISB,Other Public Bodies,Enable Trust,892.05, 21-Aug-2020
1219,Revenue,CAHD,Special ISB,Other Public Bodies,Enable Trust,1702.96, 21-Aug-2020
1220,Revenue,CAHD,Special ISB,Other Public Bodies,Enable Trust,1175.87, 21-Aug-2020
1221,Revenue,CAHD,Special ISB,Other Public Bodies,Enable Trust,1175.87, 21-Aug-2020
1222,Revenue,CAHD,Special ISB,Other Public Bodies,Enable Trust,1175.87, 21-Aug-2020
1223,Revenue,CAHD,Special ISB,Other Public Bodies,Enable Trust,892.05, 21-Aug-2020
1224,Revenue,CAHD,Special ISB,Other Public Bodies,Enable Trust,892.05, 21-Aug-2020
1225,Revenue,CAHD,Special ISB,Other Public Bodies,Enable Trust,892.05, 21-Aug-2020
1226,Revenue,CAHD,Special ISB,Other Public Bodies,Enable Trust,1175.87, 21-Aug-2020
1227,Revenue,CAHD,Special ISB,Other Public Bodies,Enable Trust,892.05, 21-Aug-2020
1228,Revenue,CAHD,Special ISB,Other Public Bodies,Enable Trust,892.05, 21-Aug-2020
1229,Revenue,CAHD,Special ISB,Other Public Bodies,Enable Trust,892.05, 21-Aug-2020
1230,Revenue,CAHD,Special ISB,Other Public Bodies,Enable Trust,1175.87, 21-Aug-2020
1231,Revenue,CAHD,Special ISB,Other Public Bodies,Enable Trust,1702.96, 21-Aug-2020
1232,Revenue,CAHD,Special ISB,Other Public Bodies,Enable Trust,1702.96, 21-Aug-2020
1233,Revenue,CAHD,Special ISB,Other Public Bodies,Enable Trust,2189.53, 21-Aug-2020
1234,Revenue,CAHD,Special ISB,Other Public Bodies,Enable Trust,1175.87, 21-Aug-2020
1235,Revenue,CAHD,Special ISB,Other Public Bodies,Enable Trust,892.05, 21-Aug-2020
1236,Revenue,CAHD,Special ISB,Other Public Bodies,Enable Trust,892.05, 21-Aug-2020
1237,Revenue,CAHD,Special ISB,Other Public Bodies,Enable Trust,1175.87, 21-Aug-2020
1238,Revenue,CAHD,Special ISB,Other Public Bodies,Enable Trust,1175.87, 21-Aug-2020
1239,Revenue,CAHD,Special ISB,Other Public Bodies,Enable Trust,1175.87, 21-Aug-2020
1240,Revenue,CAHD,Special ISB,Other Public Bodies,Enable Trust,1702.96, 21-Aug-2020
1241,Revenue,CAHD,Special ISB,Other Public Bodies,Enable Trust,1702.96, 21-Aug-2020
1242,Revenue,CAHD,Special ISB,Other Public Bodies,Enable Trust,1175.87, 21-Aug-2020
1243,Revenue,CAHD,Special ISB,Other Public Bodies,Enable Trust,892.05, 21-Aug-2020
1244,Revenue,CAHD,Special ISB,Other Public Bodies,Enable Trust,892.05, 21-Aug-2020
1245,Revenue,CAHD,Special ISB,Other Public Bodies,Enable Trust,1702.96, 21-Aug-2020
1246,Revenue,CAHD,Special ISB,Other Public Bodies,Enable Trust,2189.53, 21-Aug-2020
1247,Revenue,CAHD,Special ISB,Other Public Bodies,Enable Trust,1175.87, 21-Aug-2020
1248,Revenue,CAHD,Special ISB,Other Public Bodies,Enable Trust,892.05, 21-Aug-2020
1249,Revenue,CAHD,Special ISB,Other Public Bodies,Enable Trust,2189.53, 21-Aug-2020
1250,Revenue,CAHD,Special ISB,Other Public Bodies,Enable Trust,1702.96, 21-Aug-2020
1251,Revenue,CAHD,Special ISB,Other Public Bodies,Enable Trust,1540.83, 21-Aug-2020
1252,Revenue,CAHD,Special ISB,Other Public Bodies,Enable Trust,648.70, 21-Aug-2020
1253,Revenue,CAHD,Special ISB,Other Public Bodies,Enable Trust,1175.87, 21-Aug-2020
1254,Revenue,CAHD,Special ISB,Other Public Bodies,Enable Trust,2189.53, 21-Aug-2020
1255,Revenue,CAHD,Special ISB,Other Public Bodies,Enable Trust,1175.87, 21-Aug-2020
1256,Revenue,CAHD,Special ISB,Other Public Bodies,Enable Trust,1702.96, 21-Aug-2020
1257,Revenue,CAHD,Special ISB,Other Public Bodies,Enable Trust,2189.53, 21-Aug-2020
1258,Revenue,CAHD,Special ISB,Other Public Bodies,Enable Trust,1021.76, 21-Aug-2020
1259,Revenue,CAHD,Special ISB,Other Public Bodies,Enable Trust,3397.28, 04-Aug-2020
1260,Revenue,CAHD,Special ISB,Other Public Bodies,Enable Trust,994.54, 04-Aug-2020
1261,Revenue,CAHD,North - Community based support,Other Small Contracts,Epiphany In Care,4739.28, 19-Aug-2020
1262,Revenue,CAHD,North - Community based support,Other Small Contracts,Epiphany In Care,3722.40, 06-Aug-2020
1263,Revenue,CAHD,North - Community based support,Other Small Contracts,Epiphany In Care,4739.28, 11-Aug-2020
1264,Revenue,CAHD,Central - Commissioned Services,Other Small Contracts,Epiphany In Care,1148.40, 19-Aug-2020
1265,Revenue,CAHD,North - Community based support,Other Small Contracts,Epiphany In Care,1108.80, 19-Aug-2020
1266,Revenue,CAHD,Covid � ASC - Infection Control,Grants to Voluntary Bodies,Epiphany In Care,2329.85, 05-Aug-2020
1267,Revenue,CAHD,North - S117,Permanent Residential,Evolve House,3276.80, 25-Aug-2020
1268,Revenue,CAHD,Placements OLA Special Schools and RB,Other L.A.s - General,Excalibur Academies Trust T/A,2196.67, 26-Aug-2020
1269,Revenue,CAHD,CSC - Central LAC placements,Client Transport,Exclusive Secure Care Services,1344.29, 27-Aug-2020
1270,Revenue,CAHD,Extra Care Housing,Private & Voluntary Home Care,Extra Care Charitable Trust,26966.00, 12-Aug-2020
1271,Revenue,CAHD,Covid � ASC - Infection Control,Grants to Voluntary Bodies,Extra Care Charitable Trust,6578.40, 05-Aug-2020
1272,Revenue,CAHD,North - Community based support,Permanent Residential,Eyre Court,3719.16, 25-Aug-2020
1273,Revenue,CAHD,North - Community based support,Permanent Residential,Eyre Court,2700.00, 25-Aug-2020
1274,Revenue,CAHD,Covid � ASC - Infection Control,Grants to Voluntary Bodies,Eyre Court,4223.31, 04-Aug-2020
1275,Revenue,CAHD,Covid � ASC - Infection Control,Grants to Voluntary Bodies,Eyre Court,25390.35, 04-Aug-2020
1276,Revenue,CAHD,South - Commissioned Services,Permanent Nursing,Fairview Court,3886.76, 25-Aug-2020
1277,Revenue,CAHD,South Glos Users in South Glos Homes,Permanent Nursing,Fairview Court,735.68, 25-Aug-2020
1278,Revenue,CAHD,South Glos Users in South Glos Homes,Permanent Nursing,Fairview Court,735.68, 25-Aug-2020
1279,Revenue,CAHD,South Glos Users in South Glos Homes,Permanent Nursing,Fairview Court,735.68, 25-Aug-2020
1280,Revenue,CAHD,South - Commissioned Services,Permanent Nursing,Fairview Court,4137.76, 25-Aug-2020
1281,Revenue,CAHD,South Glos Users in South Glos Homes,Permanent Nursing,Fairview Court,735.68, 25-Aug-2020
1282,Revenue,CAHD,South Glos Users in South Glos Homes,Permanent Nursing,Fairview Court,735.68, 25-Aug-2020
1283,Revenue,CAHD,South - Commissioned Services,Permanent Nursing,Fairview Court,3618.72, 25-Aug-2020
1284,Revenue,CAHD,South Glos Users in South Glos Homes,Permanent Nursing,Fairview Court,735.68, 25-Aug-2020
1285,Revenue,CAHD,South Glos Users in South Glos Homes,Permanent Nursing,Fairview Court,735.68, 25-Aug-2020
1286,Revenue,CAHD,South - S117,Permanent Nursing,Fairview Court,4257.32, 25-Aug-2020
1287,Revenue,CAHD,South Glos Users in South Glos Homes,Permanent Nursing,Fairview Court,735.68, 25-Aug-2020
1288,Revenue,CAHD,South Glos Users in South Glos Homes,Permanent Nursing,Fairview Court,735.68, 25-Aug-2020
1289,Revenue,CAHD,South - Commissioned Services,Permanent Nursing,Fairview Court,3450.12, 25-Aug-2020
1290,Revenue,CAHD,South Glos Users in South Glos Homes,Permanent Nursing,Fairview Court,735.68, 25-Aug-2020
1291,Revenue,CAHD,South - bed purchasing and direct  payments,Permanent Nursing,Fairview Court,4078.24, 25-Aug-2020
1292,Revenue,CAHD,South Glos Users in South Glos Homes,Permanent Nursing,Fairview Court,735.68, 25-Aug-2020
1293,Revenue,CAHD,South Glos Users in South Glos Homes,Permanent Nursing,Fairview Court,735.68, 25-Aug-2020
1294,Revenue,CAHD,South Glos Users in South Glos Homes,Permanent Nursing,Fairview Court,735.68, 25-Aug-2020
1295,Revenue,CAHD,South Glos Users in South Glos Homes,Permanent Nursing,Fairview Court,735.68, 25-Aug-2020
1296,Revenue,CAHD,South - Commissioned Services,Permanent Nursing,Fairview Court,4140.00, 25-Aug-2020
1297,Revenue,CAHD,South Glos Users in South Glos Homes,Permanent Nursing,Fairview Court,735.68, 25-Aug-2020
1298,Revenue,CAHD,South - Commissioned Services,Permanent Nursing,Fairview Court,3886.76, 25-Aug-2020
1299,Revenue,CAHD,South Glos Users in South Glos Homes,Permanent Nursing,Fairview Court,735.68, 25-Aug-2020
1300,Revenue,CAHD,South Glos Users in South Glos Homes,Permanent Nursing,Fairview Court,735.68, 25-Aug-2020
1301,Revenue,CAHD,South - Commissioned Services,Permanent Nursing,Fairview Court,4800.00, 25-Aug-2020
1302,Revenue,CAHD,South Glos Users in South Glos Homes,Permanent Nursing,Fairview Court,735.68, 25-Aug-2020
1303,Revenue,CAHD,South - Commissioned Services,Permanent Nursing,Fairview Court,4137.76, 25-Aug-2020
1304,Revenue,CAHD,South Glos Users in South Glos Homes,Permanent Nursing,Fairview Court,735.68, 25-Aug-2020
1305,Revenue,CAHD,South Glos Users in South Glos Homes,Permanent Nursing,Fairview Court,735.68, 25-Aug-2020
1306,Revenue,CAHD,South Glos Users in South Glos Homes,Permanent Nursing,Fairview Court,735.68, 25-Aug-2020
1307,Revenue,CAHD,South - Commissioned Services,Permanent Residential,Fairview Court,4048.64, 25-Aug-2020
1308,Revenue,CAHD,South Glos Users in South Glos Homes,Permanent Nursing,Fairview Court,735.68, 25-Aug-2020
1309,Revenue,CAHD,South Glos Users in South Glos Homes,Permanent Nursing,Fairview Court,735.68, 25-Aug-2020
1310,Revenue,CAHD,South - Commissioned Services,Permanent Nursing,Fairview Court,4800.00, 25-Aug-2020
1311,Revenue,CAHD,South Glos Users in South Glos Homes,Permanent Nursing,Fairview Court,735.68, 25-Aug-2020
1312,Revenue,CAHD,South Glos Users in South Glos Homes,Permanent Nursing,Fairview Court,735.68, 25-Aug-2020
1313,Revenue,CAHD,North - Community based support,Permanent Residential,Fairview Court,3321.44, 25-Aug-2020
1314,Revenue,CAHD,South - bed purchasing and direct  payments,Permanent Nursing,Fairview Court,4137.76, 25-Aug-2020
1315,Revenue,CAHD,South Glos Users in South Glos Homes,Permanent Nursing,Fairview Court,735.68, 25-Aug-2020
1316,Revenue,CAHD,South - Commissioned Services,Permanent Nursing,Fairview Court,4137.76, 25-Aug-2020
1317,Revenue,CAHD,South Glos Users in South Glos Homes,Permanent Nursing,Fairview Court,735.68, 25-Aug-2020
1318,Revenue,CAHD,South Glos Users in South Glos Homes,Permanent Nursing,Fairview Court,735.68, 25-Aug-2020
1319,Revenue,CAHD,South Glos Users in South Glos Homes,Permanent Nursing,Fairview Court,735.68, 25-Aug-2020
1320,Revenue,CAHD,South - Commissioned Services,Permanent Nursing,Fairview Court,3553.36, 25-Aug-2020
1321,Revenue,CAHD,South Glos Users in South Glos Homes,Permanent Nursing,Fairview Court,735.68, 25-Aug-2020
1322,Revenue,CAHD,North - Community based support,Permanent Nursing,Fairview Court,3886.76, 25-Aug-2020
1323,Revenue,CAHD,South Glos Users in South Glos Homes,Permanent Nursing,Fairview Court,735.68, 25-Aug-2020
1324,Revenue,CAHD,South - Commissioned Services,Permanent Nursing,Fairview Court,3192.96, 25-Aug-2020
1325,Revenue,CAHD,South Glos Users in South Glos Homes,Permanent Nursing,Fairview Court,735.68, 25-Aug-2020
1326,Revenue,CAHD,South - Commissioned Services,Permanent Nursing,Fairview Court,3618.72, 25-Aug-2020
1327,Revenue,CAHD,South Glos Users in South Glos Homes,Permanent Nursing,Fairview Court,735.68, 25-Aug-2020
1328,Revenue,CAHD,South - Commissioned Services,Permanent Nursing,Fairview Court,4028.00, 25-Aug-2020
1329,Revenue,CAHD,South Glos Users in South Glos Homes,Permanent Nursing,Fairview Court,735.68, 25-Aug-2020
1330,Revenue,CAHD,South - Commissioned Services,Permanent Nursing,Fairview Court,4137.76, 25-Aug-2020
1331,Revenue,CAHD,South Glos Users in South Glos Homes,Permanent Nursing,Fairview Court,735.68, 25-Aug-2020
1332,Revenue,CAHD,Covid � ASC - Infection Control,Grants to Voluntary Bodies,Fairview Court,4057.69, 04-Aug-2020
1333,Revenue,CAHD,Covid � ASC - Infection Control,Grants to Voluntary Bodies,Fairview Court,24394.65, 04-Aug-2020
1334,Revenue,CAHD,South - Commissioned Services,Permanent Residential,Fairview House,2349.60, 25-Aug-2020
1335,Revenue,CAHD,South - Commissioned Services,Permanent Residential,Fairview House,3400.00, 25-Aug-2020
1336,Revenue,CAHD,South - Commissioned Services,Permanent Residential,Fairview House,3400.00, 25-Aug-2020
1337,Revenue,CAHD,South Glos Users in South Glos Homes,Permanent Nursing,Fairview House,735.68, 25-Aug-2020
1338,Revenue,CAHD,South - Commissioned Services,Permanent Residential,Fairview House,3468.00, 25-Aug-2020
1339,Revenue,CAHD,South - Commissioned Services,Permanent Residential,Fairview House,3800.00, 25-Aug-2020
1340,Revenue,CAHD,Covid � ASC - Infection Control,Grants to Voluntary Bodies,Fairview House,1987.44, 04-Aug-2020
1341,Revenue,CAHD,Covid � ASC - Infection Control,Grants to Voluntary Bodies,Fairview House,11948.40, 04-Aug-2020
1342,Revenue,CAHD,North - Community based support,Fees & Charges Income - General,Faith House,553.94, 25-Aug-2020
1343,Revenue,CAHD,Central - Commissioned Services,Permanent Residential,Faith House,17352.05, 25-Aug-2020
1344,Revenue,CAHD,Central - Commissioned Services,Permanent Residential,Faith House,4149.40, 25-Aug-2020
1345,Revenue,CAHD,Central - Commissioned Services,Permanent Residential,Faith House,2631.92, 25-Aug-2020
1346,Revenue,CAHD,North - Community based support,Permanent Residential,Faith House,2861.88, 25-Aug-2020
1347,Revenue,CAHD,North - Community based support,Permanent Residential,Faith House,3039.60, 25-Aug-2020
1348,Revenue,CAHD,South - Commissioned Services,Permanent Residential,Faith House,2958.00, 25-Aug-2020
1349,Revenue,CAHD,Covid � ASC - Infection Control,Grants to Voluntary Bodies,Faith House,828.10, 04-Aug-2020
1350,Revenue,CAHD,Covid � ASC - Infection Control,Grants to Voluntary Bodies,Faith House,4978.50, 04-Aug-2020
1351,Revenue,CAHD,Central - Commissioned Services,Permanent Residential,Fieldview,4950.00, 25-Aug-2020
1352,Revenue,CAHD,Central - Commissioned Services,Permanent Residential,Fieldview,3481.60, 25-Aug-2020
1353,Revenue,CAHD,North - Community based support,Permanent Residential,Fieldview,3200.00, 25-Aug-2020
1354,Revenue,CAHD,Central - Commissioned Services,Permanent Residential,Fieldview,7771.43, 25-Aug-2020
1355,Revenue,CAHD,South - Commissioned Services,Permanent Residential,Fieldview,3600.00, 25-Aug-2020
1356,Revenue,CAHD,Statemented Support Payments to OLAs,Other L.A.s - General,Filton Avenue Primary School,1131.84, 26-Aug-2020
1357,Revenue,CAHD,Statemented Support Payments to OLAs,Other L.A.s - General,Filton Avenue Primary School,1332.27, 26-Aug-2020
1358,Revenue,CAHD,"Education, Learning and Skills",Consultants Fees,Firmament Education Ltd,1800.00, 11-Aug-2020
1359,Revenue,CAHD,South - Commissioned Services,Permanent Nursing,First Floor  Lingfield House,2554.36, 25-Aug-2020
1360,Revenue,CAHD,South Glos Users in South Glos Homes,Permanent Nursing,First Floor  Lingfield House,735.68, 25-Aug-2020
1361,Revenue,CAHD,South Glos Users in South Glos Homes,Permanent Nursing,First Floor  Lingfield House,735.68, 25-Aug-2020
1362,Revenue,CAHD,South - Commissioned Services,Respite Emergency - Residential,First Floor  Lingfield House,1680.00, 25-Aug-2020
1363,Revenue,CAHD,South - Commissioned Services,Permanent Residential,First Floor  Lingfield House,9840.00, 25-Aug-2020
1364,Revenue,CAHD,South - Commissioned Services,Permanent Residential,First Floor  Lingfield House,3360.00, 25-Aug-2020
1365,Revenue,CAHD,South - Commissioned Services,Permanent Residential,First Floor  Lingfield House,2349.68, 25-Aug-2020
1366,Revenue,CAHD,Covid � ASC - Infection Control,Grants to Voluntary Bodies,First Floor  Lingfield House,4802.98, 04-Aug-2020
1367,Revenue,CAHD,Covid � ASC - Infection Control,Grants to Voluntary Bodies,First Floor  Lingfield House,28875.30, 04-Aug-2020
1368,Revenue,CAHD,North - Community based support,Permanent Nursing,First Floor  Lingfield House,2401.84, 25-Aug-2020
1369,Revenue,CAHD,North - Community based support,Permanent Residential,First Floor  Lingfield House,2174.20, 25-Aug-2020
1370,Revenue,CAHD,North - Community based support,Permanent Nursing,First Floor  Lingfield House,2657.80, 25-Aug-2020
1371,Revenue,CAHD,CSC - Agency Fostering,Foster Parent Allowances,Five Rivers Child Care Limited,2223.76, 27-Aug-2020
1372,Revenue,CAHD,CSC - Agency Fostering,Foster Parent Allowances,Five Rivers Child Care Limited,3447.82, 27-Aug-2020
1373,Revenue,CAHD,CSC - Agency Fostering,Foster Parent Allowances,Five Rivers Child Care Limited,3671.29, 27-Aug-2020
1374,Revenue,CAHD,CSC - Agency Fostering,Foster Parent Allowances,Foster Care Associates Limited,3094.17, 26-Aug-2020
1375,Revenue,CAHD,CSC - Parent & Child Assessments,Foster Parent Allowances,Foster Care Associates Limited,555.00, 03-Aug-2020
1376,Revenue,CAHD,CSC - Parent & Child Assessments,Foster Parent Allowances,Foster Care Associates Limited,4884.00, 03-Aug-2020
1377,Revenue,CAHD,CSC - Parent & Child Assessments,Foster Parent Allowances,Foster Care Associates Limited,6882.00, 13-Aug-2020
1378,Revenue,CAHD,CSC - Agency Fostering,Foster Parent Allowances,Fostering Matters Ltd,3520.67, 03-Aug-2020
1379,Revenue,CAHD,CSC - Agency Fostering,Foster Parent Allowances,Fostering Matters Ltd,3520.67, 03-Aug-2020
1380,Revenue,CAHD,CSC - Parent & Child Assessments,Foster Parent Allowances,Fostering Solutions Limited,5869.54, 27-Aug-2020
1381,Revenue,CAHD,CSC - Parent & Child Assessments,Foster Parent Allowances,Fostering Solutions Limited,7512.23, 19-Aug-2020
1382,Revenue,CAHD,CSC - Parent & Child Assessments,Foster Parent Allowances,Fostering Solutions Limited,5869.54, 28-Aug-2020
1383,Revenue,CAHD,CSC - Parent & Child Assessments,Foster Parent Allowances,Fostering Solutions Limited,7512.23, 28-Aug-2020
1384,Revenue,CAHD,Central - Commissioned Services,Other Small Contracts,Fourways Care Limited,174.00, 04-Aug-2020
1385,Revenue,CAHD,South - Commissioned Services,Other Small Contracts,Fourways Care Limited,359.94, 04-Aug-2020
1386,Revenue,CAHD,North - Community based support,Other Small Contracts,Fourways Care Limited,11439.42, 04-Aug-2020
1387,Revenue,CAHD,Central - Commissioned Services,Other Small Contracts,Fourways Care Limited,264.00, 05-Aug-2020
1388,Revenue,CAHD,South - Commissioned Services,Other Small Contracts,Fourways Care Limited,424.68, 05-Aug-2020
1389,Revenue,CAHD,North - Community based support,Other Small Contracts,Fourways Care Limited,11654.58, 05-Aug-2020
1390,Revenue,CAHD,Central - Commissioned Services,Other Small Contracts,Fourways Care Limited,306.00, 26-Aug-2020
1391,Revenue,CAHD,South - Commissioned Services,Other Small Contracts,Fourways Care Limited,429.66, 26-Aug-2020
1392,Revenue,CAHD,North - Community based support,Other Small Contracts,Fourways Care Limited,11422.44, 26-Aug-2020
1393,Revenue,CAHD,Central - Commissioned Services,Other Small Contracts,Fourways Care Limited,288.00, 20-Aug-2020
1394,Revenue,CAHD,South - Commissioned Services,Other Small Contracts,Fourways Care Limited,414.72, 20-Aug-2020
1395,Revenue,CAHD,North - Community based support,Other Small Contracts,Fourways Care Limited,11440.44, 20-Aug-2020
1396,Revenue,CAHD,Central - Commissioned Services,Other Small Contracts,Fourways Care Limited,288.00, 28-Aug-2020
1397,Revenue,CAHD,South - Commissioned Services,Other Small Contracts,Fourways Care Limited,419.70, 28-Aug-2020
1398,Revenue,CAHD,North - Community based support,Other Small Contracts,Fourways Care Limited,12013.14, 28-Aug-2020
1399,Revenue,CAHD,Covid � ASC - Infection Control,Grants to Voluntary Bodies,Fourways Care Limited,10826.95, 05-Aug-2020
1400,Revenue,CAHD,South - Commissioned Services,Day Care / Social Activities,Freeways Trust Limited,1099.84, 17-Aug-2020
1401,Revenue,CAHD,Central - Commissioned Services,Other Small Contracts,Freeways Trust Limited,628.48, 17-Aug-2020
1402,Revenue,CAHD,Central - Commissioned Services,Other Small Contracts,Freeways Trust Limited,707.04, 17-Aug-2020
1403,Revenue,CAHD,Central - Commissioned Services,Permanent Residential,Freeways Trust Limited,3968.00, 25-Aug-2020
1404,Revenue,CAHD,Central - Commissioned Services,Permanent Residential,Freeways Trust Limited,13879.87, 25-Aug-2020
1405,Revenue,CAHD,Central - Bed Purchasing and Direct Payments,Permanent Residential,Freeways Trust Limited,11082.57, 25-Aug-2020
1406,Revenue,CAHD,Central - Commissioned Services,Permanent Residential,Freeways Trust Limited,10661.71, 25-Aug-2020
1407,Revenue,CAHD,Central - Commissioned Services,Permanent Residential,Freeways Trust Limited,4006.56, 25-Aug-2020
1408,Revenue,CAHD,Central - Commissioned Services,Fees & Charges Income - General,Freeways Trust Limited,2658.04, 25-Aug-2020
1409,Revenue,CAHD,Central - Commissioned Services,Fees & Charges Income - General,Freeways Trust Limited,1556.17, 25-Aug-2020
1410,Revenue,CAHD,Central - Commissioned Services,Fees & Charges Income - General,Freeways Trust Limited,1616.80, 25-Aug-2020
1411,Revenue,CAHD,Central - Commissioned Services,Fees & Charges Income - General,Freeways Trust Limited,2083.90, 25-Aug-2020
1412,Revenue,CAHD,Central - Commissioned Services,Permanent Residential,Freeways Trust Limited,4462.28, 25-Aug-2020
1413,Revenue,CAHD,Central - Commissioned Services,Permanent Residential,Freeways Trust Limited,5152.32, 25-Aug-2020
1414,Revenue,CAHD,North - Community based support,Permanent Residential,Freeways Trust Limited,4009.36, 25-Aug-2020
1415,Revenue,CAHD,Central - Commissioned Services,Permanent Residential,Freeways Trust Limited,13879.87, 25-Aug-2020
1416,Revenue,CAHD,Central - Commissioned Services,Permanent Residential,Freeways Trust Limited,11643.71, 25-Aug-2020
1417,Revenue,CAHD,Central - Bed Purchasing and Direct Payments,Permanent Residential,Freeways Trust Limited,10100.57, 25-Aug-2020
1418,Revenue,CAHD,Central - Commissioned Services,Permanent Residential,Freeways Trust Limited,4006.56, 25-Aug-2020
1419,Revenue,CAHD,Central - Commissioned Services,Fees & Charges Income - General,Freeways Trust Limited,1888.39, 25-Aug-2020
1420,Revenue,CAHD,Central - Commissioned Services,Fees & Charges Income - General,Freeways Trust Limited,1079.88, 25-Aug-2020
1421,Revenue,CAHD,Central - Commissioned Services,Fees & Charges Income - General,Freeways Trust Limited,1242.60, 25-Aug-2020
1422,Revenue,CAHD,Central - Commissioned Services,Fees & Charges Income - General,Freeways Trust Limited,1480.50, 25-Aug-2020
1423,Revenue,CAHD,South - Commissioned Services,Permanent Residential,Freeways Trust Limited,4431.96, 25-Aug-2020
1424,Revenue,CAHD,Central - Commissioned Services,Permanent Residential,Freeways Trust Limited,4006.56, 25-Aug-2020
1425,Revenue,CAHD,Central - Commissioned Services,Permanent Residential,Freeways Trust Limited,17886.43, 25-Aug-2020
1426,Revenue,CAHD,Central - Bed Purchasing and Direct Payments,Permanent Residential,Freeways Trust Limited,11082.57, 25-Aug-2020
1427,Revenue,CAHD,Central - Commissioned Services,Permanent Residential,Freeways Trust Limited,10661.71, 25-Aug-2020
1428,Revenue,CAHD,Central - Commissioned Services,Permanent Residential,Freeways Trust Limited,4006.56, 25-Aug-2020
1429,Revenue,CAHD,Central - Commissioned Services,Fees & Charges Income - General,Freeways Trust Limited,1139.05, 25-Aug-2020
1430,Revenue,CAHD,Central - Commissioned Services,Fees & Charges Income - General,Freeways Trust Limited,1183.43, 25-Aug-2020
1431,Revenue,CAHD,Central - Commissioned Services,Fees & Charges Income - General,Freeways Trust Limited,1903.50, 25-Aug-2020
1432,Revenue,CAHD,North - Community based support,Permanent Residential,Freeways Trust Limited,4009.36, 25-Aug-2020
1433,Revenue,CAHD,Central - Commissioned Services,Permanent Residential,Freeways Trust Limited,5991.92, 25-Aug-2020
1434,Revenue,CAHD,Covid � ASC - Infection Control,Grants to Voluntary Bodies,Freeways Trust Limited,1324.96, 04-Aug-2020
1435,Revenue,CAHD,Covid � ASC - Infection Control,Grants to Voluntary Bodies,Freeways Trust Limited,7965.60, 04-Aug-2020
1436,Revenue,CAHD,North - Community based support,Supported Living,Freeways Trust Ltd,862.44, 25-Aug-2020
1437,Revenue,CAHD,S28A cases,Permanent Residential,Freeways Trust Ltd,3886.64, 25-Aug-2020
1438,Revenue,CAHD,North - Community based support,Permanent Residential,Freeways Trust Ltd,3763.40, 25-Aug-2020
1439,Revenue,CAHD,North - Community based support,Permanent Residential,Freeways Trust Ltd,3301.04, 25-Aug-2020
1440,Revenue,CAHD,North - Community based support,Permanent Residential,Freeways Trust Ltd,3381.20, 25-Aug-2020
1441,Revenue,CAHD,North - Community based support,Permanent Residential,Freeways Trust Ltd,3680.48, 25-Aug-2020
1442,Revenue,CAHD,Section 117 Placements MH Younger,Permanent Residential,Freeways Trust Ltd,3339.04, 25-Aug-2020
1443,Revenue,CAHD,Central - Commissioned Services,Day Care / Social Activities,Frenchay Beckspool Building,1933.52, 25-Aug-2020
1444,Revenue,CAHD,South - Commissioned Services,Day Care / Social Activities,Frenchay Beckspool Building,920.44, 25-Aug-2020
1445,Revenue,CAHD,South - Commissioned Services,Day Care / Social Activities,Frenchay Beckspool Building,652.88, 25-Aug-2020
1446,Revenue,CAHD,Pathway 3 - (Complex Beds),Permanent Nursing,Frenchay House,3409.60, 13-Aug-2020
1447,Revenue,CAHD,North - Community based support,Fees & Charges Income - General,Frenchay Park Nursing Home,1407.12, 25-Aug-2020
1448,Revenue,CAHD,North - Community based support,Permanent Nursing,Frenchay Park Nursing Home,11900.00, 25-Aug-2020
1449,Revenue,CAHD,North - Community based support,Permanent Nursing,Frenchay Park Nursing Home,4735.71, 25-Aug-2020
1450,Revenue,CAHD,North - Community based support,Permanent Nursing,Frenchay Park Nursing Home,3400.00, 25-Aug-2020
1451,Revenue,CAHD,North - Community based support,Fees & Charges Income - General,Frenchay Park Nursing Home,772.76, 25-Aug-2020
1452,Revenue,CAHD,North - Community based support,Fees & Charges Income - General,Frenchay Park Nursing Home,2062.64, 25-Aug-2020
1453,Revenue,CAHD,Sexual Health,Other Small Contracts,Frome Valley Medical Centre,1905.17, 04-Aug-2020
1454,Revenue,CAHD,Sexual Health,Other Small Contracts,Frome Valley Medical Centre,1582.95, 04-Aug-2020
1455,Revenue,CAHD,NHS Health Checks,Other Small Contracts,Frome Valley Medical Centre,3779.33, 04-Aug-2020
1456,Revenue,CAHD,Drug and Alcohol Programme,Other Small Contracts,Frome Valley Medical Centre,710.50, 04-Aug-2020
1457,Revenue,CAHD,CSC - Through & Leaving Care Team,Agency Staff (Admin/Support Staff) Pay,Frontline Staffing Ltd,1871.60, 14-Aug-2020
1458,Revenue,CAHD,CSC - Social Work Team - CENTRAL,Agency Staff (Admin/Support Staff) Pay,Frontline Staffing Ltd,1824.81, 11-Aug-2020
1459,Revenue,CAHD,CSC - Social Work Team - CENTRAL,Agency Staff (Admin/Support Staff) Pay,Frontline Staffing Ltd,1760.30, 18-Aug-2020
1460,Revenue,CAHD,CSC - Social Work Team - CENTRAL,Agency Staff (Admin/Support Staff) Pay,Frontline Staffing Ltd,1413.60, 24-Aug-2020
1461,Revenue,CAHD,CSC - Social Work Team - CENTRAL,Agency Staff (Admin/Support Staff) Pay,Frontline Staffing Ltd,1848.21, 24-Aug-2020
1462,Revenue,CAHD,CSC - Through & Leaving Care Team,Agency Staff (Admin/Support Staff) Pay,Frontline Staffing Ltd,1871.60, 28-Aug-2020
1463,Revenue,CAHD,CSC - Social Work Team - CENTRAL,Agency Staff (Admin/Support Staff) Pay,Frontline Staffing Ltd,1403.70, 28-Aug-2020
1464,Revenue,CAHD,CSC - Social Work Team - CENTRAL,Agency Staff (Admin/Support Staff) Pay,Frontline Staffing Ltd,1754.63, 28-Aug-2020
1465,Revenue,CAHD,North - Community based support,Supported Living,Gladstone House,3237.64, 25-Aug-2020
1466,Revenue,CAHD,18-25 Year Olds,Supported Living,Gladstone House,3237.64, 25-Aug-2020
1467,Revenue,CAHD,South - Commissioned Services,Permanent Residential,Gladstone House,5999.84, 25-Aug-2020
1468,Revenue,CAHD,MH Purchasing - Younger,Permanent Residential,Gladstone House,3135.90, 25-Aug-2020
1469,Revenue,CAHD,Jointly Funded H&SC Packages,Permanent Residential,Gladstone House,783.98, 25-Aug-2020
1470,Revenue,CAHD,North - Community based support,Permanent Residential,Glan Y Felin,6803.40, 25-Aug-2020
1471,Revenue,CAHD,South - Commissioned Services,Permanent Residential,Glasallt Fawr,5550.16, 25-Aug-2020
1472,Revenue,CAHD,North - Community based support,Permanent Nursing,Glebe House Nursing Home,3737.44, 25-Aug-2020
1473,Revenue,CAHD,South Glos Users in South Glos Homes,Permanent Nursing,Glebe House Nursing Home,735.68, 25-Aug-2020
1474,Revenue,CAHD,North - Community based support,Permanent Nursing,Glebe House Nursing Home,4052.60, 25-Aug-2020
1475,Revenue,CAHD,South Glos Users in South Glos Homes,Permanent Nursing,Glebe House Nursing Home,735.68, 25-Aug-2020
1476,Revenue,CAHD,South Glos Users in South Glos Homes,Permanent Nursing,Glebe House Nursing Home,735.68, 25-Aug-2020
1477,Revenue,CAHD,South Glos Users in South Glos Homes,Permanent Nursing,Glebe House Nursing Home,735.68, 25-Aug-2020
1478,Revenue,CAHD,North - Community based support,Permanent Nursing,Glebe House Nursing Home,3998.40, 25-Aug-2020
1479,Revenue,CAHD,South Glos Users in South Glos Homes,Permanent Nursing,Glebe House Nursing Home,735.68, 25-Aug-2020
1480,Revenue,CAHD,South Glos Users in South Glos Homes,Permanent Nursing,Glebe House Nursing Home,735.68, 25-Aug-2020
1481,Revenue,CAHD,North - Community based support,Permanent Residential,Glebe House Nursing Home,3910.52, 25-Aug-2020
1482,Revenue,CAHD,South Glos Users in South Glos Homes,Permanent Nursing,Glebe House Nursing Home,735.68, 25-Aug-2020
1483,Revenue,CAHD,South Glos Users in South Glos Homes,Permanent Nursing,Glebe House Nursing Home,735.68, 25-Aug-2020
1484,Revenue,CAHD,South Glos Users in South Glos Homes,Permanent Nursing,Glebe House Nursing Home,735.68, 25-Aug-2020
1485,Revenue,CAHD,North - Community based support,Permanent Nursing,Glebe House Nursing Home,4048.60, 25-Aug-2020
1486,Revenue,CAHD,South Glos Users in South Glos Homes,Permanent Nursing,Glebe House Nursing Home,735.68, 25-Aug-2020
1487,Revenue,CAHD,Central - Commissioned Services,Permanent Residential,Glebe House Nursing Home,3980.00, 25-Aug-2020
1488,Revenue,CAHD,South Glos Users in South Glos Homes,Permanent Nursing,Glebe House Nursing Home,735.68, 25-Aug-2020
1489,Revenue,CAHD,Central - Commissioned Services,Permanent Nursing,Glebe House Nursing Home,4120.00, 25-Aug-2020
1490,Revenue,CAHD,Central - Commissioned Services,Fees & Charges Income - General,Glebe House Nursing Home,2381.60, 25-Aug-2020
1491,Revenue,CAHD,Central - Commissioned Services,Fees & Charges Income - General,Glebe House Nursing Home,687.57, 25-Aug-2020
1492,Revenue,CAHD,North - Community based support,Permanent Nursing,Glebe House Nursing Home,4080.00, 25-Aug-2020
1493,Revenue,CAHD,South Glos Users in South Glos Homes,Permanent Nursing,Glebe House Nursing Home,735.68, 25-Aug-2020
1494,Revenue,CAHD,South Glos Users in South Glos Homes,Permanent Nursing,Glebe House Nursing Home,735.68, 25-Aug-2020
1495,Revenue,CAHD,North - Community based support,Permanent Nursing,Glebe House Nursing Home,4039.36, 25-Aug-2020
1496,Revenue,CAHD,South Glos Users in South Glos Homes,Permanent Nursing,Glebe House Nursing Home,735.68, 25-Aug-2020
1497,Revenue,CAHD,North - Community based support,Permanent Nursing,Glebe House Nursing Home,4080.00, 25-Aug-2020
1498,Revenue,CAHD,South Glos Users in South Glos Homes,Permanent Nursing,Glebe House Nursing Home,735.68, 25-Aug-2020
1499,Revenue,CAHD,North - Community based support,Permanent Residential,Glebe House Nursing Home,5051.24, 25-Aug-2020
1500,Revenue,CAHD,South Glos Users in South Glos Homes,Permanent Nursing,Glebe House Nursing Home,735.68, 25-Aug-2020
1501,Revenue,CAHD,South Glos Users in South Glos Homes,Permanent Nursing,Glebe House Nursing Home,735.68, 25-Aug-2020
1502,Revenue,CAHD,South Glos Users in South Glos Homes,Permanent Nursing,Glebe House Nursing Home,735.68, 25-Aug-2020
1503,Revenue,CAHD,South Glos Users in South Glos Homes,Permanent Nursing,Glebe House Nursing Home,1208.62, 25-Aug-2020
1504,Revenue,CAHD,South Glos Users in South Glos Homes,Permanent Nursing,Glebe House Nursing Home,735.68, 25-Aug-2020
1505,Revenue,CAHD,North - Community based support,Permanent Nursing,Glebe House Nursing Home,3572.12, 25-Aug-2020
1506,Revenue,CAHD,South Glos Users in South Glos Homes,Permanent Nursing,Glebe House Nursing Home,735.68, 25-Aug-2020
1507,Revenue,CAHD,South Glos Users in South Glos Homes,Permanent Nursing,Glebe House Nursing Home,735.68, 25-Aug-2020
1508,Revenue,CAHD,Covid � ASC - Infection Control,Grants to Voluntary Bodies,Glebe House Nursing Home,4388.93, 04-Aug-2020
1509,Revenue,CAHD,Covid � ASC - Infection Control,Grants to Voluntary Bodies,Glebe House Nursing Home,26386.05, 04-Aug-2020
1510,Revenue,CAHD,Central - Commissioned Services,Permanent Nursing,Glenview Care Home,3224.00, 25-Aug-2020
1511,Revenue,CAHD,South - Commissioned Services,Permanent Nursing,Glenview Care Home,1035.00, 25-Aug-2020
1512,Revenue,CAHD,South - Commissioned Services,Permanent Nursing,Glenview Care Home,2185.00, 25-Aug-2020
1513,Revenue,CAHD,North - Community based support,Permanent Nursing,Glenview Care Home,3600.00, 25-Aug-2020
1514,Revenue,CAHD,North - Community based support,Permanent Nursing,Glenview Care Home,690.86, 25-Aug-2020
1515,Revenue,CAHD,North - Community based support,Permanent Nursing,Glenview Care Home,3224.00, 25-Aug-2020
1516,Revenue,CAHD,CSC - Fostering Carer Support,Advertising - General,Global Radio Services Ltd,1950.00, 07-Aug-2020
1517,Revenue,CAHD,Homelessness Contingency,Other Supplies & Services,Individual,2597.02, 19-Aug-2020
1518,Revenue,CAHD,South - Commissioned Services,Permanent Residential,Gordena Care Home,4018.92, 25-Aug-2020
1519,Revenue,CAHD,South - Commissioned Services,Permanent Residential,Gordena Care Home,2790.84, 25-Aug-2020
1520,Revenue,CAHD,South - Commissioned Services,Permanent Residential,Gordena Care Home,3973.32, 25-Aug-2020
1521,Revenue,CAHD,South - Commissioned Services,Permanent Residential,Gordena Care Home,3985.44, 25-Aug-2020
1522,Revenue,CAHD,Covid � ASC - Infection Control,Grants to Voluntary Bodies,Gordena Care Home,745.29, 04-Aug-2020
1523,Revenue,CAHD,Covid � ASC - Infection Control,Grants to Voluntary Bodies,Gordena Care Home,4480.65, 04-Aug-2020
1524,Revenue,CAHD,CSC - Legal Fees,Legal Fees,Individual,1110.00, 17-Aug-2020
1525,Revenue,CAHD,18-25 Year Olds,Supported Living,Granville House,1940.60, 25-Aug-2020
1526,Revenue,CAHD,South - Commissioned Services,Supported Living,Granville House,1941.20, 25-Aug-2020
1527,Revenue,CAHD,South - Commissioned Services,Supported Living,Granville House,1940.32, 25-Aug-2020
1528,Revenue,CAHD,CSC - Care Leavers Independent Living,Adults - Family Support,Greenfields Adolecent Development Limited,5978.57, 18-Aug-2020
1529,Revenue,CAHD,Statemented Support Academies,Other Public Bodies,Greenshaw Learning Trust T/A Woodlands Primary,554.13, 27-Aug-2020
1530,Revenue,CAHD,Statemented Support Academies,Other Public Bodies,Greenshaw Learning Trust T/A Woodlands Primary,1072.89, 27-Aug-2020
1531,Revenue,CAHD,Statemented Support Academies,Other Public Bodies,Greenshaw Learning Trust T/A Woodlands Primary,1072.89, 27-Aug-2020
1532,Revenue,CAHD,Statemented Support Academies,Other Public Bodies,Greenshaw Learning Trust T/A Woodlands Primary,837.09, 27-Aug-2020
1533,Revenue,CAHD,Statemented Support Academies,Other Public Bodies,Greenshaw Learning Trust T/A Woodlands Primary,742.77, 27-Aug-2020
1534,Revenue,CAHD,Statemented Support Academies,Other Public Bodies,Greenshaw Learning Trust T/A Woodlands Primary,778.14, 27-Aug-2020
1535,Revenue,CAHD,Statemented Support Academies,Other Public Bodies,Greenshaw Learning Trust T/A Woodlands Primary,774.50, 27-Aug-2020
1536,Revenue,CAHD,Statemented Support Academies,Other Public Bodies,Greenshaw Learning Trust T/A Woodlands Primary,860.67, 27-Aug-2020
1537,Revenue,CAHD,Academy Resource Base Funding,Other Public Bodies,Greenshaw Learning Trust T/A Woodlands Primary,648.70, 21-Aug-2020
1538,Revenue,CAHD,Academy Resource Base Funding,Other Public Bodies,Greenshaw Learning Trust T/A Woodlands Primary,1175.87, 21-Aug-2020
1539,Revenue,CAHD,Statemented Support Academies,Other Public Bodies,Greenshaw Learning Trust T/A Yate Academy,707.40, 27-Aug-2020
1540,Revenue,CAHD,Statemented Support Academies,Other Public Bodies,Greenshaw Learning Trust T/A Yate Academy,1320.48, 27-Aug-2020
1541,Revenue,CAHD,Statemented Support Academies,Other Public Bodies,Greenshaw Learning Trust T/A Yate Academy,1320.48, 27-Aug-2020
1542,Revenue,CAHD,Statemented Support Academies,Other Public Bodies,Greenshaw Learning Trust T/A Yate Academy,1072.89, 27-Aug-2020
1543,Revenue,CAHD,Statemented Support Academies,Other Public Bodies,Greenshaw Learning Trust T/A Yate Academy,801.72, 27-Aug-2020
1544,Revenue,CAHD,Statemented Support Academies,Other Public Bodies,Greenshaw Learning Trust T/A Yate Academy,541.58, 27-Aug-2020
1545,Revenue,CAHD,Statemented Support Academies,Other Public Bodies,Greenshaw Learning Trust T/A Yate Academy,7215.48, 27-Aug-2020
1546,Revenue,CAHD,Statemented Support Academies,Other Public Bodies,Greenshaw Learning Trust T/A Yate Academy,624.87, 27-Aug-2020
1547,Revenue,CAHD,Statemented Support Academies,Other Public Bodies,Greenshaw Learning Trust T/A Yate Academy,624.87, 27-Aug-2020
1548,Revenue,CAHD,Academy Resource Base Funding,Other Public Bodies,Greenshaw Learning Trust T/A Yate Academy,1540.83, 21-Aug-2020
1549,Revenue,CAHD,Academy Resource Base Funding,Other Public Bodies,Greenshaw Learning Trust T/A Yate Academy,1013.74, 21-Aug-2020
1550,Revenue,CAHD,South - Commissioned Services,Permanent Residential,Gwendoline House,2522.88, 25-Aug-2020
1551,Revenue,CAHD,South - Commissioned Services,Permanent Residential,Gwendoline House,2652.00, 25-Aug-2020
1552,Revenue,CAHD,Covid � ASC - Infection Control,Grants to Voluntary Bodies,Gwendoline House,1324.96, 04-Aug-2020
1553,Revenue,CAHD,Covid � ASC - Infection Control,Grants to Voluntary Bodies,Gwendoline House,7965.60, 04-Aug-2020
1554,Revenue,CAHD,CSC - Vinney Green Secure Unit,R & M by Departments,HAG Shutters & Grilles Limited,420.00, 19-Aug-2020
1555,Revenue,CAHD,CSC - Vinney Green Secure Unit,R & M by Departments,HAG Shutters & Grilles Limited,427.50, 13-Aug-2020
1556,Revenue,CAHD,Social Lettings Agency,Rent,Individual,577.72, 27-Aug-2020
1557,Revenue,CAHD,Social Lettings Agency,Fees - General,Individual,13.13, 27-Aug-2020
1558,Revenue,CAHD,CSC - Through & Leaving Care Team,Agency Staff (Admin/Support Staff) Pay,Hampton`s Resourcing,1225.70, 24-Aug-2020
1559,Revenue,CAHD,CSC - Through & Leaving Care Team,Agency Staff (Admin/Support Staff) Pay,Hampton`s Resourcing,1668.70, 13-Aug-2020
1560,Revenue,CAHD,CSC - Through & Leaving Care Team,Agency Staff (Admin/Support Staff) Pay,Hampton`s Resourcing,1668.70, 19-Aug-2020
1561,Revenue,CAHD,Sexual Health,Other Small Contracts,Hanham Health,2790.67, 04-Aug-2020
1562,Revenue,CAHD,Sexual Health,Other Small Contracts,Hanham Health,1752.27, 04-Aug-2020
1563,Revenue,CAHD,NHS Health Checks,Other Small Contracts,Hanham Health,4117.00, 04-Aug-2020
1564,Revenue,CAHD,Drug and Alcohol Programme,Other Small Contracts,Hanham Health,2097.67, 04-Aug-2020
1565,Revenue,CAHD,Home Care Monitoring (CM2000),Other Supplies & Services,HAS Technology Limited T/A CM2000,9699.71, 27-Aug-2020
1566,Revenue,CAHD,Home Care Monitoring (CM2000),Other Supplies & Services,HAS Technology Limited T/A CM2000,9821.95, 26-Aug-2020
1567,Revenue,CAHD,Home Care Monitoring (CM2000),Other Supplies & Services,HAS Technology Limited T/A CM2000,1610.00, 21-Aug-2020
1568,Revenue,CAHD,North - Community based support,Permanent Nursing,Head Office,5855.25, 25-Aug-2020
1569,Revenue,CAHD,North - Community based support,Permanent Nursing,Head Office,4554.08, 25-Aug-2020
1570,Revenue,CAHD,North - Community based support,Fees & Charges Income - General,Head Office,797.35, 25-Aug-2020
1571,Revenue,CAHD,North - Community based support,Fees & Charges Income - General,Head Office,1197.11, 25-Aug-2020
1572,Revenue,CAHD,CSC - Residential Placements,Permanent Residential,Headway Adolescent Resources Limited,13600.00, 13-Aug-2020
1573,Revenue,CAHD,CSC - Residential Placements,Permanent Residential,Headway Adolescent Resources Limited,13600.00, 28-Aug-2020
1574,Revenue,CAHD,Central - Commissioned Services,Permanent Nursing,Healthcare Home Spring Limited,2445.96, 25-Aug-2020
1575,Revenue,CAHD,South Glos Users in South Glos Homes,Permanent Nursing,Healthcare Home Spring Limited,735.68, 25-Aug-2020
1576,Revenue,CAHD,Central - Commissioned Services,Permanent Nursing,Healthcare Home Spring Limited,2445.96, 25-Aug-2020
1577,Revenue,CAHD,South Glos Users in South Glos Homes,Permanent Nursing,Healthcare Home Spring Limited,735.68, 25-Aug-2020
1578,Revenue,CAHD,South Glos Users in South Glos Homes,Permanent Nursing,Healthcare Home Spring Limited,735.68, 25-Aug-2020
1579,Revenue,CAHD,Central - Commissioned Services,Permanent Residential,Healthcare Home Spring Limited,2274.92, 25-Aug-2020
1580,Revenue,CAHD,South Glos Users in South Glos Homes,Permanent Nursing,Healthcare Home Spring Limited,735.68, 25-Aug-2020
1581,Revenue,CAHD,South Glos Users in South Glos Homes,Permanent Nursing,Healthcare Home Spring Limited,735.68, 25-Aug-2020
1582,Revenue,CAHD,Central - Commissioned Services,Permanent Nursing,Healthcare Home Spring Limited,2521.04, 25-Aug-2020
1583,Revenue,CAHD,South Glos Users in South Glos Homes,Permanent Nursing,Healthcare Home Spring Limited,735.68, 25-Aug-2020
1584,Revenue,CAHD,South Glos Users in South Glos Homes,Permanent Nursing,Healthcare Home Spring Limited,735.68, 25-Aug-2020
1585,Revenue,CAHD,North - Community based support,Permanent Nursing,Healthcare Home Spring Limited,2445.96, 25-Aug-2020
1586,Revenue,CAHD,South Glos Users in South Glos Homes,Permanent Nursing,Healthcare Home Spring Limited,735.68, 25-Aug-2020
1587,Revenue,CAHD,Central - Commissioned Services,Permanent Nursing,Healthcare Home Spring Limited,2445.96, 25-Aug-2020
1588,Revenue,CAHD,South Glos Users in South Glos Homes,Permanent Nursing,Healthcare Home Spring Limited,735.68, 25-Aug-2020
1589,Revenue,CAHD,Central - Commissioned Services,Permanent Nursing,Healthcare Home Spring Limited,3060.24, 25-Aug-2020
1590,Revenue,CAHD,South Glos Users in South Glos Homes,Permanent Nursing,Healthcare Home Spring Limited,735.68, 25-Aug-2020
1591,Revenue,CAHD,Central - Commissioned Services,Permanent Residential,Healthcare Home Spring Limited,2823.36, 25-Aug-2020
1592,Revenue,CAHD,North - Community based support,Permanent Nursing,Healthcare Home Spring Limited,2445.96, 25-Aug-2020
1593,Revenue,CAHD,South Glos Users in South Glos Homes,Permanent Nursing,Healthcare Home Spring Limited,735.68, 25-Aug-2020
1594,Revenue,CAHD,South Glos Users in South Glos Homes,Permanent Nursing,Healthcare Home Spring Limited,735.68, 25-Aug-2020
1595,Revenue,CAHD,Central - Commissioned Services,Permanent Nursing,Healthcare Home Spring Limited,2521.04, 25-Aug-2020
1596,Revenue,CAHD,South Glos Users in South Glos Homes,Permanent Nursing,Healthcare Home Spring Limited,735.68, 25-Aug-2020
1597,Revenue,CAHD,North - Community based support,Permanent Residential,Healthcare Home Spring Limited,2487.96, 25-Aug-2020
1598,Revenue,CAHD,South Glos Users in South Glos Homes,Permanent Nursing,Healthcare Home Spring Limited,735.68, 25-Aug-2020
1599,Revenue,CAHD,South Glos Users in South Glos Homes,Permanent Nursing,Healthcare Home Spring Limited,735.68, 25-Aug-2020
1600,Revenue,CAHD,South Glos Users in South Glos Homes,Permanent Nursing,Healthcare Home Spring Limited,735.68, 25-Aug-2020
1601,Revenue,CAHD,Central - Bed Purchasing and Direct Payments,Permanent Nursing,Healthcare Home Spring Limited,2445.96, 25-Aug-2020
1602,Revenue,CAHD,Central - Commissioned Services,Permanent Residential,Healthcare Home Spring Limited,2823.36, 25-Aug-2020
1603,Revenue,CAHD,Central - Commissioned Services,Permanent Nursing,Healthcare Home Spring Limited,2445.96, 25-Aug-2020
1604,Revenue,CAHD,South Glos Users in South Glos Homes,Permanent Nursing,Healthcare Home Spring Limited,735.68, 25-Aug-2020
1605,Revenue,CAHD,South Glos Users in South Glos Homes,Permanent Nursing,Healthcare Home Spring Limited,735.68, 25-Aug-2020
1606,Revenue,CAHD,South Glos Users in South Glos Homes,Permanent Nursing,Healthcare Home Spring Limited,735.68, 25-Aug-2020
1607,Revenue,CAHD,South Glos Users in South Glos Homes,Permanent Nursing,Healthcare Home Spring Limited,735.68, 25-Aug-2020
1608,Revenue,CAHD,South Glos Users in South Glos Homes,Permanent Nursing,Healthcare Home Spring Limited,735.68, 25-Aug-2020
1609,Revenue,CAHD,South Glos Users in South Glos Homes,Permanent Nursing,Healthcare Home Spring Limited,735.68, 25-Aug-2020
1610,Revenue,CAHD,South Glos Users in South Glos Homes,Permanent Nursing,Healthcare Home Spring Limited,735.68, 25-Aug-2020
1611,Revenue,CAHD,South Glos Users in South Glos Homes,Permanent Nursing,Healthcare Home Spring Limited,735.68, 25-Aug-2020
1612,Revenue,CAHD,Central - Commissioned Services,Permanent Nursing,Healthcare Home Spring Limited,2445.96, 25-Aug-2020
1613,Revenue,CAHD,South Glos Users in South Glos Homes,Permanent Nursing,Healthcare Home Spring Limited,735.68, 25-Aug-2020
1614,Revenue,CAHD,Central - Commissioned Services,Permanent Nursing,Healthcare Home Spring Limited,2357.44, 25-Aug-2020
1615,Revenue,CAHD,South Glos Users in South Glos Homes,Permanent Nursing,Healthcare Home Spring Limited,735.68, 25-Aug-2020
1616,Revenue,CAHD,North - Community based support,Permanent Nursing,Healthcare Home Spring Limited,2485.88, 25-Aug-2020
1617,Revenue,CAHD,South Glos Users in South Glos Homes,Permanent Nursing,Healthcare Home Spring Limited,735.68, 25-Aug-2020
1618,Revenue,CAHD,Central - Commissioned Services,Permanent Nursing,Healthcare Home Spring Limited,2445.96, 25-Aug-2020
1619,Revenue,CAHD,South Glos Users in South Glos Homes,Permanent Nursing,Healthcare Home Spring Limited,735.68, 25-Aug-2020
1620,Revenue,CAHD,Central - Commissioned Services,Permanent Residential,Healthcare Home Spring Limited,2891.12, 25-Aug-2020
1621,Revenue,CAHD,North - Community based support,Permanent Nursing,Healthcare Home Spring Limited,2445.96, 25-Aug-2020
1622,Revenue,CAHD,South Glos Users in South Glos Homes,Permanent Nursing,Healthcare Home Spring Limited,735.68, 25-Aug-2020
1623,Revenue,CAHD,Central - Commissioned Services,Permanent Nursing,Healthcare Home Spring Limited,8560.86, 25-Aug-2020
1624,Revenue,CAHD,Central - Commissioned Services,Permanent Nursing,Healthcare Home Spring Limited,2445.96, 25-Aug-2020
1625,Revenue,CAHD,South Glos Users in South Glos Homes,Permanent Nursing,Healthcare Home Spring Limited,735.68, 25-Aug-2020
1626,Revenue,CAHD,North - Community based support,Permanent Nursing,Healthcare Home Spring Limited,2445.96, 25-Aug-2020
1627,Revenue,CAHD,South Glos Users in South Glos Homes,Permanent Nursing,Healthcare Home Spring Limited,735.68, 25-Aug-2020
1628,Revenue,CAHD,Central - Commissioned Services,Permanent Residential,Healthcare Home Spring Limited,2768.00, 25-Aug-2020
1629,Revenue,CAHD,Central - Commissioned Services,Permanent Residential,Healthcare Home Spring Limited,988.57, 25-Aug-2020
1630,Revenue,CAHD,North - Community based support,Permanent Nursing,Healthcare Home Spring Limited,2403.72, 25-Aug-2020
1631,Revenue,CAHD,South Glos Users in South Glos Homes,Permanent Nursing,Healthcare Home Spring Limited,735.68, 25-Aug-2020
1632,Revenue,CAHD,North - Community based support,Permanent Nursing,Healthcare Home Spring Limited,2520.88, 25-Aug-2020
1633,Revenue,CAHD,South Glos Users in South Glos Homes,Permanent Nursing,Healthcare Home Spring Limited,735.68, 25-Aug-2020
1634,Revenue,CAHD,Covid � ASC - Infection Control,Grants to Voluntary Bodies,Healthcare Home Spring Limited,12919.48, 06-Aug-2020
1635,Revenue,CAHD,Covid � ASC - Infection Control,Grants to Voluntary Bodies,Healthcare Home Spring Limited,77664.60, 06-Aug-2020
1636,Revenue,CAHD,Hospital Tuition,Other Private Contractors,Heath House School Priory,2450.00, 10-Aug-2020
1637,Revenue,CAHD,Hospital Tuition,Other Private Contractors,Heath House School Priory,1487.50, 21-Aug-2020
1638,Revenue,CAHD,Hospital Tuition,Other Private Contractors,Heath House School Priory,1750.00, 21-Aug-2020
1639,Revenue,CAHD,Central - Commissioned Services,Other Small Contracts,Helping Hands Homecare,661.02, 11-Aug-2020
1640,Revenue,CAHD,South - Commissioned Services,Other Small Contracts,Helping Hands Homecare,115.92, 11-Aug-2020
1641,Revenue,CAHD,North - Community based support,Other Small Contracts,Helping Hands Homecare,2323.60, 11-Aug-2020
1642,Revenue,CAHD,Central - Commissioned Services,Other Small Contracts,Helping Hands Homecare,666.84, 11-Aug-2020
1643,Revenue,CAHD,South - Commissioned Services,Other Small Contracts,Helping Hands Homecare,333.27, 11-Aug-2020
1644,Revenue,CAHD,North - Community based support,Other Small Contracts,Helping Hands Homecare,2481.87, 11-Aug-2020
1645,Revenue,CAHD,Central - Commissioned Services,Other Small Contracts,Helping Hands Homecare,655.20, 26-Aug-2020
1646,Revenue,CAHD,South - Commissioned Services,Other Small Contracts,Helping Hands Homecare,352.59, 26-Aug-2020
1647,Revenue,CAHD,North - Community based support,Other Small Contracts,Helping Hands Homecare,2429.67, 26-Aug-2020
1648,Revenue,CAHD,Covid � ASC - Infection Control,Grants to Voluntary Bodies,Helping Hands Homecare,2192.80, 05-Aug-2020
1649,Revenue,CAHD,Central - Commissioned Services,Permanent Residential,High Border Lodge,2142.20, 25-Aug-2020
1650,Revenue,CAHD,North - Community based support,Permanent Residential,High Border Lodge,2088.68, 25-Aug-2020
1651,Revenue,CAHD,Information Systems - Software,Software Support & Maintenance,Higher Mapping Solutions,2040.00, 07-Aug-2020
1652,Revenue,CAHD,South - Commissioned Services,Supported Living,Hillcairnie House,4702.76, 25-Aug-2020
1653,Revenue,CAHD,South - Commissioned Services,Supported Living,Hillcairnie House,2629.48, 25-Aug-2020
1654,Revenue,CAHD,North - Community based support,Supported Living,Hillcairnie House,2629.48, 25-Aug-2020
1655,Revenue,CAHD,South - Commissioned Services,Supported Living,Hillcairnie House,4381.72, 25-Aug-2020
1656,Revenue,CAHD,South - Commissioned Services,Supported Living,Hillcairnie House,2629.48, 25-Aug-2020
1657,Revenue,CAHD,South - Commissioned Services,Permanent Residential,Hillcrest,5207.64, 25-Aug-2020
1658,Revenue,CAHD,S28A cases,Permanent Residential,Hillcrest,5064.68, 25-Aug-2020
1659,Revenue,CAHD,North - Community based support,Permanent Residential,Hillcrest,5278.56, 25-Aug-2020
1660,Revenue,CAHD,Covid � ASC - Infection Control,Grants to Voluntary Bodies,Hillcrest,1991.40, 04-Aug-2020
1661,Revenue,CAHD,CSC - Residential Placements,Permanent Residential,Hillcrest Care Services Limited,20540.33, 12-Aug-2020
1662,Revenue,CAHD,North - Community based support,Permanent Residential,Hilltop Residential Home,8810.20, 25-Aug-2020
1663,Revenue,CAHD,Jointly Funded H&SC Packages,Permanent Residential,Hilltop Residential Home,5594.24, 25-Aug-2020
1664,Revenue,CAHD,Central - Commissioned Services,Permanent Residential,Hobbits Holt Craegmo,8872.48, 25-Aug-2020
1665,Revenue,CAHD,ELS - Skills,Membership Fees,HOLEX,470.00, 20-Aug-2020
1666,Revenue,CAHD,North - S117,Permanent Residential,Holly House,769.58, 25-Aug-2020
1667,Revenue,CAHD,North - Community based support,Permanent Residential,Holly Tree Cottage,8531.24, 25-Aug-2020
1668,Revenue,CAHD,Jointly Funded H&SC Packages,Permanent Residential,Holly Tree Cottage,2577.68, 25-Aug-2020
1669,Revenue,CAHD,Central - Commissioned Services,Permanent Nursing,Holly Villa,2153.16, 25-Aug-2020
1670,Revenue,CAHD,North - Community based support,Other Small Contracts,Holmleigh Care Home Ltd,10763.20, 19-Aug-2020
1671,Revenue,CAHD,Central - Commissioned Services,Other Small Contracts,Holmleigh Care Home Ltd,1545.60, 19-Aug-2020
1672,Revenue,CAHD,Central - Commissioned Services,Other Small Contracts,Holmleigh Care Home Ltd,3001.92, 19-Aug-2020
1673,Revenue,CAHD,Central - Commissioned Services,Other Small Contracts,Holmleigh Care Home Ltd,3245.76, 19-Aug-2020
1674,Revenue,CAHD,Central - Commissioned Services,Other Small Contracts,Holmleigh Care Home Ltd,3245.76, 19-Aug-2020
1675,Revenue,CAHD,Central - Commissioned Services,Other Small Contracts,Holmleigh Care Home Ltd,17872.20, 19-Aug-2020
1676,Revenue,CAHD,Central - Commissioned Services,Other Small Contracts,Holmleigh Care Home Ltd,20873.44, 19-Aug-2020
1677,Revenue,CAHD,South - Commissioned Services,Supported Living,Holmleigh Care Homes Ltd,1367.84, 25-Aug-2020
1678,Revenue,CAHD,Central - Commissioned Services,Supported Living,Home Farm Trust Ltd  5-6 Brook Office Pa,2205.20, 25-Aug-2020
1679,Revenue,CAHD,Central - Commissioned Services,Permanent Residential,Home From Home Care Ltd,9927.36, 25-Aug-2020
1680,Revenue,CAHD,Central - Commissioned Services,Other Small Contracts,Homecare 4U,212.52, 05-Aug-2020
1681,Revenue,CAHD,South - Commissioned Services,Other Small Contracts,Homecare 4U,1323.42, 05-Aug-2020
1682,Revenue,CAHD,Younger MH non-res purchasing,Other Small Contracts,Homecare 4U,367.08, 05-Aug-2020
1683,Revenue,CAHD,Central - Commissioned Services,Other Small Contracts,Homecare 4U,212.52, 10-Aug-2020
1684,Revenue,CAHD,South - Commissioned Services,Other Small Contracts,Homecare 4U,1463.49, 10-Aug-2020
1685,Revenue,CAHD,Younger MH non-res purchasing,Other Small Contracts,Homecare 4U,367.08, 10-Aug-2020
1686,Revenue,CAHD,Central - Commissioned Services,Other Small Contracts,Homecare 4U,212.52, 26-Aug-2020
1687,Revenue,CAHD,South - Commissioned Services,Other Small Contracts,Homecare 4U,1376.55, 26-Aug-2020
1688,Revenue,CAHD,Younger MH non-res purchasing,Other Small Contracts,Homecare 4U,352.59, 26-Aug-2020
1689,Revenue,CAHD,Covid � ASC - Infection Control,Grants to Voluntary Bodies,Homecare 4U,1918.70, 05-Aug-2020
1690,Revenue,CAHD,Bed and Breakfast,Bed & Breakfast,Homes 4 All Ltd,700.00, 07-Aug-2020
1691,Revenue,CAHD,Bed and Breakfast,Bed & Breakfast,Homes 4 All Ltd,700.00, 17-Aug-2020
1692,Revenue,CAHD,Bed and Breakfast,Bed & Breakfast,Homes 4 All Ltd,700.00, 20-Aug-2020
1693,Revenue,CAHD,Bed and Breakfast,Bed & Breakfast,Homes 4 All Ltd,700.00, 28-Aug-2020
1694,Revenue,CAHD,North - Community based support,Permanent Nursing,Horfield Care Ltd,3522.56, 25-Aug-2020
1695,Revenue,CAHD,North - Community based support,Permanent Nursing,Horfield Care Ltd,3403.60, 25-Aug-2020
1696,Revenue,CAHD,North - Community based support,Permanent Nursing,Horfield Care Ltd,3589.48, 25-Aug-2020
1697,Revenue,CAHD,Central - Commissioned Services,Permanent Nursing,Horfield Care Ltd,3740.00, 25-Aug-2020
1698,Revenue,CAHD,North - Community based support,Permanent Nursing,Horfield Care Ltd,2216.32, 25-Aug-2020
1699,Revenue,CAHD,Central - Commissioned Services,Permanent Nursing,Horfield Care Ltd,3740.00, 25-Aug-2020
1700,Revenue,CAHD,North - Community based support,Permanent Nursing,Horfield Care Ltd,2216.32, 25-Aug-2020
1701,Revenue,CAHD,North - Community based support,Permanent Nursing,Horfield Care Ltd,3506.00, 25-Aug-2020
1702,Revenue,CAHD,Extra Care Housing,Private & Voluntary Home Care,Housing 21,42371.08, 14-Aug-2020
1703,Revenue,CAHD,Extra Care Housing,Private & Voluntary Home Care,Housing 21,39365.75, 06-Aug-2020
1704,Revenue,CAHD,Covid � ASC - Infection Control,Grants to Voluntary Bodies,Housing 21,17405.35, 05-Aug-2020
1705,Revenue,CAHD,Social Lettings Agency,Rent,HRTC Properties,623.26, 05-Aug-2020
1706,Revenue,CAHD,Social Lettings Agency,Fees - General,HRTC Properties,11.64, 05-Aug-2020
1707,Revenue,CAHD,Central - Commissioned Services,Other Small Contracts,HSBC Invoice Finance (UK) Limited,16986.37, 10-Aug-2020
1708,Revenue,CAHD,South - Commissioned Services,Day Care / Social Activities,HSBC Invoice Finance (UK) Limited,280.00, 10-Aug-2020
1709,Revenue,CAHD,South - Commissioned Services,Other Small Contracts,HSBC Invoice Finance (UK) Limited,7711.63, 10-Aug-2020
1710,Revenue,CAHD,North - Community based support,Other Small Contracts,HSBC Invoice Finance (UK) Limited,4492.60, 10-Aug-2020
1711,Revenue,CAHD,Central - Commissioned Services,Other Small Contracts,HSBC Invoice Finance (UK) Limited,16818.32, 19-Aug-2020
1712,Revenue,CAHD,South - Commissioned Services,Day Care / Social Activities,HSBC Invoice Finance (UK) Limited,267.28, 19-Aug-2020
1713,Revenue,CAHD,South - Commissioned Services,Other Small Contracts,HSBC Invoice Finance (UK) Limited,7011.30, 19-Aug-2020
1714,Revenue,CAHD,North - Community based support,Other Small Contracts,HSBC Invoice Finance (UK) Limited,4555.14, 19-Aug-2020
1715,Revenue,CAHD,Central - Commissioned Services,Other Small Contracts,HSBC Invoice Finance (UK) Limited,16777.20, 20-Aug-2020
1716,Revenue,CAHD,South - Commissioned Services,Day Care / Social Activities,HSBC Invoice Finance (UK) Limited,289.60, 20-Aug-2020
1717,Revenue,CAHD,South - Commissioned Services,Other Small Contracts,HSBC Invoice Finance (UK) Limited,6639.90, 20-Aug-2020
1718,Revenue,CAHD,North - Community based support,Other Small Contracts,HSBC Invoice Finance (UK) Limited,4373.73, 20-Aug-2020
1719,Revenue,CAHD,Central - Commissioned Services,Other Small Contracts,HSBC Invoice Finance (UK) Limited,16050.27, 28-Aug-2020
1720,Revenue,CAHD,South - Commissioned Services,Day Care / Social Activities,HSBC Invoice Finance (UK) Limited,279.48, 28-Aug-2020
1721,Revenue,CAHD,South - Commissioned Services,Other Small Contracts,HSBC Invoice Finance (UK) Limited,6636.92, 28-Aug-2020
1722,Revenue,CAHD,North - Community based support,Other Small Contracts,HSBC Invoice Finance (UK) Limited,4341.96, 28-Aug-2020
1723,Revenue,CAHD,Covid � ASC - Infection Control,Grants to Voluntary Bodies,HSBC Invoice Finance (UK) Limited,24394.90, 05-Aug-2020
1724,Revenue,CAHD,Pathway 1 - Re-Ablement Home Care,Other Small Contracts,HSBC Invoice Finance (UK) Limited,1143.90, 07-Aug-2020
1725,Revenue,CAHD,Pathway 1 - Re-Ablement Home Care,Other Small Contracts,HSBC Invoice Finance (UK) Limited,876.06, 07-Aug-2020
1726,Revenue,CAHD,Pathway 1 - Re-Ablement Home Care,Other Small Contracts,HSBC Invoice Finance (UK) Limited,1043.46, 07-Aug-2020
1727,Revenue,CAHD,Pathway 1 - Re-Ablement Home Care,Other Small Contracts,HSBC Invoice Finance (UK) Limited,1210.86, 07-Aug-2020
1728,Revenue,CAHD,Pathway 1 - Re-Ablement Home Care,Other Small Contracts,HSBC Invoice Finance (UK) Limited,781.20, 17-Aug-2020
1729,Revenue,CAHD,Pathway 1 - Re-Ablement Home Care,Other Small Contracts,HSBC Invoice Finance (UK) Limited,708.66, 21-Aug-2020
1730,Revenue,CAHD,Pathway 1 - Re-Ablement Home Care,Other Small Contracts,HSBC Invoice Finance (UK) Limited,976.50, 27-Aug-2020
1731,Revenue,CAHD,Pathway 1 - Re-Ablement Home Care,Other Small Contracts,HSBC Invoice Finance (UK) Limited,1088.10, 27-Aug-2020
1732,Revenue,CAHD,Pathway 1 - Re-Ablement Home Care,Other Small Contracts,HSBC Invoice Finance (UK) Limited,1774.44, 27-Aug-2020
1733,Revenue,CAHD,Pathway 1 - Re-Ablement Home Care,Other Small Contracts,HSBC Invoice Finance (UK) Limited,1233.18, 21-Aug-2020
1734,Revenue,CAHD,Pathway 1 - Re-Ablement Home Care,Other Small Contracts,HSBC Invoice Finance (UK) Limited,775.62, 21-Aug-2020
1735,Revenue,CAHD,Hospital Tuition,Other Private Contractors,Huntercombe Hospital Maidenhead,3740.00, 12-Aug-2020
1736,Revenue,CAHD,Hospital Tuition,Other Private Contractors,Huntercombe Hospital Maidenhead,850.00, 18-Aug-2020
1737,Revenue,CAHD,Hospital Tuition,Other Private Contractors,Huntercombe Hospital Maidenhead,4250.00, 27-Aug-2020
1738,Revenue,CAHD,South - Commissioned Services,Permanent Nursing,Hydon Hill,6437.72, 25-Aug-2020
1739,Revenue,CAHD,CSC - Corporate Parenting,Computer Services,IAP UK Limited,712.58, 07-Aug-2020
1740,Revenue,CAHD,CSC - Corporate Parenting,Computer Services,IAP UK Limited,659.32, 28-Aug-2020
1741,Revenue,CAHD,Statemented Support Payments to OLAs,Other L.A.s - General,IKB Academy,554.13, 26-Aug-2020
1742,Revenue,CAHD,18-25 Year Olds,Day Care / Social Activities,Impact Mentoring Limited,3775.00, 13-Aug-2020
1743,Revenue,CAHD,CSC - Section 17 0-25,Preventative Assistance,Impact Mentoring Limited,450.00, 13-Aug-2020
1744,Revenue,CAHD,CSC - Section 17 0-25,Preventative Assistance,Impact Mentoring Limited,1650.00, 13-Aug-2020
1745,Revenue,CAHD,Independent Special Placements - Travel,Client Transport,Impact Mentoring Limited,1120.00, 13-Aug-2020
1746,Revenue,CAHD,Independent Special Placements - Travel,Client Transport,Impact Mentoring Limited,1820.00, 13-Aug-2020
1747,Revenue,CAHD,CSC - Section 17 0-25,Preventative Assistance,Impact Mentoring Limited,700.00, 13-Aug-2020
1748,Revenue,CAHD,SEN High Needs - Not at School Base,Other Private Contractors,Impact Mentoring Limited,1053.00, 13-Aug-2020
1749,Revenue,CAHD,18-25 Year Olds,Day Care / Social Activities,Impact Mentoring Limited,4845.00, 13-Aug-2020
1750,Revenue,CAHD,SEN High Needs - Not at School Base,Other Private Contractors,Impact Mentoring Limited,1425.00, 13-Aug-2020
1751,Revenue,CAHD,Independent Special Placements - Travel,Client Transport,Impact Mentoring Limited,1665.00, 13-Aug-2020
1752,Revenue,CAHD,18-25 Year Olds,Day Care / Social Activities,Impact Mentoring Limited,3925.00, 13-Aug-2020
1753,Revenue,CAHD,SEN High Needs - Not at School Base,Other Private Contractors,Impact Mentoring Limited,3150.00, 13-Aug-2020
1754,Revenue,CAHD,North - S117,Permanent Residential,Ivybank House Care Home,3256.32, 25-Aug-2020
1755,Revenue,CAHD,Social Lettings Agency,Rent,Individual,690.32, 11-Aug-2020
1756,Revenue,CAHD,Social Lettings Agency,Fees - General,Individual,12.22, 11-Aug-2020
1757,Revenue,CAHD,Social Lettings Agency,Rent,Individual,730.35, 14-Aug-2020
1758,Revenue,CAHD,Social Lettings Agency,Fees - General,Individual,12.93, 14-Aug-2020
1759,Revenue,CAHD,CSC - Legal Fees,Legal Fees,Individual,800.00, 12-Aug-2020
1760,Revenue,CAHD,Post 16 High Needs Placements,Other Private Contractors,Julian & Shani Payne T/A Peopleton Brook Farm,1170.00, 11-Aug-2020
1761,Revenue,CAHD,Post 16 High Needs Placements,Other Private Contractors,Julian & Shani Payne T/A Peopleton Brook Farm,3819.00, 11-Aug-2020
1762,Revenue,CAHD,Post 16 High Needs Placements,Other Private Contractors,Julian & Shani Payne T/A Peopleton Brook Farm,1417.00, 11-Aug-2020
1763,Revenue,CAHD,Post 16 High Needs Placements,Other Private Contractors,Julian & Shani Payne T/A Peopleton Brook Farm,1026.00, 11-Aug-2020
1764,Revenue,CAHD,Post 16 High Needs Placements,Other Private Contractors,Julian & Shani Payne T/A Peopleton Brook Farm,2037.60, 18-Aug-2020
1765,Revenue,CAHD,Post 16 High Needs Placements,Other Private Contractors,Julian & Shani Payne T/A Peopleton Brook Farm,450.00, 11-Aug-2020
1766,Revenue,CAHD,Post 16 High Needs Placements,Other Private Contractors,Julian & Shani Payne T/A Peopleton Brook Farm,1638.00, 11-Aug-2020
1767,Revenue,CAHD,CSC - Fostering Carer Support,Interpreting & Translation,K International Plc,500.00, 10-Aug-2020
1768,Revenue,CAHD,CSC - Fostering Carer Support,Interpreting & Translation,K International Plc,566.25, 26-Aug-2020
1769,Revenue,CAHD,North - S117,Permanent Residential,Kahala Court,2921.68, 25-Aug-2020
1770,Revenue,CAHD,Statemented Support Payments to OLAs,Other L.A.s - General,Katharine Lady Berkeley School,789.93, 26-Aug-2020
1771,Revenue,CAHD,Statemented Support Payments to OLAs,Other L.A.s - General,Katharine Lady Berkeley School,648.45, 26-Aug-2020
1772,Revenue,CAHD,Statemented Support Payments to OLAs,Other L.A.s - General,Katharine Lady Berkeley School,624.87, 26-Aug-2020
1773,Revenue,CAHD,CSC - Adoption Support Fund,Post Adoption,Individual,501.83, 24-Aug-2020
1774,Revenue,CAHD,Sexual Health,Other Small Contracts,Kennedy Way Surgery,778.17, 04-Aug-2020
1775,Revenue,CAHD,Sexual Health,Other Small Contracts,Kennedy Way Surgery,2033.76, 04-Aug-2020
1776,Revenue,CAHD,Drug and Alcohol Programme,Other Small Contracts,Kennedy Way Surgery,1657.83, 04-Aug-2020
1777,Revenue,CAHD,South - Commissioned Services,Permanent Residential,Kenver House Residential Home,2621.52, 25-Aug-2020
1778,Revenue,CAHD,North - Community based support,Permanent Residential,Kenver House Residential Home,3060.00, 25-Aug-2020
1779,Revenue,CAHD,South - Commissioned Services,Permanent Residential,Kenver House Residential Home,2781.68, 25-Aug-2020
1780,Revenue,CAHD,Central - Commissioned Services,Permanent Residential,Kenver House Residential Home,3060.00, 25-Aug-2020
1781,Revenue,CAHD,North - Community based support,Permanent Residential,Kenver House Residential Home,3060.00, 25-Aug-2020
1782,Revenue,CAHD,South - Commissioned Services,Permanent Residential,Kenver House Residential Home,3060.00, 25-Aug-2020
1783,Revenue,CAHD,South - Commissioned Services,Permanent Residential,Kenver House Residential Home,3072.00, 25-Aug-2020
1784,Revenue,CAHD,South - Commissioned Services,Permanent Residential,Kenver House Residential Home,3008.12, 25-Aug-2020
1785,Revenue,CAHD,South - Commissioned Services,Permanent Residential,Kenver House Residential Home,3060.00, 25-Aug-2020
1786,Revenue,CAHD,Central - Commissioned Services,Permanent Residential,Kenver House Residential Home,3060.00, 25-Aug-2020
1787,Revenue,CAHD,Central - Commissioned Services,Permanent Residential,Kenver House Residential Home,3060.00, 25-Aug-2020
1788,Revenue,CAHD,Central - Commissioned Services,Fees & Charges Income - General,Kenver House Residential Home,3562.02, 25-Aug-2020
1789,Revenue,CAHD,Central - Commissioned Services,Fees & Charges Income - General,Kenver House Residential Home,2658.04, 25-Aug-2020
1790,Revenue,CAHD,Covid � ASC - Infection Control,Grants to Voluntary Bodies,Kenver House Residential Home,2484.30, 04-Aug-2020
1791,Revenue,CAHD,Covid � ASC - Infection Control,Grants to Voluntary Bodies,Kenver House Residential Home,14935.50, 04-Aug-2020
1792,Revenue,CAHD,CSC - Ofsted Work,Consultants Fees,KEOM Consulting Limited,1500.00, 10-Aug-2020
1793,Revenue,CAHD,CSC - Ofsted Work,Consultants Fees,KEOM Consulting Limited,5500.00, 12-Aug-2020
1794,Revenue,CAHD,CSC - Care Leavers Support Costs,Adults - Family Support,Key2 Futures Limited,621.78, 10-Aug-2020
1795,Revenue,CAHD,CSC - Asylum Seekers - Unaccompanied,Adults - Family Support,Key2 Futures Limited,3082.33, 20-Aug-2020
1796,Revenue,CAHD,CSC - Care Leavers Independent Living,Adults - Family Support,Key2 Futures Limited,3082.33, 20-Aug-2020
1797,Revenue,CAHD,North - Community based support,Permanent Residential,Kilkhampton Lodge,18497.92, 25-Aug-2020
1798,Revenue,CAHD,South - Commissioned Services,Permanent Residential,Kingfisher Lodge Care Centre,5920.00, 25-Aug-2020
1799,Revenue,CAHD,South - Commissioned Services,Permanent Nursing,Kingfisher Lodge Care Centre,8129.96, 25-Aug-2020
1800,Revenue,CAHD,North - Community based support,Permanent Nursing,Kingfisher Lodge Care Centre,17357.14, 25-Aug-2020
1801,Revenue,CAHD,North - Community based support,Permanent Nursing,Kingfisher Lodge Care Centre,5400.00, 25-Aug-2020
1802,Revenue,CAHD,South - Commissioned Services,Permanent Residential,Kingfisher Lodge Care Centre,5257.76, 25-Aug-2020
1803,Revenue,CAHD,South - Commissioned Services,Permanent Residential,Kingfisher Lodge Care Centre,4915.20, 25-Aug-2020
